Organisation Name,Organisation Code,Unique Ref No ,Effective Date,Directorate where expenditure incurred,Supplier Name ,Payment Date,Net amount,Purpose of Spend,"Procurements Classification 
(Higher level)","Procurements Classification 
(Lower level)",CAPITAL / REVENUE
Walsall Council,http://opendatacommunities.org/id/metropolitan-district-council/walsall ,WC154-1,30.09.2023,"ECONOMY, ENVIRONMENT & COMMUNITIES",11KBW,06/09/2023,"41,700.00",6440-School Only Payments - Catering,THIRD PARTY PAYMENTS,INDEPENDENT UNIT WITHIN COUNCIL,REVENUE
Walsall Council,http://opendatacommunities.org/id/metropolitan-district-council/walsall ,WC154-2,30.09.2023,CHILDRENS,247 CARS (WILLENHALL) LIMITED,12/09/2023,453.6,6241-Hire of Vehicle with Driver,TRANSPORT,DIRECT TRANSPORT COSTS,REVENUE
Walsall Council,http://opendatacommunities.org/id/metropolitan-district-council/walsall ,WC154-3,30.09.2023,ADULT SOCIAL CARE,5 CARE SERVICES LTD,12/09/2023,756,6541-Domiciliary Care,THIRD PARTY PAYMENTS,PRIVATE CONTRACTOR,REVENUE
Walsall Council,http://opendatacommunities.org/id/metropolitan-district-council/walsall ,WC154-4,30.09.2023,ADULT SOCIAL CARE,5 CARE SERVICES LTD,12/09/2023,328.5,6541-Domiciliary Care,THIRD PARTY PAYMENTS,PRIVATE CONTRACTOR,REVENUE
Walsall Council,http://opendatacommunities.org/id/metropolitan-district-council/walsall ,WC154-5,30.09.2023,ADULT SOCIAL CARE,5 CARE SERVICES LTD,12/09/2023,378,6541-Domiciliary Care,THIRD PARTY PAYMENTS,PRIVATE CONTRACTOR,REVENUE
Walsall Council,http://opendatacommunities.org/id/metropolitan-district-council/walsall ,WC154-6,30.09.2023,ADULT SOCIAL CARE,5 CARE SERVICES LTD,12/09/2023,567,6541-Domiciliary Care,THIRD PARTY PAYMENTS,PRIVATE CONTRACTOR,REVENUE
Walsall Council,http://opendatacommunities.org/id/metropolitan-district-council/walsall ,WC154-7,30.09.2023,ADULT SOCIAL CARE,5 CARE SERVICES LTD,12/09/2023,"1,008.00",6541-Domiciliary Care,THIRD PARTY PAYMENTS,PRIVATE CONTRACTOR,REVENUE
Walsall Council,http://opendatacommunities.org/id/metropolitan-district-council/walsall ,WC154-8,30.09.2023,ADULT SOCIAL CARE,5 CARE SERVICES LTD,12/09/2023,283.5,6541-Domiciliary Care,THIRD PARTY PAYMENTS,PRIVATE CONTRACTOR,REVENUE
Walsall Council,http://opendatacommunities.org/id/metropolitan-district-council/walsall ,WC154-9,30.09.2023,ADULT SOCIAL CARE,5 CARE SERVICES LTD,12/09/2023,648,6541-Domiciliary Care,THIRD PARTY PAYMENTS,PRIVATE CONTRACTOR,REVENUE
Walsall Council,http://opendatacommunities.org/id/metropolitan-district-council/walsall ,WC154-10,30.09.2023,ADULT SOCIAL CARE,5 CARE SERVICES LTD,12/09/2023,360,6541-Domiciliary Care,THIRD PARTY PAYMENTS,PRIVATE CONTRACTOR,REVENUE
Walsall Council,http://opendatacommunities.org/id/metropolitan-district-council/walsall ,WC154-11,30.09.2023,ADULT SOCIAL CARE,5 CARE SERVICES LTD,12/09/2023,630,6541-Domiciliary Care,THIRD PARTY PAYMENTS,PRIVATE CONTRACTOR,REVENUE
Walsall Council,http://opendatacommunities.org/id/metropolitan-district-council/walsall ,WC154-12,30.09.2023,ADULT SOCIAL CARE,5 CARE SERVICES LTD,12/09/2023,567,6541-Domiciliary Care,THIRD PARTY PAYMENTS,PRIVATE CONTRACTOR,REVENUE
Walsall Council,http://opendatacommunities.org/id/metropolitan-district-council/walsall ,WC154-13,30.09.2023,ADULT SOCIAL CARE,5 CARE SERVICES LTD,12/09/2023,567,6541-Domiciliary Care,THIRD PARTY PAYMENTS,PRIVATE CONTRACTOR,REVENUE
Walsall Council,http://opendatacommunities.org/id/metropolitan-district-council/walsall ,WC154-14,30.09.2023,ADULT SOCIAL CARE,5 CARE SERVICES LTD,12/09/2023,378,6541-Domiciliary Care,THIRD PARTY PAYMENTS,PRIVATE CONTRACTOR,REVENUE
Walsall Council,http://opendatacommunities.org/id/metropolitan-district-council/walsall ,WC154-15,30.09.2023,ADULT SOCIAL CARE,5 CARE SERVICES LTD,12/09/2023,567,6541-Domiciliary Care,THIRD PARTY PAYMENTS,PRIVATE CONTRACTOR,REVENUE
Walsall Council,http://opendatacommunities.org/id/metropolitan-district-council/walsall ,WC154-16,30.09.2023,ADULT SOCIAL CARE,5 CARE SERVICES LTD,12/09/2023,567,6541-Domiciliary Care,THIRD PARTY PAYMENTS,PRIVATE CONTRACTOR,REVENUE
Walsall Council,http://opendatacommunities.org/id/metropolitan-district-council/walsall ,WC154-17,30.09.2023,ADULT SOCIAL CARE,5 CARE SERVICES LTD,12/09/2023,567,6541-Domiciliary Care,THIRD PARTY PAYMENTS,PRIVATE CONTRACTOR,REVENUE
Walsall Council,http://opendatacommunities.org/id/metropolitan-district-council/walsall ,WC154-18,30.09.2023,ADULT SOCIAL CARE,5 CARE SERVICES LTD,12/09/2023,774,6541-Domiciliary Care,THIRD PARTY PAYMENTS,PRIVATE CONTRACTOR,REVENUE
Walsall Council,http://opendatacommunities.org/id/metropolitan-district-council/walsall ,WC154-19,30.09.2023,ADULT SOCIAL CARE,5 CARE SERVICES LTD,12/09/2023,603,6541-Domiciliary Care,THIRD PARTY PAYMENTS,PRIVATE CONTRACTOR,REVENUE
Walsall Council,http://opendatacommunities.org/id/metropolitan-district-council/walsall ,WC154-20,30.09.2023,ADULT SOCIAL CARE,5 CARE SERVICES LTD,12/09/2023,486,6541-Domiciliary Care,THIRD PARTY PAYMENTS,PRIVATE CONTRACTOR,REVENUE
Walsall Council,http://opendatacommunities.org/id/metropolitan-district-council/walsall ,WC154-21,30.09.2023,ADULT SOCIAL CARE,5 CARE SERVICES LTD,12/09/2023,"1,458.00",6541-Domiciliary Care,THIRD PARTY PAYMENTS,PRIVATE CONTRACTOR,REVENUE
Walsall Council,http://opendatacommunities.org/id/metropolitan-district-council/walsall ,WC154-22,30.09.2023,ADULT SOCIAL CARE,5 CARE SERVICES LTD,12/09/2023,504,6541-Domiciliary Care,THIRD PARTY PAYMENTS,PRIVATE CONTRACTOR,REVENUE
Walsall Council,http://opendatacommunities.org/id/metropolitan-district-council/walsall ,WC154-23,30.09.2023,ADULT SOCIAL CARE,5 CARE SERVICES LTD,12/09/2023,630,6541-Domiciliary Care,THIRD PARTY PAYMENTS,PRIVATE CONTRACTOR,REVENUE
Walsall Council,http://opendatacommunities.org/id/metropolitan-district-council/walsall ,WC154-24,30.09.2023,ADULT SOCIAL CARE,5 CARE SERVICES LTD,12/09/2023,666,6541-Domiciliary Care,THIRD PARTY PAYMENTS,PRIVATE CONTRACTOR,REVENUE
Walsall Council,http://opendatacommunities.org/id/metropolitan-district-council/walsall ,WC154-25,30.09.2023,ADULT SOCIAL CARE,5 CARE SERVICES LTD,12/09/2023,567,6541-Domiciliary Care,THIRD PARTY PAYMENTS,PRIVATE CONTRACTOR,REVENUE
Walsall Council,http://opendatacommunities.org/id/metropolitan-district-council/walsall ,WC154-26,30.09.2023,ADULT SOCIAL CARE,5 CARE SERVICES LTD,12/09/2023,909,6541-Domiciliary Care,THIRD PARTY PAYMENTS,PRIVATE CONTRACTOR,REVENUE
Walsall Council,http://opendatacommunities.org/id/metropolitan-district-council/walsall ,WC154-27,30.09.2023,ADULT SOCIAL CARE,5 CARE SERVICES LTD,12/09/2023,477,6541-Domiciliary Care,THIRD PARTY PAYMENTS,PRIVATE CONTRACTOR,REVENUE
Walsall Council,http://opendatacommunities.org/id/metropolitan-district-council/walsall ,WC154-28,30.09.2023,ADULT SOCIAL CARE,5 CARE SERVICES LTD,12/09/2023,283.5,6541-Domiciliary Care,THIRD PARTY PAYMENTS,PRIVATE CONTRACTOR,REVENUE
Walsall Council,http://opendatacommunities.org/id/metropolitan-district-council/walsall ,WC154-29,30.09.2023,ADULT SOCIAL CARE,5 CARE SERVICES LTD,12/09/2023,"1,386.00",6541-Domiciliary Care,THIRD PARTY PAYMENTS,PRIVATE CONTRACTOR,REVENUE
Walsall Council,http://opendatacommunities.org/id/metropolitan-district-council/walsall ,WC154-30,30.09.2023,ADULT SOCIAL CARE,5 CARE SERVICES LTD,12/09/2023,864,6541-Domiciliary Care,THIRD PARTY PAYMENTS,PRIVATE CONTRACTOR,REVENUE
Walsall Council,http://opendatacommunities.org/id/metropolitan-district-council/walsall ,WC154-31,30.09.2023,ADULT SOCIAL CARE,5 CARE SERVICES LTD,12/09/2023,324,6541-Domiciliary Care,THIRD PARTY PAYMENTS,PRIVATE CONTRACTOR,REVENUE
Walsall Council,http://opendatacommunities.org/id/metropolitan-district-council/walsall ,WC154-32,30.09.2023,ADULT SOCIAL CARE,5 CARE SERVICES LTD,12/09/2023,-895.5,6541-Domiciliary Care,THIRD PARTY PAYMENTS,PRIVATE CONTRACTOR,REVENUE
Walsall Council,http://opendatacommunities.org/id/metropolitan-district-council/walsall ,WC154-33,30.09.2023,ADULT SOCIAL CARE,5 CARE SERVICES LTD,12/09/2023,651,6541-Domiciliary Care,THIRD PARTY PAYMENTS,PRIVATE CONTRACTOR,REVENUE
Walsall Council,http://opendatacommunities.org/id/metropolitan-district-council/walsall ,WC154-34,30.09.2023,ADULT SOCIAL CARE,5 CARE SERVICES LTD,12/09/2023,283.5,6541-Domiciliary Care,THIRD PARTY PAYMENTS,PRIVATE CONTRACTOR,REVENUE
Walsall Council,http://opendatacommunities.org/id/metropolitan-district-council/walsall ,WC154-35,30.09.2023,ADULT SOCIAL CARE,5 CARE SERVICES LTD,12/09/2023,819,6541-Domiciliary Care,THIRD PARTY PAYMENTS,PRIVATE CONTRACTOR,REVENUE
Walsall Council,http://opendatacommunities.org/id/metropolitan-district-council/walsall ,WC154-36,30.09.2023,ADULT SOCIAL CARE,5 CARE SERVICES LTD,12/09/2023,378,6541-Domiciliary Care,THIRD PARTY PAYMENTS,PRIVATE CONTRACTOR,REVENUE
Walsall Council,http://opendatacommunities.org/id/metropolitan-district-council/walsall ,WC154-37,30.09.2023,ADULT SOCIAL CARE,5 CARE SERVICES LTD,12/09/2023,567,6541-Domiciliary Care,THIRD PARTY PAYMENTS,PRIVATE CONTRACTOR,REVENUE
Walsall Council,http://opendatacommunities.org/id/metropolitan-district-council/walsall ,WC154-38,30.09.2023,ADULT SOCIAL CARE,5 CARE SERVICES LTD,12/09/2023,"1,008.00",6541-Domiciliary Care,THIRD PARTY PAYMENTS,PRIVATE CONTRACTOR,REVENUE
Walsall Council,http://opendatacommunities.org/id/metropolitan-district-council/walsall ,WC154-39,30.09.2023,ADULT SOCIAL CARE,5 CARE SERVICES LTD,12/09/2023,378,6541-Domiciliary Care,THIRD PARTY PAYMENTS,PRIVATE CONTRACTOR,REVENUE
Walsall Council,http://opendatacommunities.org/id/metropolitan-district-council/walsall ,WC154-40,30.09.2023,ADULT SOCIAL CARE,5 CARE SERVICES LTD,12/09/2023,567,6541-Domiciliary Care,THIRD PARTY PAYMENTS,PRIVATE CONTRACTOR,REVENUE
Walsall Council,http://opendatacommunities.org/id/metropolitan-district-council/walsall ,WC154-41,30.09.2023,ADULT SOCIAL CARE,5 CARE SERVICES LTD,12/09/2023,603,6541-Domiciliary Care,THIRD PARTY PAYMENTS,PRIVATE CONTRACTOR,REVENUE
Walsall Council,http://opendatacommunities.org/id/metropolitan-district-council/walsall ,WC154-42,30.09.2023,ADULT SOCIAL CARE,5 CARE SERVICES LTD,12/09/2023,756,6541-Domiciliary Care,THIRD PARTY PAYMENTS,PRIVATE CONTRACTOR,REVENUE
Walsall Council,http://opendatacommunities.org/id/metropolitan-district-council/walsall ,WC154-43,30.09.2023,ADULT SOCIAL CARE,5 CARE SERVICES LTD,12/09/2023,328.5,6541-Domiciliary Care,THIRD PARTY PAYMENTS,PRIVATE CONTRACTOR,REVENUE
Walsall Council,http://opendatacommunities.org/id/metropolitan-district-council/walsall ,WC154-44,30.09.2023,ADULT SOCIAL CARE,5 CARE SERVICES LTD,12/09/2023,630,6541-Domiciliary Care,THIRD PARTY PAYMENTS,PRIVATE CONTRACTOR,REVENUE
Walsall Council,http://opendatacommunities.org/id/metropolitan-district-council/walsall ,WC154-45,30.09.2023,ADULT SOCIAL CARE,5 CARE SERVICES LTD,12/09/2023,567,6541-Domiciliary Care,THIRD PARTY PAYMENTS,PRIVATE CONTRACTOR,REVENUE
Walsall Council,http://opendatacommunities.org/id/metropolitan-district-council/walsall ,WC154-46,30.09.2023,ADULT SOCIAL CARE,5 CARE SERVICES LTD,12/09/2023,567,6541-Domiciliary Care,THIRD PARTY PAYMENTS,PRIVATE CONTRACTOR,REVENUE
Walsall Council,http://opendatacommunities.org/id/metropolitan-district-council/walsall ,WC154-47,30.09.2023,ADULT SOCIAL CARE,5 CARE SERVICES LTD,12/09/2023,486,6541-Domiciliary Care,THIRD PARTY PAYMENTS,PRIVATE CONTRACTOR,REVENUE
Walsall Council,http://opendatacommunities.org/id/metropolitan-district-council/walsall ,WC154-48,30.09.2023,ADULT SOCIAL CARE,5 CARE SERVICES LTD,12/09/2023,774,6541-Domiciliary Care,THIRD PARTY PAYMENTS,PRIVATE CONTRACTOR,REVENUE
Walsall Council,http://opendatacommunities.org/id/metropolitan-district-council/walsall ,WC154-49,30.09.2023,ADULT SOCIAL CARE,5 CARE SERVICES LTD,12/09/2023,283.5,6541-Domiciliary Care,THIRD PARTY PAYMENTS,PRIVATE CONTRACTOR,REVENUE
Walsall Council,http://opendatacommunities.org/id/metropolitan-district-council/walsall ,WC154-50,30.09.2023,ADULT SOCIAL CARE,5 CARE SERVICES LTD,12/09/2023,"1,386.00",6541-Domiciliary Care,THIRD PARTY PAYMENTS,PRIVATE CONTRACTOR,REVENUE
Walsall Council,http://opendatacommunities.org/id/metropolitan-district-council/walsall ,WC154-51,30.09.2023,ADULT SOCIAL CARE,5 CARE SERVICES LTD,12/09/2023,864,6541-Domiciliary Care,THIRD PARTY PAYMENTS,PRIVATE CONTRACTOR,REVENUE
Walsall Council,http://opendatacommunities.org/id/metropolitan-district-council/walsall ,WC154-52,30.09.2023,ADULT SOCIAL CARE,5 CARE SERVICES LTD,12/09/2023,333,6541-Domiciliary Care,THIRD PARTY PAYMENTS,PRIVATE CONTRACTOR,REVENUE
Walsall Council,http://opendatacommunities.org/id/metropolitan-district-council/walsall ,WC154-53,30.09.2023,ADULT SOCIAL CARE,5 CARE SERVICES LTD,12/09/2023,651,6541-Domiciliary Care,THIRD PARTY PAYMENTS,PRIVATE CONTRACTOR,REVENUE
Walsall Council,http://opendatacommunities.org/id/metropolitan-district-council/walsall ,WC154-54,30.09.2023,ADULT SOCIAL CARE,5 CARE SERVICES LTD,12/09/2023,283.5,6541-Domiciliary Care,THIRD PARTY PAYMENTS,PRIVATE CONTRACTOR,REVENUE
Walsall Council,http://opendatacommunities.org/id/metropolitan-district-council/walsall ,WC154-55,30.09.2023,ADULT SOCIAL CARE,5 CARE SERVICES LTD,12/09/2023,819,6541-Domiciliary Care,THIRD PARTY PAYMENTS,PRIVATE CONTRACTOR,REVENUE
Walsall Council,http://opendatacommunities.org/id/metropolitan-district-council/walsall ,WC154-56,30.09.2023,ADULT SOCIAL CARE,5 CARE SERVICES LTD,12/09/2023,283.5,6541-Domiciliary Care,THIRD PARTY PAYMENTS,PRIVATE CONTRACTOR,REVENUE
Walsall Council,http://opendatacommunities.org/id/metropolitan-district-council/walsall ,WC154-57,30.09.2023,ADULT SOCIAL CARE,5 CARE SERVICES LTD,12/09/2023,648,6541-Domiciliary Care,THIRD PARTY PAYMENTS,PRIVATE CONTRACTOR,REVENUE
Walsall Council,http://opendatacommunities.org/id/metropolitan-district-council/walsall ,WC154-58,30.09.2023,ADULT SOCIAL CARE,5 CARE SERVICES LTD,12/09/2023,360,6541-Domiciliary Care,THIRD PARTY PAYMENTS,PRIVATE CONTRACTOR,REVENUE
Walsall Council,http://opendatacommunities.org/id/metropolitan-district-council/walsall ,WC154-59,30.09.2023,ADULT SOCIAL CARE,5 CARE SERVICES LTD,12/09/2023,567,6541-Domiciliary Care,THIRD PARTY PAYMENTS,PRIVATE CONTRACTOR,REVENUE
Walsall Council,http://opendatacommunities.org/id/metropolitan-district-council/walsall ,WC154-60,30.09.2023,ADULT SOCIAL CARE,5 CARE SERVICES LTD,12/09/2023,567,6541-Domiciliary Care,THIRD PARTY PAYMENTS,PRIVATE CONTRACTOR,REVENUE
Walsall Council,http://opendatacommunities.org/id/metropolitan-district-council/walsall ,WC154-61,30.09.2023,ADULT SOCIAL CARE,5 CARE SERVICES LTD,12/09/2023,504,6541-Domiciliary Care,THIRD PARTY PAYMENTS,PRIVATE CONTRACTOR,REVENUE
Walsall Council,http://opendatacommunities.org/id/metropolitan-district-council/walsall ,WC154-62,30.09.2023,ADULT SOCIAL CARE,5 CARE SERVICES LTD,12/09/2023,630,6541-Domiciliary Care,THIRD PARTY PAYMENTS,PRIVATE CONTRACTOR,REVENUE
Walsall Council,http://opendatacommunities.org/id/metropolitan-district-council/walsall ,WC154-63,30.09.2023,ADULT SOCIAL CARE,5 CARE SERVICES LTD,12/09/2023,738,6541-Domiciliary Care,THIRD PARTY PAYMENTS,PRIVATE CONTRACTOR,REVENUE
Walsall Council,http://opendatacommunities.org/id/metropolitan-district-council/walsall ,WC154-64,30.09.2023,ADULT SOCIAL CARE,5 CARE SERVICES LTD,12/09/2023,567,6541-Domiciliary Care,THIRD PARTY PAYMENTS,PRIVATE CONTRACTOR,REVENUE
Walsall Council,http://opendatacommunities.org/id/metropolitan-district-council/walsall ,WC154-65,30.09.2023,ADULT SOCIAL CARE,5 CARE SERVICES LTD,12/09/2023,"1,053.00",6541-Domiciliary Care,THIRD PARTY PAYMENTS,PRIVATE CONTRACTOR,REVENUE
Walsall Council,http://opendatacommunities.org/id/metropolitan-district-council/walsall ,WC154-66,30.09.2023,ADULT SOCIAL CARE,5 CARE SERVICES LTD,12/09/2023,283.5,6541-Domiciliary Care,THIRD PARTY PAYMENTS,PRIVATE CONTRACTOR,REVENUE
Walsall Council,http://opendatacommunities.org/id/metropolitan-district-council/walsall ,WC154-67,30.09.2023,ADULT SOCIAL CARE,5 CARE SERVICES LTD,20/09/2023,558,6554-Professional Services-Priv Contractor & Other Agencies,THIRD PARTY PAYMENTS,PRIVATE CONTRACTOR,REVENUE
Walsall Council,http://opendatacommunities.org/id/metropolitan-district-council/walsall ,WC154-68,30.09.2023,ADULT SOCIAL CARE,5 CARE SERVICES LTD,26/09/2023,756,6541-Domiciliary Care,THIRD PARTY PAYMENTS,PRIVATE CONTRACTOR,REVENUE
Walsall Council,http://opendatacommunities.org/id/metropolitan-district-council/walsall ,WC154-69,30.09.2023,ADULT SOCIAL CARE,5 CARE SERVICES LTD,26/09/2023,328.5,6541-Domiciliary Care,THIRD PARTY PAYMENTS,PRIVATE CONTRACTOR,REVENUE
Walsall Council,http://opendatacommunities.org/id/metropolitan-district-council/walsall ,WC154-70,30.09.2023,ADULT SOCIAL CARE,5 CARE SERVICES LTD,26/09/2023,630,6541-Domiciliary Care,THIRD PARTY PAYMENTS,PRIVATE CONTRACTOR,REVENUE
Walsall Council,http://opendatacommunities.org/id/metropolitan-district-council/walsall ,WC154-71,30.09.2023,ADULT SOCIAL CARE,5 CARE SERVICES LTD,26/09/2023,567,6541-Domiciliary Care,THIRD PARTY PAYMENTS,PRIVATE CONTRACTOR,REVENUE
Walsall Council,http://opendatacommunities.org/id/metropolitan-district-council/walsall ,WC154-72,30.09.2023,ADULT SOCIAL CARE,5 CARE SERVICES LTD,26/09/2023,567,6541-Domiciliary Care,THIRD PARTY PAYMENTS,PRIVATE CONTRACTOR,REVENUE
Walsall Council,http://opendatacommunities.org/id/metropolitan-district-council/walsall ,WC154-73,30.09.2023,ADULT SOCIAL CARE,5 CARE SERVICES LTD,26/09/2023,283.5,6541-Domiciliary Care,THIRD PARTY PAYMENTS,PRIVATE CONTRACTOR,REVENUE
Walsall Council,http://opendatacommunities.org/id/metropolitan-district-council/walsall ,WC154-74,30.09.2023,ADULT SOCIAL CARE,5 CARE SERVICES LTD,26/09/2023,864,6541-Domiciliary Care,THIRD PARTY PAYMENTS,PRIVATE CONTRACTOR,REVENUE
Walsall Council,http://opendatacommunities.org/id/metropolitan-district-council/walsall ,WC154-75,30.09.2023,ADULT SOCIAL CARE,5 CARE SERVICES LTD,26/09/2023,360,6541-Domiciliary Care,THIRD PARTY PAYMENTS,PRIVATE CONTRACTOR,REVENUE
Walsall Council,http://opendatacommunities.org/id/metropolitan-district-council/walsall ,WC154-76,30.09.2023,ADULT SOCIAL CARE,5 CARE SERVICES LTD,26/09/2023,567,6541-Domiciliary Care,THIRD PARTY PAYMENTS,PRIVATE CONTRACTOR,REVENUE
Walsall Council,http://opendatacommunities.org/id/metropolitan-district-council/walsall ,WC154-77,30.09.2023,ADULT SOCIAL CARE,5 CARE SERVICES LTD,26/09/2023,567,6541-Domiciliary Care,THIRD PARTY PAYMENTS,PRIVATE CONTRACTOR,REVENUE
Walsall Council,http://opendatacommunities.org/id/metropolitan-district-council/walsall ,WC154-78,30.09.2023,ADULT SOCIAL CARE,5 CARE SERVICES LTD,26/09/2023,378,6541-Domiciliary Care,THIRD PARTY PAYMENTS,PRIVATE CONTRACTOR,REVENUE
Walsall Council,http://opendatacommunities.org/id/metropolitan-district-council/walsall ,WC154-79,30.09.2023,ADULT SOCIAL CARE,5 CARE SERVICES LTD,26/09/2023,567,6541-Domiciliary Care,THIRD PARTY PAYMENTS,PRIVATE CONTRACTOR,REVENUE
Walsall Council,http://opendatacommunities.org/id/metropolitan-district-council/walsall ,WC154-80,30.09.2023,ADULT SOCIAL CARE,5 CARE SERVICES LTD,26/09/2023,"1,008.00",6541-Domiciliary Care,THIRD PARTY PAYMENTS,PRIVATE CONTRACTOR,REVENUE
Walsall Council,http://opendatacommunities.org/id/metropolitan-district-council/walsall ,WC154-81,30.09.2023,ADULT SOCIAL CARE,5 CARE SERVICES LTD,26/09/2023,774,6541-Domiciliary Care,THIRD PARTY PAYMENTS,PRIVATE CONTRACTOR,REVENUE
Walsall Council,http://opendatacommunities.org/id/metropolitan-district-council/walsall ,WC154-82,30.09.2023,ADULT SOCIAL CARE,5 CARE SERVICES LTD,26/09/2023,378,6541-Domiciliary Care,THIRD PARTY PAYMENTS,PRIVATE CONTRACTOR,REVENUE
Walsall Council,http://opendatacommunities.org/id/metropolitan-district-council/walsall ,WC154-83,30.09.2023,ADULT SOCIAL CARE,5 CARE SERVICES LTD,26/09/2023,567,6541-Domiciliary Care,THIRD PARTY PAYMENTS,PRIVATE CONTRACTOR,REVENUE
Walsall Council,http://opendatacommunities.org/id/metropolitan-district-council/walsall ,WC154-84,30.09.2023,ADULT SOCIAL CARE,5 CARE SERVICES LTD,26/09/2023,504,6541-Domiciliary Care,THIRD PARTY PAYMENTS,PRIVATE CONTRACTOR,REVENUE
Walsall Council,http://opendatacommunities.org/id/metropolitan-district-council/walsall ,WC154-85,30.09.2023,ADULT SOCIAL CARE,5 CARE SERVICES LTD,26/09/2023,603,6541-Domiciliary Care,THIRD PARTY PAYMENTS,PRIVATE CONTRACTOR,REVENUE
Walsall Council,http://opendatacommunities.org/id/metropolitan-district-council/walsall ,WC154-86,30.09.2023,ADULT SOCIAL CARE,5 CARE SERVICES LTD,26/09/2023,630,6541-Domiciliary Care,THIRD PARTY PAYMENTS,PRIVATE CONTRACTOR,REVENUE
Walsall Council,http://opendatacommunities.org/id/metropolitan-district-council/walsall ,WC154-87,30.09.2023,ADULT SOCIAL CARE,5 CARE SERVICES LTD,26/09/2023,666,6541-Domiciliary Care,THIRD PARTY PAYMENTS,PRIVATE CONTRACTOR,REVENUE
Walsall Council,http://opendatacommunities.org/id/metropolitan-district-council/walsall ,WC154-88,30.09.2023,ADULT SOCIAL CARE,5 CARE SERVICES LTD,26/09/2023,567,6541-Domiciliary Care,THIRD PARTY PAYMENTS,PRIVATE CONTRACTOR,REVENUE
Walsall Council,http://opendatacommunities.org/id/metropolitan-district-council/walsall ,WC154-89,30.09.2023,ADULT SOCIAL CARE,5 CARE SERVICES LTD,26/09/2023,"1,035.00",6541-Domiciliary Care,THIRD PARTY PAYMENTS,PRIVATE CONTRACTOR,REVENUE
Walsall Council,http://opendatacommunities.org/id/metropolitan-district-council/walsall ,WC154-90,30.09.2023,ADULT SOCIAL CARE,5 CARE SERVICES LTD,26/09/2023,283.5,6541-Domiciliary Care,THIRD PARTY PAYMENTS,PRIVATE CONTRACTOR,REVENUE
Walsall Council,http://opendatacommunities.org/id/metropolitan-district-council/walsall ,WC154-91,30.09.2023,ADULT SOCIAL CARE,5 CARE SERVICES LTD,26/09/2023,486,6541-Domiciliary Care,THIRD PARTY PAYMENTS,PRIVATE CONTRACTOR,REVENUE
Walsall Council,http://opendatacommunities.org/id/metropolitan-district-council/walsall ,WC154-92,30.09.2023,ADULT SOCIAL CARE,5 CARE SERVICES LTD,26/09/2023,927,6541-Domiciliary Care,THIRD PARTY PAYMENTS,PRIVATE CONTRACTOR,REVENUE
Walsall Council,http://opendatacommunities.org/id/metropolitan-district-council/walsall ,WC154-93,30.09.2023,ADULT SOCIAL CARE,5 CARE SERVICES LTD,26/09/2023,283.5,6541-Domiciliary Care,THIRD PARTY PAYMENTS,PRIVATE CONTRACTOR,REVENUE
Walsall Council,http://opendatacommunities.org/id/metropolitan-district-council/walsall ,WC154-94,30.09.2023,ADULT SOCIAL CARE,5 CARE SERVICES LTD,26/09/2023,"1,386.00",6541-Domiciliary Care,THIRD PARTY PAYMENTS,PRIVATE CONTRACTOR,REVENUE
Walsall Council,http://opendatacommunities.org/id/metropolitan-district-council/walsall ,WC154-95,30.09.2023,ADULT SOCIAL CARE,5 CARE SERVICES LTD,26/09/2023,324,6541-Domiciliary Care,THIRD PARTY PAYMENTS,PRIVATE CONTRACTOR,REVENUE
Walsall Council,http://opendatacommunities.org/id/metropolitan-district-council/walsall ,WC154-96,30.09.2023,ADULT SOCIAL CARE,5 CARE SERVICES LTD,26/09/2023,651,6541-Domiciliary Care,THIRD PARTY PAYMENTS,PRIVATE CONTRACTOR,REVENUE
Walsall Council,http://opendatacommunities.org/id/metropolitan-district-council/walsall ,WC154-97,30.09.2023,ADULT SOCIAL CARE,5 CARE SERVICES LTD,26/09/2023,283.5,6541-Domiciliary Care,THIRD PARTY PAYMENTS,PRIVATE CONTRACTOR,REVENUE
Walsall Council,http://opendatacommunities.org/id/metropolitan-district-council/walsall ,WC154-98,30.09.2023,ADULT SOCIAL CARE,5 CARE SERVICES LTD,26/09/2023,819,6541-Domiciliary Care,THIRD PARTY PAYMENTS,PRIVATE CONTRACTOR,REVENUE
Walsall Council,http://opendatacommunities.org/id/metropolitan-district-council/walsall ,WC154-99,30.09.2023,ADULT SOCIAL CARE,5 CARE SERVICES LTD,26/09/2023,283.5,6541-Domiciliary Care,THIRD PARTY PAYMENTS,PRIVATE CONTRACTOR,REVENUE
Walsall Council,http://opendatacommunities.org/id/metropolitan-district-council/walsall ,WC154-100,30.09.2023,ADULT SOCIAL CARE,5 CARE SERVICES LTD,26/09/2023,864,6541-Domiciliary Care,THIRD PARTY PAYMENTS,PRIVATE CONTRACTOR,REVENUE
Walsall Council,http://opendatacommunities.org/id/metropolitan-district-council/walsall ,WC154-101,30.09.2023,ADULT SOCIAL CARE,5 CARE SERVICES LTD,26/09/2023,360,6541-Domiciliary Care,THIRD PARTY PAYMENTS,PRIVATE CONTRACTOR,REVENUE
Walsall Council,http://opendatacommunities.org/id/metropolitan-district-council/walsall ,WC154-102,30.09.2023,ADULT SOCIAL CARE,5 CARE SERVICES LTD,26/09/2023,756,6541-Domiciliary Care,THIRD PARTY PAYMENTS,PRIVATE CONTRACTOR,REVENUE
Walsall Council,http://opendatacommunities.org/id/metropolitan-district-council/walsall ,WC154-103,30.09.2023,ADULT SOCIAL CARE,5 CARE SERVICES LTD,26/09/2023,328.5,6541-Domiciliary Care,THIRD PARTY PAYMENTS,PRIVATE CONTRACTOR,REVENUE
Walsall Council,http://opendatacommunities.org/id/metropolitan-district-council/walsall ,WC154-104,30.09.2023,ADULT SOCIAL CARE,5 CARE SERVICES LTD,26/09/2023,567,6541-Domiciliary Care,THIRD PARTY PAYMENTS,PRIVATE CONTRACTOR,REVENUE
Walsall Council,http://opendatacommunities.org/id/metropolitan-district-council/walsall ,WC154-105,30.09.2023,ADULT SOCIAL CARE,5 CARE SERVICES LTD,26/09/2023,567,6541-Domiciliary Care,THIRD PARTY PAYMENTS,PRIVATE CONTRACTOR,REVENUE
Walsall Council,http://opendatacommunities.org/id/metropolitan-district-council/walsall ,WC154-106,30.09.2023,ADULT SOCIAL CARE,5 CARE SERVICES LTD,26/09/2023,630,6541-Domiciliary Care,THIRD PARTY PAYMENTS,PRIVATE CONTRACTOR,REVENUE
Walsall Council,http://opendatacommunities.org/id/metropolitan-district-council/walsall ,WC154-107,30.09.2023,ADULT SOCIAL CARE,5 CARE SERVICES LTD,26/09/2023,567,6541-Domiciliary Care,THIRD PARTY PAYMENTS,PRIVATE CONTRACTOR,REVENUE
Walsall Council,http://opendatacommunities.org/id/metropolitan-district-council/walsall ,WC154-108,30.09.2023,ADULT SOCIAL CARE,5 CARE SERVICES LTD,26/09/2023,567,6541-Domiciliary Care,THIRD PARTY PAYMENTS,PRIVATE CONTRACTOR,REVENUE
Walsall Council,http://opendatacommunities.org/id/metropolitan-district-council/walsall ,WC154-109,30.09.2023,ADULT SOCIAL CARE,5 CARE SERVICES LTD,26/09/2023,504,6541-Domiciliary Care,THIRD PARTY PAYMENTS,PRIVATE CONTRACTOR,REVENUE
Walsall Council,http://opendatacommunities.org/id/metropolitan-district-council/walsall ,WC154-110,30.09.2023,ADULT SOCIAL CARE,5 CARE SERVICES LTD,26/09/2023,630,6541-Domiciliary Care,THIRD PARTY PAYMENTS,PRIVATE CONTRACTOR,REVENUE
Walsall Council,http://opendatacommunities.org/id/metropolitan-district-council/walsall ,WC154-111,30.09.2023,ADULT SOCIAL CARE,5 CARE SERVICES LTD,26/09/2023,666,6541-Domiciliary Care,THIRD PARTY PAYMENTS,PRIVATE CONTRACTOR,REVENUE
Walsall Council,http://opendatacommunities.org/id/metropolitan-district-council/walsall ,WC154-112,30.09.2023,ADULT SOCIAL CARE,5 CARE SERVICES LTD,26/09/2023,567,6541-Domiciliary Care,THIRD PARTY PAYMENTS,PRIVATE CONTRACTOR,REVENUE
Walsall Council,http://opendatacommunities.org/id/metropolitan-district-council/walsall ,WC154-113,30.09.2023,ADULT SOCIAL CARE,5 CARE SERVICES LTD,26/09/2023,774,6541-Domiciliary Care,THIRD PARTY PAYMENTS,PRIVATE CONTRACTOR,REVENUE
Walsall Council,http://opendatacommunities.org/id/metropolitan-district-council/walsall ,WC154-114,30.09.2023,ADULT SOCIAL CARE,5 CARE SERVICES LTD,26/09/2023,283.5,6541-Domiciliary Care,THIRD PARTY PAYMENTS,PRIVATE CONTRACTOR,REVENUE
Walsall Council,http://opendatacommunities.org/id/metropolitan-district-council/walsall ,WC154-115,30.09.2023,ADULT SOCIAL CARE,5 CARE SERVICES LTD,26/09/2023,378,6541-Domiciliary Care,THIRD PARTY PAYMENTS,PRIVATE CONTRACTOR,REVENUE
Walsall Council,http://opendatacommunities.org/id/metropolitan-district-council/walsall ,WC154-116,30.09.2023,ADULT SOCIAL CARE,5 CARE SERVICES LTD,26/09/2023,567,6541-Domiciliary Care,THIRD PARTY PAYMENTS,PRIVATE CONTRACTOR,REVENUE
Walsall Council,http://opendatacommunities.org/id/metropolitan-district-council/walsall ,WC154-117,30.09.2023,ADULT SOCIAL CARE,5 CARE SERVICES LTD,26/09/2023,"1,008.00",6541-Domiciliary Care,THIRD PARTY PAYMENTS,PRIVATE CONTRACTOR,REVENUE
Walsall Council,http://opendatacommunities.org/id/metropolitan-district-council/walsall ,WC154-118,30.09.2023,ADULT SOCIAL CARE,5 CARE SERVICES LTD,26/09/2023,"1,053.00",6541-Domiciliary Care,THIRD PARTY PAYMENTS,PRIVATE CONTRACTOR,REVENUE
Walsall Council,http://opendatacommunities.org/id/metropolitan-district-council/walsall ,WC154-119,30.09.2023,ADULT SOCIAL CARE,5 CARE SERVICES LTD,26/09/2023,283.5,6541-Domiciliary Care,THIRD PARTY PAYMENTS,PRIVATE CONTRACTOR,REVENUE
Walsall Council,http://opendatacommunities.org/id/metropolitan-district-council/walsall ,WC154-120,30.09.2023,ADULT SOCIAL CARE,5 CARE SERVICES LTD,26/09/2023,"1,386.00",6541-Domiciliary Care,THIRD PARTY PAYMENTS,PRIVATE CONTRACTOR,REVENUE
Walsall Council,http://opendatacommunities.org/id/metropolitan-district-council/walsall ,WC154-121,30.09.2023,ADULT SOCIAL CARE,5 CARE SERVICES LTD,26/09/2023,324,6541-Domiciliary Care,THIRD PARTY PAYMENTS,PRIVATE CONTRACTOR,REVENUE
Walsall Council,http://opendatacommunities.org/id/metropolitan-district-council/walsall ,WC154-122,30.09.2023,ADULT SOCIAL CARE,5 CARE SERVICES LTD,26/09/2023,651,6541-Domiciliary Care,THIRD PARTY PAYMENTS,PRIVATE CONTRACTOR,REVENUE
Walsall Council,http://opendatacommunities.org/id/metropolitan-district-council/walsall ,WC154-123,30.09.2023,ADULT SOCIAL CARE,5 CARE SERVICES LTD,26/09/2023,283.5,6541-Domiciliary Care,THIRD PARTY PAYMENTS,PRIVATE CONTRACTOR,REVENUE
Walsall Council,http://opendatacommunities.org/id/metropolitan-district-council/walsall ,WC154-124,30.09.2023,ADULT SOCIAL CARE,5 CARE SERVICES LTD,26/09/2023,819,6541-Domiciliary Care,THIRD PARTY PAYMENTS,PRIVATE CONTRACTOR,REVENUE
Walsall Council,http://opendatacommunities.org/id/metropolitan-district-council/walsall ,WC154-125,30.09.2023,ADULT SOCIAL CARE,5 CARE SERVICES LTD,26/09/2023,378,6541-Domiciliary Care,THIRD PARTY PAYMENTS,PRIVATE CONTRACTOR,REVENUE
Walsall Council,http://opendatacommunities.org/id/metropolitan-district-council/walsall ,WC154-126,30.09.2023,ADULT SOCIAL CARE,5 CARE SERVICES LTD,26/09/2023,567,6541-Domiciliary Care,THIRD PARTY PAYMENTS,PRIVATE CONTRACTOR,REVENUE
Walsall Council,http://opendatacommunities.org/id/metropolitan-district-council/walsall ,WC154-127,30.09.2023,ADULT SOCIAL CARE,5 CARE SERVICES LTD,26/09/2023,603,6541-Domiciliary Care,THIRD PARTY PAYMENTS,PRIVATE CONTRACTOR,REVENUE
Walsall Council,http://opendatacommunities.org/id/metropolitan-district-council/walsall ,WC154-128,30.09.2023,ADULT SOCIAL CARE,5 CARE SERVICES LTD,26/09/2023,486,6541-Domiciliary Care,THIRD PARTY PAYMENTS,PRIVATE CONTRACTOR,REVENUE
Walsall Council,http://opendatacommunities.org/id/metropolitan-district-council/walsall ,WC154-129,30.09.2023,ADULT SOCIAL CARE,5 CARE SERVICES LTD,26/09/2023,"1,512.00",6541-Domiciliary Care,THIRD PARTY PAYMENTS,PRIVATE CONTRACTOR,REVENUE
Walsall Council,http://opendatacommunities.org/id/metropolitan-district-council/walsall ,WC154-130,30.09.2023,ADULT SOCIAL CARE,5 CARE SERVICES LTD,26/09/2023,864,6541-Domiciliary Care,THIRD PARTY PAYMENTS,PRIVATE CONTRACTOR,REVENUE
Walsall Council,http://opendatacommunities.org/id/metropolitan-district-council/walsall ,WC154-131,30.09.2023,CHILDRENS,5 CARE SERVICES LTD,05/09/2023,270,6220-Professional Fees & Services,SUPPLIES & SERVICES,SERVICES,REVENUE
Walsall Council,http://opendatacommunities.org/id/metropolitan-district-council/walsall ,WC154-132,30.09.2023,CHILDRENS,5 CARE SERVICES LTD,12/09/2023,342,6220-Professional Fees & Services,SUPPLIES & SERVICES,SERVICES,REVENUE
Walsall Council,http://opendatacommunities.org/id/metropolitan-district-council/walsall ,WC154-133,30.09.2023,CHILDRENS CAPITAL,A & P HOME MAINTENANCE LTD,12/09/2023,"4,800.00",7100-Private Grants,CAPITAL,CAPITAL GRANTS,CAPITAL GRANTS
Walsall Council,http://opendatacommunities.org/id/metropolitan-district-council/walsall ,WC154-134,30.09.2023,"ECONOMY, ENVIRONMENT & COMMUNITIES",A ASHTON,05/09/2023,279,6410-Materials,SUPPLIES & SERVICES,EQUIPMENT FURNITURE & MATERIALS,REVENUE
Walsall Council,http://opendatacommunities.org/id/metropolitan-district-council/walsall ,WC154-135,30.09.2023,RESOURCES AND TRANSFORMATION,A D T FIRE AND SECURITY PLC,08/09/2023,286.62,6310-Security & Alarm Maintenance,PREMISES,REPAIRS & MAINTENANCE,REVENUE
Walsall Council,http://opendatacommunities.org/id/metropolitan-district-council/walsall ,WC154-136,30.09.2023,CHILDRENS,A D T FIRE AND SECURITY PLC,20/09/2023,"1,101.37",6223-Operational Maintenance,PREMISES,REPAIRS & MAINTENANCE,REVENUE
Walsall Council,http://opendatacommunities.org/id/metropolitan-district-council/walsall ,WC154-137,30.09.2023,"ECONOMY, ENVIRONMENT & COMMUNITIES",A F BLAKEMORE & SON LTD,19/09/2023,393.45,6413-Food & Drink Supplies,SUPPLIES & SERVICES,CATERING,REVENUE
Walsall Council,http://opendatacommunities.org/id/metropolitan-district-council/walsall ,WC154-138,30.09.2023,"ECONOMY, ENVIRONMENT & COMMUNITIES",A F BLAKEMORE & SON LTD,19/09/2023,"1,200.67",6413-Food & Drink Supplies,SUPPLIES & SERVICES,CATERING,REVENUE
Walsall Council,http://opendatacommunities.org/id/metropolitan-district-council/walsall ,WC154-139,30.09.2023,"ECONOMY, ENVIRONMENT & COMMUNITIES",A F BLAKEMORE & SON LTD,19/09/2023,756.11,6413-Food & Drink Supplies,SUPPLIES & SERVICES,CATERING,REVENUE
Walsall Council,http://opendatacommunities.org/id/metropolitan-district-council/walsall ,WC154-140,30.09.2023,"ECONOMY, ENVIRONMENT & COMMUNITIES",A F BLAKEMORE & SON LTD,28/09/2023,960.68,6413-Food & Drink Supplies,SUPPLIES & SERVICES,CATERING,REVENUE
Walsall Council,http://opendatacommunities.org/id/metropolitan-district-council/walsall ,WC154-141,30.09.2023,"ECONOMY, ENVIRONMENT & COMMUNITIES",A F BLAKEMORE & SON LTD,28/09/2023,390.58,6413-Food & Drink Supplies,SUPPLIES & SERVICES,CATERING,REVENUE
Walsall Council,http://opendatacommunities.org/id/metropolitan-district-council/walsall ,WC154-142,30.09.2023,"ECONOMY, ENVIRONMENT & COMMUNITIES",A F BLAKEMORE & SON LTD,28/09/2023,665.1,6413-Food & Drink Supplies,SUPPLIES & SERVICES,CATERING,REVENUE
Walsall Council,http://opendatacommunities.org/id/metropolitan-district-council/walsall ,WC154-143,30.09.2023,"ECONOMY, ENVIRONMENT & COMMUNITIES",A F BLAKEMORE & SON LTD,28/09/2023,-397.96,6413-Food & Drink Supplies,SUPPLIES & SERVICES,CATERING,REVENUE
Walsall Council,http://opendatacommunities.org/id/metropolitan-district-council/walsall ,WC154-144,30.09.2023,"ECONOMY, ENVIRONMENT & COMMUNITIES",A F BLAKEMORE & SON LTD,28/09/2023,397.96,6413-Food & Drink Supplies,SUPPLIES & SERVICES,CATERING,REVENUE
Walsall Council,http://opendatacommunities.org/id/metropolitan-district-council/walsall ,WC154-145,30.09.2023,"ECONOMY, ENVIRONMENT & COMMUNITIES",A F BLAKEMORE & SON LTD,28/09/2023,596.81,6413-Food & Drink Supplies,SUPPLIES & SERVICES,CATERING,REVENUE
Walsall Council,http://opendatacommunities.org/id/metropolitan-district-council/walsall ,WC154-146,30.09.2023,CHILDRENS CAPITAL,A H PAINTING,13/09/2023,"1,145.00",7155-Site Works Contractors,CAPITAL,"NEW CONSTRUCTION,CONVERSION & RENOVATION",CAPITAL
Walsall Council,http://opendatacommunities.org/id/metropolitan-district-council/walsall ,WC154-147,30.09.2023,"ECONOMY, ENVIRONMENT & COMMUNITIES",A M PRODUCTIONS (NORTHWEST) LTD,20/09/2023,"4,709.91",6414-Professional Fees & Services,SUPPLIES & SERVICES,SERVICES,REVENUE
Walsall Council,http://opendatacommunities.org/id/metropolitan-district-council/walsall ,WC154-148,30.09.2023,"ECONOMY, ENVIRONMENT & COMMUNITIES",A WAY WITH MEDIA PRODUCTIONS LTD,29/09/2023,"9,993.50",6414-Professional Fees & Services,SUPPLIES & SERVICES,SERVICES,REVENUE
Walsall Council,http://opendatacommunities.org/id/metropolitan-district-council/walsall ,WC154-149,30.09.2023,"ECONOMY, ENVIRONMENT & COMMUNITIES",AAINA COMMUNITY HUB,13/09/2023,"1,666.67",6430-Grants to Other Orgs,SUPPLIES & SERVICES,GRANTS (EXP) & SUBSCRIPTIONS,REVENUE
Walsall Council,http://opendatacommunities.org/id/metropolitan-district-council/walsall ,WC154-150,30.09.2023,ADULT SOCIAL CARE,REDACTED,07/09/2023,"1,126.20",6541-Direct Payment,THIRD PARTY PAYMENTS,PRIVATE CONTRACTOR,REVENUE
Walsall Council,http://opendatacommunities.org/id/metropolitan-district-council/walsall ,WC154-151,30.09.2023,CHILDRENS,ABACUS FOSTERING LTD,05/09/2023,"2,818.88",6223-Independent Foster Care-Oth Agency Provision,THIRD PARTY PAYMENTS,PRIVATE CONTRACTOR,REVENUE
Walsall Council,http://opendatacommunities.org/id/metropolitan-district-council/walsall ,WC154-152,30.09.2023,CHILDRENS,ABACUS FOSTERING LTD,05/09/2023,911.64,6223-Independent Foster Care-Oth Agency Provision,THIRD PARTY PAYMENTS,PRIVATE CONTRACTOR,REVENUE
Walsall Council,http://opendatacommunities.org/id/metropolitan-district-council/walsall ,WC154-153,30.09.2023,CHILDRENS,ABACUS FOSTERING LTD,05/09/2023,"2,984.80",6223-Independent Foster Care-Oth Agency Provision,THIRD PARTY PAYMENTS,PRIVATE CONTRACTOR,REVENUE
Walsall Council,http://opendatacommunities.org/id/metropolitan-district-council/walsall ,WC154-154,30.09.2023,CHILDRENS,ABACUS FOSTERING LTD,05/09/2023,911.64,6223-Independent Foster Care-Oth Agency Provision,THIRD PARTY PAYMENTS,PRIVATE CONTRACTOR,REVENUE
Walsall Council,http://opendatacommunities.org/id/metropolitan-district-council/walsall ,WC154-155,30.09.2023,ADULT SOCIAL CARE,ABBEY HEALTHCARE HOMES LTD,26/09/2023,"3,180.76",6541-Residential,THIRD PARTY PAYMENTS,PRIVATE CONTRACTOR,REVENUE
Walsall Council,http://opendatacommunities.org/id/metropolitan-district-council/walsall ,WC154-156,30.09.2023,ADULT SOCIAL CARE,ABBEY HEALTHCARE HOMES LTD,26/09/2023,"3,180.76",6541-Residential,THIRD PARTY PAYMENTS,PRIVATE CONTRACTOR,REVENUE
Walsall Council,http://opendatacommunities.org/id/metropolitan-district-council/walsall ,WC154-157,30.09.2023,ADULT SOCIAL CARE,ABBEY HEALTHCARE HOMES LTD,26/09/2023,"3,604.84",6541-Residential,THIRD PARTY PAYMENTS,PRIVATE CONTRACTOR,REVENUE
Walsall Council,http://opendatacommunities.org/id/metropolitan-district-council/walsall ,WC154-158,30.09.2023,ADULT SOCIAL CARE,ABBEY HEALTHCARE HOMES LTD,26/09/2023,"2,432.32",6541-Residential,THIRD PARTY PAYMENTS,PRIVATE CONTRACTOR,REVENUE
Walsall Council,http://opendatacommunities.org/id/metropolitan-district-council/walsall ,WC154-159,30.09.2023,ADULT SOCIAL CARE,ABBEY HEALTHCARE HOMES LTD,20/09/2023,"1,314.29",6541-Residential,THIRD PARTY PAYMENTS,PRIVATE CONTRACTOR,REVENUE
Walsall Council,http://opendatacommunities.org/id/metropolitan-district-council/walsall ,WC154-160,30.09.2023,CHILDRENS,ABC DAY NURSERY (WILLENHALL) LIMITED,11/09/2023,"4,339.13",1184-Other-Grants to Other Orgs,SUPPLIES & SERVICES,GRANTS (EXP) & SUBSCRIPTIONS,REVENUE
Walsall Council,http://opendatacommunities.org/id/metropolitan-district-council/walsall ,WC154-161,30.09.2023,CHILDRENS,ABC DAY NURSERY (WILLENHALL) LIMITED,11/09/2023,"13,012.65",1184-Other-Grants to Other Orgs,SUPPLIES & SERVICES,GRANTS (EXP) & SUBSCRIPTIONS,REVENUE
Walsall Council,http://opendatacommunities.org/id/metropolitan-district-council/walsall ,WC154-162,30.09.2023,"ECONOMY, ENVIRONMENT & COMMUNITIES",ABEL ALARM CO LTD,19/09/2023,"1,088.70",6413-Repair & Maintenance of Furniture & Equipment,SUPPLIES & SERVICES,EQUIPMENT FURNITURE & MATERIALS,REVENUE
Walsall Council,http://opendatacommunities.org/id/metropolitan-district-council/walsall ,WC154-163,30.09.2023,"ECONOMY, ENVIRONMENT & COMMUNITIES",ABEL ALARM CO LTD,20/09/2023,"-1,226.00",6413-Repair & Maintenance of Furniture & Equipment,SUPPLIES & SERVICES,EQUIPMENT FURNITURE & MATERIALS,REVENUE
Walsall Council,http://opendatacommunities.org/id/metropolitan-district-council/walsall ,WC154-164,30.09.2023,"ECONOMY, ENVIRONMENT & COMMUNITIES",ABEL ALARM CO LTD,20/09/2023,"1,164.70",6413-Repair & Maintenance of Furniture & Equipment,SUPPLIES & SERVICES,EQUIPMENT FURNITURE & MATERIALS,REVENUE
Walsall Council,http://opendatacommunities.org/id/metropolitan-district-council/walsall ,WC154-165,30.09.2023,"ECONOMY, ENVIRONMENT & COMMUNITIES",ABEL ALARM CO LTD,20/09/2023,"1,226.00",6413-Repair & Maintenance of Furniture & Equipment,SUPPLIES & SERVICES,EQUIPMENT FURNITURE & MATERIALS,REVENUE
Walsall Council,http://opendatacommunities.org/id/metropolitan-district-council/walsall ,WC154-166,30.09.2023,ADULT SOCIAL CARE,REDACTED,07/09/2023,"3,047.80",6541-Direct Payment,THIRD PARTY PAYMENTS,PRIVATE CONTRACTOR,REVENUE
Walsall Council,http://opendatacommunities.org/id/metropolitan-district-council/walsall ,WC154-167,30.09.2023,CHILDRENS,ABIGAILS PLACE LTD,22/09/2023,"20,900.00",1220-Top Up Funding -Grants to Schools,SUPPLIES & SERVICES,GRANTS (EXP) & SUBSCRIPTIONS,REVENUE
Walsall Council,http://opendatacommunities.org/id/metropolitan-district-council/walsall ,WC154-168,30.09.2023,ADULT SOCIAL CARE,ABILITY HEALTHCARE LTD,20/09/2023,"1,422.00",6541-Domiciliary Care,THIRD PARTY PAYMENTS,PRIVATE CONTRACTOR,REVENUE
Walsall Council,http://opendatacommunities.org/id/metropolitan-district-council/walsall ,WC154-169,30.09.2023,ADULT SOCIAL CARE,ABILITY HEALTHCARE LTD,20/09/2023,"1,998.00",6541-Domiciliary Care,THIRD PARTY PAYMENTS,PRIVATE CONTRACTOR,REVENUE
Walsall Council,http://opendatacommunities.org/id/metropolitan-district-council/walsall ,WC154-170,30.09.2023,ADULT SOCIAL CARE,ABILITY HEALTHCARE LTD,20/09/2023,"1,512.00",6541-Domiciliary Care,THIRD PARTY PAYMENTS,PRIVATE CONTRACTOR,REVENUE
Walsall Council,http://opendatacommunities.org/id/metropolitan-district-council/walsall ,WC154-171,30.09.2023,ADULT SOCIAL CARE,ABILITY HEALTHCARE LTD,20/09/2023,"2,223.00",6541-Domiciliary Care,THIRD PARTY PAYMENTS,PRIVATE CONTRACTOR,REVENUE
Walsall Council,http://opendatacommunities.org/id/metropolitan-district-council/walsall ,WC154-172,30.09.2023,ADULT SOCIAL CARE,ABILITY HEALTHCARE LTD,20/09/2023,"2,268.00",6541-Domiciliary Care,THIRD PARTY PAYMENTS,PRIVATE CONTRACTOR,REVENUE
Walsall Council,http://opendatacommunities.org/id/metropolitan-district-council/walsall ,WC154-173,30.09.2023,ADULT SOCIAL CARE,ABILITY HEALTHCARE LTD,20/09/2023,"1,962.00",6541-Domiciliary Care,THIRD PARTY PAYMENTS,PRIVATE CONTRACTOR,REVENUE
Walsall Council,http://opendatacommunities.org/id/metropolitan-district-council/walsall ,WC154-174,30.09.2023,ADULT SOCIAL CARE,ABILITY HEALTHCARE LTD,20/09/2023,"2,268.00",6541-Domiciliary Care,THIRD PARTY PAYMENTS,PRIVATE CONTRACTOR,REVENUE
Walsall Council,http://opendatacommunities.org/id/metropolitan-district-council/walsall ,WC154-175,30.09.2023,ADULT SOCIAL CARE,ABILITY HEALTHCARE LTD,20/09/2023,"2,016.00",6541-Domiciliary Care,THIRD PARTY PAYMENTS,PRIVATE CONTRACTOR,REVENUE
Walsall Council,http://opendatacommunities.org/id/metropolitan-district-council/walsall ,WC154-176,30.09.2023,ADULT SOCIAL CARE,ABILITY HEALTHCARE LTD,20/09/2023,"1,242.00",6541-Domiciliary Care,THIRD PARTY PAYMENTS,PRIVATE CONTRACTOR,REVENUE
Walsall Council,http://opendatacommunities.org/id/metropolitan-district-council/walsall ,WC154-177,30.09.2023,ADULT SOCIAL CARE,ABILITY HEALTHCARE LTD,20/09/2023,"1,134.00",6541-Domiciliary Care,THIRD PARTY PAYMENTS,PRIVATE CONTRACTOR,REVENUE
Walsall Council,http://opendatacommunities.org/id/metropolitan-district-council/walsall ,WC154-178,30.09.2023,ADULT SOCIAL CARE,ABILITY HEALTHCARE LTD,20/09/2023,"2,016.00",6541-Domiciliary Care,THIRD PARTY PAYMENTS,PRIVATE CONTRACTOR,REVENUE
Walsall Council,http://opendatacommunities.org/id/metropolitan-district-council/walsall ,WC154-179,30.09.2023,ADULT SOCIAL CARE,ABILITY HEALTHCARE LTD,20/09/2023,"3,528.00",6541-Domiciliary Care,THIRD PARTY PAYMENTS,PRIVATE CONTRACTOR,REVENUE
Walsall Council,http://opendatacommunities.org/id/metropolitan-district-council/walsall ,WC154-180,30.09.2023,ADULT SOCIAL CARE,ABILITY HEALTHCARE LTD,20/09/2023,"2,016.00",6541-Domiciliary Care,THIRD PARTY PAYMENTS,PRIVATE CONTRACTOR,REVENUE
Walsall Council,http://opendatacommunities.org/id/metropolitan-district-council/walsall ,WC154-181,30.09.2023,ADULT SOCIAL CARE,ABILITY HEALTHCARE LTD,20/09/2023,504,6541-Domiciliary Care,THIRD PARTY PAYMENTS,PRIVATE CONTRACTOR,REVENUE
Walsall Council,http://opendatacommunities.org/id/metropolitan-district-council/walsall ,WC154-182,30.09.2023,ADULT SOCIAL CARE,ABILITY HEALTHCARE LTD,20/09/2023,"1,008.00",6541-Domiciliary Care,THIRD PARTY PAYMENTS,PRIVATE CONTRACTOR,REVENUE
Walsall Council,http://opendatacommunities.org/id/metropolitan-district-council/walsall ,WC154-183,30.09.2023,ADULT SOCIAL CARE,ABILITY HEALTHCARE LTD,20/09/2023,"2,268.00",6541-Domiciliary Care,THIRD PARTY PAYMENTS,PRIVATE CONTRACTOR,REVENUE
Walsall Council,http://opendatacommunities.org/id/metropolitan-district-council/walsall ,WC154-184,30.09.2023,ADULT SOCIAL CARE,ABILITY HEALTHCARE LTD,20/09/2023,"2,772.00",6541-Domiciliary Care,THIRD PARTY PAYMENTS,PRIVATE CONTRACTOR,REVENUE
Walsall Council,http://opendatacommunities.org/id/metropolitan-district-council/walsall ,WC154-185,30.09.2023,ADULT SOCIAL CARE,ABILITY HEALTHCARE LTD,20/09/2023,"2,304.00",6541-Domiciliary Care,THIRD PARTY PAYMENTS,PRIVATE CONTRACTOR,REVENUE
Walsall Council,http://opendatacommunities.org/id/metropolitan-district-council/walsall ,WC154-186,30.09.2023,ADULT SOCIAL CARE,ABILITY HEALTHCARE LTD,20/09/2023,"2,016.00",6541-Domiciliary Care,THIRD PARTY PAYMENTS,PRIVATE CONTRACTOR,REVENUE
Walsall Council,http://opendatacommunities.org/id/metropolitan-district-council/walsall ,WC154-187,30.09.2023,ADULT SOCIAL CARE,ABILITY HEALTHCARE LTD,20/09/2023,"1,656.00",6541-Domiciliary Care,THIRD PARTY PAYMENTS,PRIVATE CONTRACTOR,REVENUE
Walsall Council,http://opendatacommunities.org/id/metropolitan-district-council/walsall ,WC154-188,30.09.2023,ADULT SOCIAL CARE,ABILITY HEALTHCARE LTD,20/09/2023,"2,016.00",6541-Domiciliary Care,THIRD PARTY PAYMENTS,PRIVATE CONTRACTOR,REVENUE
Walsall Council,http://opendatacommunities.org/id/metropolitan-district-council/walsall ,WC154-189,30.09.2023,ADULT SOCIAL CARE,ABILITY HEALTHCARE LTD,20/09/2023,"1,680.00",6541-Domiciliary Care,THIRD PARTY PAYMENTS,PRIVATE CONTRACTOR,REVENUE
Walsall Council,http://opendatacommunities.org/id/metropolitan-district-council/walsall ,WC154-190,30.09.2023,ADULT SOCIAL CARE,ABILITY HEALTHCARE LTD,20/09/2023,"2,268.00",6541-Domiciliary Care,THIRD PARTY PAYMENTS,PRIVATE CONTRACTOR,REVENUE
Walsall Council,http://opendatacommunities.org/id/metropolitan-district-council/walsall ,WC154-191,30.09.2023,ADULT SOCIAL CARE,ABILITY HEALTHCARE LTD,20/09/2023,336,6541-Domiciliary Care,THIRD PARTY PAYMENTS,PRIVATE CONTRACTOR,REVENUE
Walsall Council,http://opendatacommunities.org/id/metropolitan-district-council/walsall ,WC154-192,30.09.2023,ADULT SOCIAL CARE,ABILITY HEALTHCARE LTD,20/09/2023,756,6541-Domiciliary Care,THIRD PARTY PAYMENTS,PRIVATE CONTRACTOR,REVENUE
Walsall Council,http://opendatacommunities.org/id/metropolitan-district-council/walsall ,WC154-193,30.09.2023,ADULT SOCIAL CARE,ABILITY HEALTHCARE LTD,20/09/2023,351,6541-Domiciliary Care,THIRD PARTY PAYMENTS,PRIVATE CONTRACTOR,REVENUE
Walsall Council,http://opendatacommunities.org/id/metropolitan-district-council/walsall ,WC154-194,30.09.2023,ADULT SOCIAL CARE,ABILITY HEALTHCARE LTD,20/09/2023,"1,344.00",6541-Domiciliary Care,THIRD PARTY PAYMENTS,PRIVATE CONTRACTOR,REVENUE
Walsall Council,http://opendatacommunities.org/id/metropolitan-district-council/walsall ,WC154-195,30.09.2023,ADULT SOCIAL CARE,ABILITY HEALTHCARE LTD,20/09/2023,"2,016.00",6541-Domiciliary Care,THIRD PARTY PAYMENTS,PRIVATE CONTRACTOR,REVENUE
Walsall Council,http://opendatacommunities.org/id/metropolitan-district-council/walsall ,WC154-196,30.09.2023,ADULT SOCIAL CARE,ABILITY HEALTHCARE LTD,20/09/2023,"1,260.00",6541-Domiciliary Care,THIRD PARTY PAYMENTS,PRIVATE CONTRACTOR,REVENUE
Walsall Council,http://opendatacommunities.org/id/metropolitan-district-council/walsall ,WC154-197,30.09.2023,ADULT SOCIAL CARE,ABILITY HEALTHCARE LTD,20/09/2023,"1,242.00",6541-Domiciliary Care,THIRD PARTY PAYMENTS,PRIVATE CONTRACTOR,REVENUE
Walsall Council,http://opendatacommunities.org/id/metropolitan-district-council/walsall ,WC154-198,30.09.2023,ADULT SOCIAL CARE,ABILITY HEALTHCARE LTD,20/09/2023,"3,330.00",6541-Domiciliary Care,THIRD PARTY PAYMENTS,PRIVATE CONTRACTOR,REVENUE
Walsall Council,http://opendatacommunities.org/id/metropolitan-district-council/walsall ,WC154-199,30.09.2023,ADULT SOCIAL CARE,ABILITY HEALTHCARE LTD,20/09/2023,612,6541-Domiciliary Care,THIRD PARTY PAYMENTS,PRIVATE CONTRACTOR,REVENUE
Walsall Council,http://opendatacommunities.org/id/metropolitan-district-council/walsall ,WC154-200,30.09.2023,ADULT SOCIAL CARE,ABILITY HEALTHCARE LTD,20/09/2023,409.5,6554-Professional Services-Priv Contractor & Other Agencies,THIRD PARTY PAYMENTS,PRIVATE CONTRACTOR,REVENUE
Walsall Council,http://opendatacommunities.org/id/metropolitan-district-council/walsall ,WC154-201,30.09.2023,ADULT SOCIAL CARE,ABILITY HEALTHCARE LTD,20/09/2023,576,6554-Professional Services-Priv Contractor & Other Agencies,THIRD PARTY PAYMENTS,PRIVATE CONTRACTOR,REVENUE
Walsall Council,http://opendatacommunities.org/id/metropolitan-district-council/walsall ,WC154-202,30.09.2023,ADULT SOCIAL CARE,ABILITY HEALTHCARE LTD,20/09/2023,702,6554-Professional Services-Priv Contractor & Other Agencies,THIRD PARTY PAYMENTS,PRIVATE CONTRACTOR,REVENUE
Walsall Council,http://opendatacommunities.org/id/metropolitan-district-council/walsall ,WC154-203,30.09.2023,ADULT SOCIAL CARE,ABILITY HEALTHCARE LTD,20/09/2023,"1,440.00",6554-Professional Services-Priv Contractor & Other Agencies,THIRD PARTY PAYMENTS,PRIVATE CONTRACTOR,REVENUE
Walsall Council,http://opendatacommunities.org/id/metropolitan-district-council/walsall ,WC154-204,30.09.2023,ADULT SOCIAL CARE,ABILITY HEALTHCARE LTD,20/09/2023,927,6554-Professional Services-Priv Contractor & Other Agencies,THIRD PARTY PAYMENTS,PRIVATE CONTRACTOR,REVENUE
Walsall Council,http://opendatacommunities.org/id/metropolitan-district-council/walsall ,WC154-205,30.09.2023,ADULT SOCIAL CARE,ABILITY HEALTHCARE LTD,20/09/2023,270,6554-Professional Services-Priv Contractor & Other Agencies,THIRD PARTY PAYMENTS,PRIVATE CONTRACTOR,REVENUE
Walsall Council,http://opendatacommunities.org/id/metropolitan-district-council/walsall ,WC154-206,30.09.2023,CHILDRENS,ABILITY SMART LTD,15/09/2023,"3,059.66",6223-Professional Fees & Services,SUPPLIES & SERVICES,SERVICES,REVENUE
Walsall Council,http://opendatacommunities.org/id/metropolitan-district-council/walsall ,WC154-207,30.09.2023,"ECONOMY, ENVIRONMENT & COMMUNITIES",ABLE INVESTIGATIONS & ENFORCEMENTS LTD,20/09/2023,731,6440-Professional Fees & Services,SUPPLIES & SERVICES,SERVICES,REVENUE
Walsall Council,http://opendatacommunities.org/id/metropolitan-district-council/walsall ,WC154-208,30.09.2023,"ECONOMY, ENVIRONMENT & COMMUNITIES",ABLE INVESTIGATIONS & ENFORCEMENTS LTD,27/09/2023,"1,230.00",6440-Professional Fees & Services,SUPPLIES & SERVICES,SERVICES,REVENUE
Walsall Council,http://opendatacommunities.org/id/metropolitan-district-council/walsall ,WC154-209,30.09.2023,ADULT SOCIAL CARE,ABSOLUTE HEALTHCARE SWAN HOUSE LTD,26/09/2023,"2,413.36",6541-Residential EMI,THIRD PARTY PAYMENTS,PRIVATE CONTRACTOR,REVENUE
Walsall Council,http://opendatacommunities.org/id/metropolitan-district-council/walsall ,WC154-210,30.09.2023,ADULT SOCIAL CARE,ABSOLUTE HEALTHCARE SWAN HOUSE LTD,26/09/2023,"2,277.32",6541-Residential,THIRD PARTY PAYMENTS,PRIVATE CONTRACTOR,REVENUE
Walsall Council,http://opendatacommunities.org/id/metropolitan-district-council/walsall ,WC154-211,30.09.2023,ADULT SOCIAL CARE,ABSOLUTE HEALTHCARE SWAN HOUSE LTD,26/09/2023,"2,137.32",6541-Residential,THIRD PARTY PAYMENTS,PRIVATE CONTRACTOR,REVENUE
Walsall Council,http://opendatacommunities.org/id/metropolitan-district-council/walsall ,WC154-212,30.09.2023,ADULT SOCIAL CARE,ABSOLUTE HEALTHCARE SWAN HOUSE LTD,26/09/2023,"2,137.32",6541-Residential,THIRD PARTY PAYMENTS,PRIVATE CONTRACTOR,REVENUE
Walsall Council,http://opendatacommunities.org/id/metropolitan-district-council/walsall ,WC154-213,30.09.2023,ADULT SOCIAL CARE,ABSOLUTE HEALTHCARE SWAN HOUSE LTD,26/09/2023,"2,413.36",6541-Residential EMI,THIRD PARTY PAYMENTS,PRIVATE CONTRACTOR,REVENUE
Walsall Council,http://opendatacommunities.org/id/metropolitan-district-council/walsall ,WC154-214,30.09.2023,ADULT SOCIAL CARE,ABSOLUTE HEALTHCARE SWAN HOUSE LTD,26/09/2023,"3,048.96",6541-Nursing,THIRD PARTY PAYMENTS,PRIVATE CONTRACTOR,REVENUE
Walsall Council,http://opendatacommunities.org/id/metropolitan-district-council/walsall ,WC154-215,30.09.2023,ADULT SOCIAL CARE,ABSOLUTE HEALTHCARE SWAN HOUSE LTD,26/09/2023,"3,336.92",6541-Nursing EMI,THIRD PARTY PAYMENTS,PRIVATE CONTRACTOR,REVENUE
Walsall Council,http://opendatacommunities.org/id/metropolitan-district-council/walsall ,WC154-216,30.09.2023,ADULT SOCIAL CARE,ABSOLUTE HEALTHCARE SWAN HOUSE LTD,26/09/2023,"3,600.00",6541-Residential,THIRD PARTY PAYMENTS,PRIVATE CONTRACTOR,REVENUE
Walsall Council,http://opendatacommunities.org/id/metropolitan-district-council/walsall ,WC154-217,30.09.2023,ADULT SOCIAL CARE,ABSOLUTE HEALTHCARE SWAN HOUSE LTD,26/09/2023,"2,742.86",6554-Professional Services-Priv Contractor & Other Agencies,THIRD PARTY PAYMENTS,PRIVATE CONTRACTOR,REVENUE
Walsall Council,http://opendatacommunities.org/id/metropolitan-district-council/walsall ,WC154-218,30.09.2023,ADULT SOCIAL CARE,ABSOLUTE HEALTHCARE SWAN HOUSE LTD,26/09/2023,"9,126.00",6541-Residential,THIRD PARTY PAYMENTS,PRIVATE CONTRACTOR,REVENUE
Walsall Council,http://opendatacommunities.org/id/metropolitan-district-council/walsall ,WC154-219,30.09.2023,ADULT SOCIAL CARE,ABSOLUTE HEALTHCARE SWAN HOUSE LTD,26/09/2023,428.57,6554-Professional Services-Priv Contractor & Other Agencies,THIRD PARTY PAYMENTS,PRIVATE CONTRACTOR,REVENUE
Walsall Council,http://opendatacommunities.org/id/metropolitan-district-council/walsall ,WC154-220,30.09.2023,ADULT SOCIAL CARE,ABSOLUTE HEALTHCARE SWAN HOUSE LTD,26/09/2023,"1,428.57",6554-Professional Services-Priv Contractor & Other Agencies,THIRD PARTY PAYMENTS,PRIVATE CONTRACTOR,REVENUE
Walsall Council,http://opendatacommunities.org/id/metropolitan-district-council/walsall ,WC154-221,30.09.2023,ADULT SOCIAL CARE,ABSOLUTE HEALTHCARE SWAN HOUSE LTD,26/09/2023,"7,714.29",6541-Nursing EMI,THIRD PARTY PAYMENTS,PRIVATE CONTRACTOR,REVENUE
Walsall Council,http://opendatacommunities.org/id/metropolitan-district-council/walsall ,WC154-222,30.09.2023,ADULT SOCIAL CARE,ABSOLUTE HEALTHCARE SWAN HOUSE LTD,26/09/2023,"2,413.36",6541-Residential EMI,THIRD PARTY PAYMENTS,PRIVATE CONTRACTOR,REVENUE
Walsall Council,http://opendatacommunities.org/id/metropolitan-district-council/walsall ,WC154-223,30.09.2023,ADULT SOCIAL CARE,ABSOLUTE HEALTHCARE SWAN HOUSE LTD,26/09/2023,"2,137.32",6541-Residential,THIRD PARTY PAYMENTS,PRIVATE CONTRACTOR,REVENUE
Walsall Council,http://opendatacommunities.org/id/metropolitan-district-council/walsall ,WC154-224,30.09.2023,ADULT SOCIAL CARE,ABSOLUTE HEALTHCARE SWAN HOUSE LTD,26/09/2023,"5,240.48",6541-Nursing EMI,THIRD PARTY PAYMENTS,PRIVATE CONTRACTOR,REVENUE
Walsall Council,http://opendatacommunities.org/id/metropolitan-district-council/walsall ,WC154-225,30.09.2023,ADULT SOCIAL CARE,ABSOLUTE HEALTHCARE SWAN HOUSE LTD,26/09/2023,"3,000.00",6554-Professional Services-Priv Contractor & Other Agencies,THIRD PARTY PAYMENTS,PRIVATE CONTRACTOR,REVENUE
Walsall Council,http://opendatacommunities.org/id/metropolitan-district-council/walsall ,WC154-226,30.09.2023,ADULT SOCIAL CARE,ABSOLUTE HEALTHCARE SWAN HOUSE LTD,26/09/2023,"1,142.86",6554-Professional Services-Priv Contractor & Other Agencies,THIRD PARTY PAYMENTS,PRIVATE CONTRACTOR,REVENUE
Walsall Council,http://opendatacommunities.org/id/metropolitan-district-council/walsall ,WC154-227,30.09.2023,ADULT SOCIAL CARE,ABSOLUTE HEALTHCARE SWAN HOUSE LTD,26/09/2023,"3,900.00",6554-Professional Services-Priv Contractor & Other Agencies,THIRD PARTY PAYMENTS,PRIVATE CONTRACTOR,REVENUE
Walsall Council,http://opendatacommunities.org/id/metropolitan-district-council/walsall ,WC154-228,30.09.2023,ADULT SOCIAL CARE,ABSOLUTE HEALTHCARE SWAN HOUSE LTD,26/09/2023,"1,421.43",6554-Professional Services-Priv Contractor & Other Agencies,THIRD PARTY PAYMENTS,PRIVATE CONTRACTOR,REVENUE
Walsall Council,http://opendatacommunities.org/id/metropolitan-district-council/walsall ,WC154-229,30.09.2023,ADULT SOCIAL CARE,ABSOLUTE HEALTHCARE SWAN HOUSE LTD,26/09/2023,"2,137.32",6541-Residential,THIRD PARTY PAYMENTS,PRIVATE CONTRACTOR,REVENUE
Walsall Council,http://opendatacommunities.org/id/metropolitan-district-council/walsall ,WC154-230,30.09.2023,ADULT SOCIAL CARE,ABSOLUTE HEALTHCARE SWAN HOUSE LTD,26/09/2023,"2,137.32",6541-Residential,THIRD PARTY PAYMENTS,PRIVATE CONTRACTOR,REVENUE
Walsall Council,http://opendatacommunities.org/id/metropolitan-district-council/walsall ,WC154-231,30.09.2023,ADULT SOCIAL CARE,ABSOLUTE HEALTHCARE SWAN HOUSE LTD,26/09/2023,"1,637.64",6541-Residential EMI,THIRD PARTY PAYMENTS,PRIVATE CONTRACTOR,REVENUE
Walsall Council,http://opendatacommunities.org/id/metropolitan-district-council/walsall ,WC154-232,30.09.2023,ADULT SOCIAL CARE,ABSOLUTE HEALTHCARE SWAN HOUSE LTD,26/09/2023,"3,049.12",6541-Nursing,THIRD PARTY PAYMENTS,PRIVATE CONTRACTOR,REVENUE
Walsall Council,http://opendatacommunities.org/id/metropolitan-district-council/walsall ,WC154-233,30.09.2023,ADULT SOCIAL CARE,ABSOLUTE HEALTHCARE SWAN HOUSE LTD,26/09/2023,555,6554-Professional Services-Priv Contractor & Other Agencies,THIRD PARTY PAYMENTS,PRIVATE CONTRACTOR,REVENUE
Walsall Council,http://opendatacommunities.org/id/metropolitan-district-council/walsall ,WC154-234,30.09.2023,ADULT SOCIAL CARE,ABSOLUTE HEALTHCARE SWAN HOUSE LTD,26/09/2023,"1,000.00",6554-Professional Services-Priv Contractor & Other Agencies,THIRD PARTY PAYMENTS,PRIVATE CONTRACTOR,REVENUE
Walsall Council,http://opendatacommunities.org/id/metropolitan-district-council/walsall ,WC154-235,30.09.2023,ADULT SOCIAL CARE,ABSOLUTE HEALTHCARE SWAN HOUSE LTD,26/09/2023,"3,257.14",6554-Professional Services-Priv Contractor & Other Agencies,THIRD PARTY PAYMENTS,PRIVATE CONTRACTOR,REVENUE
Walsall Council,http://opendatacommunities.org/id/metropolitan-district-council/walsall ,WC154-236,30.09.2023,ADULT SOCIAL CARE,ABSOLUTE HEALTHCARE SWAN HOUSE LTD,26/09/2023,"2,413.36",6541-Residential EMI,THIRD PARTY PAYMENTS,PRIVATE CONTRACTOR,REVENUE
Walsall Council,http://opendatacommunities.org/id/metropolitan-district-council/walsall ,WC154-237,30.09.2023,ADULT SOCIAL CARE,ABSOLUTE HEALTHCARE SWAN HOUSE LTD,26/09/2023,"2,507.14",6554-Professional Services-Priv Contractor & Other Agencies,THIRD PARTY PAYMENTS,PRIVATE CONTRACTOR,REVENUE
Walsall Council,http://opendatacommunities.org/id/metropolitan-district-council/walsall ,WC154-238,30.09.2023,ADULT SOCIAL CARE,ABSOLUTE HEALTHCARE SWAN HOUSE LTD,26/09/2023,"3,900.00",6554-Professional Services-Priv Contractor & Other Agencies,THIRD PARTY PAYMENTS,PRIVATE CONTRACTOR,REVENUE
Walsall Council,http://opendatacommunities.org/id/metropolitan-district-council/walsall ,WC154-239,30.09.2023,ADULT SOCIAL CARE,ABSOLUTE HEALTHCARE SWAN HOUSE LTD,26/09/2023,"3,900.00",6554-Professional Services-Priv Contractor & Other Agencies,THIRD PARTY PAYMENTS,PRIVATE CONTRACTOR,REVENUE
Walsall Council,http://opendatacommunities.org/id/metropolitan-district-council/walsall ,WC154-240,30.09.2023,ADULT SOCIAL CARE,ABSOLUTE HEALTHCARE SWAN HOUSE LTD,26/09/2023,"2,413.36",6541-Residential EMI,THIRD PARTY PAYMENTS,PRIVATE CONTRACTOR,REVENUE
Walsall Council,http://opendatacommunities.org/id/metropolitan-district-council/walsall ,WC154-241,30.09.2023,ADULT SOCIAL CARE,ABSOLUTE HEALTHCARE SWAN HOUSE LTD,26/09/2023,714.29,6554-Professional Services-Priv Contractor & Other Agencies,THIRD PARTY PAYMENTS,PRIVATE CONTRACTOR,REVENUE
Walsall Council,http://opendatacommunities.org/id/metropolitan-district-council/walsall ,WC154-242,30.09.2023,ADULT SOCIAL CARE,ABSOLUTE HEALTHCARE SWAN HOUSE LTD,26/09/2023,"2,132.14",6554-Professional Services-Priv Contractor & Other Agencies,THIRD PARTY PAYMENTS,PRIVATE CONTRACTOR,REVENUE
Walsall Council,http://opendatacommunities.org/id/metropolitan-district-council/walsall ,WC154-243,30.09.2023,ADULT SOCIAL CARE,ABSOLUTE HEALTHCARE SWAN HOUSE LTD,26/09/2023,428.57,6554-Professional Services-Priv Contractor & Other Agencies,THIRD PARTY PAYMENTS,PRIVATE CONTRACTOR,REVENUE
Walsall Council,http://opendatacommunities.org/id/metropolitan-district-council/walsall ,WC154-244,30.09.2023,CHILDRENS,ABU BAKR NURSERY,11/09/2023,"5,206.95",1184-Other-Grants to Other Orgs,SUPPLIES & SERVICES,GRANTS (EXP) & SUBSCRIPTIONS,REVENUE
Walsall Council,http://opendatacommunities.org/id/metropolitan-district-council/walsall ,WC154-245,30.09.2023,CHILDRENS,ABU BAKR NURSERY,11/09/2023,"13,778.10",1184-Other-Grants to Other Orgs,SUPPLIES & SERVICES,GRANTS (EXP) & SUBSCRIPTIONS,REVENUE
Walsall Council,http://opendatacommunities.org/id/metropolitan-district-council/walsall ,WC154-246,30.09.2023,CHILDRENS,ABU BAKR NURSERY,11/09/2023,"-1,827.00",1184-Other-Grants to Other Orgs,SUPPLIES & SERVICES,GRANTS (EXP) & SUBSCRIPTIONS,REVENUE
Walsall Council,http://opendatacommunities.org/id/metropolitan-district-council/walsall ,WC154-247,30.09.2023,CHILDRENS,ABU BAKR NURSERY,11/09/2023,-889.2,1184-Other-Grants to Other Orgs,SUPPLIES & SERVICES,GRANTS (EXP) & SUBSCRIPTIONS,REVENUE
Walsall Council,http://opendatacommunities.org/id/metropolitan-district-council/walsall ,WC154-248,30.09.2023,CHILDRENS,ACADEMY 21 LTD,26/09/2023,936,1217-Professional Fees & Services,SUPPLIES & SERVICES,SERVICES,REVENUE
Walsall Council,http://opendatacommunities.org/id/metropolitan-district-council/walsall ,WC154-249,30.09.2023,CHILDRENS,ACADEMY 21 LTD,26/09/2023,"2,200.00",1217-Professional Fees & Services,SUPPLIES & SERVICES,SERVICES,REVENUE
Walsall Council,http://opendatacommunities.org/id/metropolitan-district-council/walsall ,WC154-250,30.09.2023,CHILDRENS,ACADEMY 21 LTD,26/09/2023,"2,886.00",1217-Professional Fees & Services,SUPPLIES & SERVICES,SERVICES,REVENUE
Walsall Council,http://opendatacommunities.org/id/metropolitan-district-council/walsall ,WC154-251,30.09.2023,ADULT SOCIAL CARE,ACCESS UK LTD ,06/09/2023,"18,315.00",6551-Professional Fees & Services,SUPPLIES & SERVICES,SERVICES,REVENUE
Walsall Council,http://opendatacommunities.org/id/metropolitan-district-council/walsall ,WC154-252,30.09.2023,ADULT SOCIAL CARE,ACCORD HOUSING ASSOCIATION LIMITED - HOBS MEADOW,26/09/2023,"4,776.84",6541-Residential,THIRD PARTY PAYMENTS,PRIVATE CONTRACTOR,REVENUE
Walsall Council,http://opendatacommunities.org/id/metropolitan-district-council/walsall ,WC154-253,30.09.2023,ADULT SOCIAL CARE,ACCORD HOUSING ASSOCIATION LIMITED - HOBS MEADOW,26/09/2023,"4,776.84",6541-Residential,THIRD PARTY PAYMENTS,PRIVATE CONTRACTOR,REVENUE
Walsall Council,http://opendatacommunities.org/id/metropolitan-district-council/walsall ,WC154-254,30.09.2023,ADULT SOCIAL CARE,ACCORD HOUSING ASSOCIATION LIMITED - HOBS MEADOW,26/09/2023,"4,776.84",6541-Residential,THIRD PARTY PAYMENTS,PRIVATE CONTRACTOR,REVENUE
Walsall Council,http://opendatacommunities.org/id/metropolitan-district-council/walsall ,WC154-255,30.09.2023,ADULT SOCIAL CARE,ACCORD HOUSING ASSOCIATION LIMITED - HOBS MEADOW,26/09/2023,"4,776.84",6541-Residential,THIRD PARTY PAYMENTS,PRIVATE CONTRACTOR,REVENUE
Walsall Council,http://opendatacommunities.org/id/metropolitan-district-council/walsall ,WC154-256,30.09.2023,CHILDRENS,ACE COACHING LIMITED,21/09/2023,"3,872.00",6211-Professional Fees & Services,SUPPLIES & SERVICES,SERVICES,REVENUE
Walsall Council,http://opendatacommunities.org/id/metropolitan-district-council/walsall ,WC154-257,30.09.2023,ADULT SOCIAL CARE,ACEPAY LTD (COTTAGE NUR HOME),26/09/2023,"2,505.36",6541-Nursing,THIRD PARTY PAYMENTS,PRIVATE CONTRACTOR,REVENUE
Walsall Council,http://opendatacommunities.org/id/metropolitan-district-council/walsall ,WC154-258,30.09.2023,ADULT SOCIAL CARE,ACEPAY LTD (COTTAGE NUR HOME),26/09/2023,"2,505.36",6541-Nursing,THIRD PARTY PAYMENTS,PRIVATE CONTRACTOR,REVENUE
Walsall Council,http://opendatacommunities.org/id/metropolitan-district-council/walsall ,WC154-259,30.09.2023,ADULT SOCIAL CARE,ACEPAY LTD (COTTAGE NUR HOME),26/09/2023,"2,819.08",6541-Nursing EMI,THIRD PARTY PAYMENTS,PRIVATE CONTRACTOR,REVENUE
Walsall Council,http://opendatacommunities.org/id/metropolitan-district-council/walsall ,WC154-260,30.09.2023,ADULT SOCIAL CARE,ACEPAY LTD (COTTAGE NUR HOME),26/09/2023,"2,413.36",6541-Residential EMI,THIRD PARTY PAYMENTS,PRIVATE CONTRACTOR,REVENUE
Walsall Council,http://opendatacommunities.org/id/metropolitan-district-council/walsall ,WC154-261,30.09.2023,ADULT SOCIAL CARE,ACEPAY LTD (COTTAGE NUR HOME),26/09/2023,"2,505.36",6541-Nursing,THIRD PARTY PAYMENTS,PRIVATE CONTRACTOR,REVENUE
Walsall Council,http://opendatacommunities.org/id/metropolitan-district-council/walsall ,WC154-262,30.09.2023,ADULT SOCIAL CARE,ACEPAY LTD (COTTAGE NUR HOME),26/09/2023,"2,505.36",6541-Nursing,THIRD PARTY PAYMENTS,PRIVATE CONTRACTOR,REVENUE
Walsall Council,http://opendatacommunities.org/id/metropolitan-district-council/walsall ,WC154-263,30.09.2023,ADULT SOCIAL CARE,ACEPAY LTD (COTTAGE NUR HOME),26/09/2023,"2,505.36",6541-Nursing,THIRD PARTY PAYMENTS,PRIVATE CONTRACTOR,REVENUE
Walsall Council,http://opendatacommunities.org/id/metropolitan-district-council/walsall ,WC154-264,30.09.2023,ADULT SOCIAL CARE,ACEPAY LTD (COTTAGE NUR HOME),26/09/2023,"2,505.36",6541-Nursing,THIRD PARTY PAYMENTS,PRIVATE CONTRACTOR,REVENUE
Walsall Council,http://opendatacommunities.org/id/metropolitan-district-council/walsall ,WC154-265,30.09.2023,ADULT SOCIAL CARE,ACEPAY LTD (COTTAGE NUR HOME),26/09/2023,"2,505.36",6541-Nursing,THIRD PARTY PAYMENTS,PRIVATE CONTRACTOR,REVENUE
Walsall Council,http://opendatacommunities.org/id/metropolitan-district-council/walsall ,WC154-266,30.09.2023,ADULT SOCIAL CARE,ACEPAY LTD (COTTAGE NUR HOME),26/09/2023,"1,073.73",6541-Nursing,THIRD PARTY PAYMENTS,PRIVATE CONTRACTOR,REVENUE
Walsall Council,http://opendatacommunities.org/id/metropolitan-district-council/walsall ,WC154-267,30.09.2023,ADULT SOCIAL CARE,ACEPAY LTD (COTTAGE NUR HOME),26/09/2023,"2,505.36",6541-Nursing,THIRD PARTY PAYMENTS,PRIVATE CONTRACTOR,REVENUE
Walsall Council,http://opendatacommunities.org/id/metropolitan-district-council/walsall ,WC154-268,30.09.2023,ADULT SOCIAL CARE,ACEPAY LTD (COTTAGE NUR HOME),26/09/2023,"2,505.36",6541-Nursing,THIRD PARTY PAYMENTS,PRIVATE CONTRACTOR,REVENUE
Walsall Council,http://opendatacommunities.org/id/metropolitan-district-council/walsall ,WC154-269,30.09.2023,ADULT SOCIAL CARE,ACEPAY LTD (COTTAGE NUR HOME),26/09/2023,"2,819.08",6541-Nursing EMI,THIRD PARTY PAYMENTS,PRIVATE CONTRACTOR,REVENUE
Walsall Council,http://opendatacommunities.org/id/metropolitan-district-council/walsall ,WC154-270,30.09.2023,ADULT SOCIAL CARE,ACEPAY LTD (COTTAGE NUR HOME),26/09/2023,"3,059.08",6541-Nursing EMI,THIRD PARTY PAYMENTS,PRIVATE CONTRACTOR,REVENUE
Walsall Council,http://opendatacommunities.org/id/metropolitan-district-council/walsall ,WC154-271,30.09.2023,ADULT SOCIAL CARE,ACEPAY LTD (COTTAGE NUR HOME),26/09/2023,"2,505.36",6541-Nursing,THIRD PARTY PAYMENTS,PRIVATE CONTRACTOR,REVENUE
Walsall Council,http://opendatacommunities.org/id/metropolitan-district-council/walsall ,WC154-272,30.09.2023,ADULT SOCIAL CARE,ACEPAY LTD (COTTAGE NUR HOME),26/09/2023,"2,819.08",6541-Nursing EMI,THIRD PARTY PAYMENTS,PRIVATE CONTRACTOR,REVENUE
Walsall Council,http://opendatacommunities.org/id/metropolitan-district-council/walsall ,WC154-273,30.09.2023,ADULT SOCIAL CARE,ACEPAY LTD (COTTAGE NUR HOME),26/09/2023,"2,413.36",6541-Residential EMI,THIRD PARTY PAYMENTS,PRIVATE CONTRACTOR,REVENUE
Walsall Council,http://opendatacommunities.org/id/metropolitan-district-council/walsall ,WC154-274,30.09.2023,ADULT SOCIAL CARE,ACEPAY LTD (COTTAGE NUR HOME),26/09/2023,"2,413.36",6541-Residential EMI,THIRD PARTY PAYMENTS,PRIVATE CONTRACTOR,REVENUE
Walsall Council,http://opendatacommunities.org/id/metropolitan-district-council/walsall ,WC154-275,30.09.2023,ADULT SOCIAL CARE,ACEPAY LTD (COTTAGE NUR HOME),26/09/2023,"2,819.08",6541-Nursing EMI,THIRD PARTY PAYMENTS,PRIVATE CONTRACTOR,REVENUE
Walsall Council,http://opendatacommunities.org/id/metropolitan-district-council/walsall ,WC154-276,30.09.2023,ADULT SOCIAL CARE,ACEPAY LTD (COTTAGE NUR HOME),26/09/2023,"2,505.36",6541-Nursing,THIRD PARTY PAYMENTS,PRIVATE CONTRACTOR,REVENUE
Walsall Council,http://opendatacommunities.org/id/metropolitan-district-council/walsall ,WC154-277,30.09.2023,ADULT SOCIAL CARE,ACEPAY LTD (COTTAGE NUR HOME),26/09/2023,"2,413.36",6541-Residential EMI,THIRD PARTY PAYMENTS,PRIVATE CONTRACTOR,REVENUE
Walsall Council,http://opendatacommunities.org/id/metropolitan-district-council/walsall ,WC154-278,30.09.2023,ADULT SOCIAL CARE,ACHIEVE TOGETHER LIMITED,26/09/2023,"5,506.08",6541-Residential,THIRD PARTY PAYMENTS,PRIVATE CONTRACTOR,REVENUE
Walsall Council,http://opendatacommunities.org/id/metropolitan-district-council/walsall ,WC154-279,30.09.2023,ADULT SOCIAL CARE,ACHIEVE TOGETHER LIMITED,26/09/2023,"9,178.80",6541-Residential,THIRD PARTY PAYMENTS,PRIVATE CONTRACTOR,REVENUE
Walsall Council,http://opendatacommunities.org/id/metropolitan-district-council/walsall ,WC154-280,30.09.2023,ADULT SOCIAL CARE,ACHIEVE TOGETHER LIMITED,26/09/2023,"3,852.80",6541-Residential,THIRD PARTY PAYMENTS,PRIVATE CONTRACTOR,REVENUE
Walsall Council,http://opendatacommunities.org/id/metropolitan-district-council/walsall ,WC154-281,30.09.2023,ADULT SOCIAL CARE,ACHIEVE TOGETHER LIMITED,26/09/2023,"4,920.72",6541-Residential,THIRD PARTY PAYMENTS,PRIVATE CONTRACTOR,REVENUE
Walsall Council,http://opendatacommunities.org/id/metropolitan-district-council/walsall ,WC154-282,30.09.2023,ADULT SOCIAL CARE,ACHIEVE TOGETHER LIMITED,26/09/2023,"6,572.72",6541-Residential,THIRD PARTY PAYMENTS,PRIVATE CONTRACTOR,REVENUE
Walsall Council,http://opendatacommunities.org/id/metropolitan-district-council/walsall ,WC154-283,30.09.2023,CHILDRENS,ACORN CARE & EDUCATION LTD (SALES),29/09/2023,"21,371.67",1220-Top Up Funding -Grants to Schools,SUPPLIES & SERVICES,GRANTS (EXP) & SUBSCRIPTIONS,REVENUE
Walsall Council,http://opendatacommunities.org/id/metropolitan-district-council/walsall ,WC154-284,30.09.2023,CHILDRENS,ACORN CARE & EDUCATION LTD (SALES),21/09/2023,"21,371.67",1220-Top Up Funding -Grants to Schools,SUPPLIES & SERVICES,GRANTS (EXP) & SUBSCRIPTIONS,REVENUE
Walsall Council,http://opendatacommunities.org/id/metropolitan-district-council/walsall ,WC154-285,30.09.2023,CHILDRENS,ACORN CARE & EDUCATION LTD (SALES),29/09/2023,"21,385.00",1220-Top Up Funding -Grants to Schools,SUPPLIES & SERVICES,GRANTS (EXP) & SUBSCRIPTIONS,REVENUE
Walsall Council,http://opendatacommunities.org/id/metropolitan-district-council/walsall ,WC154-286,30.09.2023,CHILDRENS,ACORN CARE & EDUCATION LTD (SALES),29/09/2023,"27,653.66",1220-Professional Fees & Services,SUPPLIES & SERVICES,SERVICES,REVENUE
Walsall Council,http://opendatacommunities.org/id/metropolitan-district-council/walsall ,WC154-287,30.09.2023,CHILDRENS,ACORN CARE & EDUCATION LTD (SALES),29/09/2023,"-24,705.00",1220-Professional Fees & Services,SUPPLIES & SERVICES,SERVICES,REVENUE
Walsall Council,http://opendatacommunities.org/id/metropolitan-district-council/walsall ,WC154-288,30.09.2023,CHILDRENS,ACORN CARE & EDUCATION LTD (SALES),29/09/2023,"24,705.00",1220-Professional Fees & Services,SUPPLIES & SERVICES,SERVICES,REVENUE
Walsall Council,http://opendatacommunities.org/id/metropolitan-district-council/walsall ,WC154-289,30.09.2023,CHILDRENS,ACORN CARE & EDUCATION LTD (SALES),29/09/2023,"22,710.66",1220-Professional Fees & Services,SUPPLIES & SERVICES,SERVICES,REVENUE
Walsall Council,http://opendatacommunities.org/id/metropolitan-district-council/walsall ,WC154-290,30.09.2023,CHILDRENS,ACORN CARE & EDUCATION LTD (SALES),05/09/2023,"21,011.60",6223-External Residential Care-Oth Agency Provision,THIRD PARTY PAYMENTS,PRIVATE CONTRACTOR,REVENUE
Walsall Council,http://opendatacommunities.org/id/metropolitan-district-council/walsall ,WC154-291,30.09.2023,CHILDRENS,ACORN FOSTERING SERVICES LTD,05/09/2023,"3,340.00",6223-Independent Foster Care-Oth Agency Provision,THIRD PARTY PAYMENTS,PRIVATE CONTRACTOR,REVENUE
Walsall Council,http://opendatacommunities.org/id/metropolitan-district-council/walsall ,WC154-292,30.09.2023,CHILDRENS CAPITAL,ACORN MOBILITY SERVICES LTD/ACORN STAIRLIFTS,26/09/2023,"2,999.99",7100-Private Grants,CAPITAL,CAPITAL GRANTS,CAPITAL GRANTS
Walsall Council,http://opendatacommunities.org/id/metropolitan-district-council/walsall ,WC154-293,30.09.2023,CHILDRENS CAPITAL,ACORN MOBILITY SERVICES LTD/ACORN STAIRLIFTS,26/09/2023,"-2,885.90",7100-Private Grants,CAPITAL,CAPITAL GRANTS,CAPITAL GRANTS
Walsall Council,http://opendatacommunities.org/id/metropolitan-district-council/walsall ,WC154-294,30.09.2023,CHILDRENS CAPITAL,ACORN MOBILITY SERVICES LTD/ACORN STAIRLIFTS,26/09/2023,"-2,885.00",7100-Private Grants,CAPITAL,CAPITAL GRANTS,CAPITAL GRANTS
Walsall Council,http://opendatacommunities.org/id/metropolitan-district-council/walsall ,WC154-295,30.09.2023,CHILDRENS CAPITAL,ACORN MOBILITY SERVICES LTD/ACORN STAIRLIFTS,26/09/2023,"2,885.00",7100-Private Grants,CAPITAL,CAPITAL GRANTS,CAPITAL GRANTS
Walsall Council,http://opendatacommunities.org/id/metropolitan-district-council/walsall ,WC154-296,30.09.2023,CHILDRENS CAPITAL,ACORN MOBILITY SERVICES LTD/ACORN STAIRLIFTS,26/09/2023,"2,885.90",7100-Private Grants,CAPITAL,CAPITAL GRANTS,CAPITAL GRANTS
Walsall Council,http://opendatacommunities.org/id/metropolitan-district-council/walsall ,WC154-297,30.09.2023,CHILDRENS CAPITAL,ACORN MOBILITY SERVICES LTD/ACORN STAIRLIFTS,28/09/2023,"-7,485.00",7100-Private Grants,CAPITAL,CAPITAL GRANTS,CAPITAL GRANTS
Walsall Council,http://opendatacommunities.org/id/metropolitan-district-council/walsall ,WC154-298,30.09.2023,CHILDRENS CAPITAL,ACORN MOBILITY SERVICES LTD/ACORN STAIRLIFTS,28/09/2023,"7,485.00",7100-Private Grants,CAPITAL,CAPITAL GRANTS,CAPITAL GRANTS
Walsall Council,http://opendatacommunities.org/id/metropolitan-district-council/walsall ,WC154-299,30.09.2023,CHILDRENS,ACTIVE CARE SOLUTIONS LTD,05/09/2023,"3,514.80",6223-Independent Foster Care-Oth Agency Provision,THIRD PARTY PAYMENTS,PRIVATE CONTRACTOR,REVENUE
Walsall Council,http://opendatacommunities.org/id/metropolitan-district-council/walsall ,WC154-300,30.09.2023,CHILDRENS,ACTIVE CARE SOLUTIONS LTD,05/09/2023,"3,514.60",6223-Independent Foster Care-Oth Agency Provision,THIRD PARTY PAYMENTS,PRIVATE CONTRACTOR,REVENUE
Walsall Council,http://opendatacommunities.org/id/metropolitan-district-council/walsall ,WC154-301,30.09.2023,CHILDRENS,ACTIVE CARE SOLUTIONS LTD,05/09/2023,"3,317.56",6223-Independent Foster Care-Oth Agency Provision,THIRD PARTY PAYMENTS,PRIVATE CONTRACTOR,REVENUE
Walsall Council,http://opendatacommunities.org/id/metropolitan-district-council/walsall ,WC154-302,30.09.2023,CHILDRENS,ACTIVE YOUNG PEOPLE LTD/IVETSEY BANK HOSPITAL - FORMERLY HUNTERCOMBE YOUNG PEOPLE LTD,21/09/2023,612.5,1220-Top Up Funding -Grants to Schools,SUPPLIES & SERVICES,GRANTS (EXP) & SUBSCRIPTIONS,REVENUE
Walsall Council,http://opendatacommunities.org/id/metropolitan-district-council/walsall ,WC154-303,30.09.2023,"ECONOMY, ENVIRONMENT & COMMUNITIES",ACTIVITY GYM LTD,06/09/2023,"3,500.00",6413-Fees & Licences,SUPPLIES & SERVICES,SERVICES,REVENUE
Walsall Council,http://opendatacommunities.org/id/metropolitan-district-council/walsall ,WC154-304,30.09.2023,CHILDRENS,ACTIVITY GYM LTD,21/09/2023,861.2,6211-Professional Fees & Services,SUPPLIES & SERVICES,SERVICES,REVENUE
Walsall Council,http://opendatacommunities.org/id/metropolitan-district-council/walsall ,WC154-305,30.09.2023,"ECONOMY, ENVIRONMENT & COMMUNITIES",ACTIVITY GYM LTD,15/09/2023,"3,500.00",6413-Events & Visual Arts,SUPPLIES & SERVICES,SERVICES,REVENUE
Walsall Council,http://opendatacommunities.org/id/metropolitan-district-council/walsall ,WC154-306,30.09.2023,ADULT SOCIAL CARE,REDACTED,07/09/2023,934.9,6541-Direct Payment,THIRD PARTY PAYMENTS,PRIVATE CONTRACTOR,REVENUE
Walsall Council,http://opendatacommunities.org/id/metropolitan-district-council/walsall ,WC154-307,30.09.2023,CHILDRENS,REDACTED,20/09/2023,350.96,6223-Residents Orders,TRANSFER PAYMENTS,CHILDREN SOCIAL SERVICES CLIENT,REVENUE
Walsall Council,http://opendatacommunities.org/id/metropolitan-district-council/walsall ,WC154-308,30.09.2023,ADULT SOCIAL CARE,REDACTED,07/09/2023,"2,722.25",6541-Direct Payment,THIRD PARTY PAYMENTS,PRIVATE CONTRACTOR,REVENUE
Walsall Council,http://opendatacommunities.org/id/metropolitan-district-council/walsall ,WC154-309,30.09.2023,ADULT SOCIAL CARE,ADVANCE HEALTH CARE (UK) LTD,20/09/2023,384,6541-Domiciliary Care,THIRD PARTY PAYMENTS,PRIVATE CONTRACTOR,REVENUE
Walsall Council,http://opendatacommunities.org/id/metropolitan-district-council/walsall ,WC154-310,30.09.2023,ADULT SOCIAL CARE,ADVANCE HEALTH CARE (UK) LTD,20/09/2023,"1,134.00",6541-Domiciliary Care,THIRD PARTY PAYMENTS,PRIVATE CONTRACTOR,REVENUE
Walsall Council,http://opendatacommunities.org/id/metropolitan-district-council/walsall ,WC154-311,30.09.2023,ADULT SOCIAL CARE,ADVANCE HEALTH CARE (UK) LTD,20/09/2023,"1,050.00",6541-Domiciliary Care,THIRD PARTY PAYMENTS,PRIVATE CONTRACTOR,REVENUE
Walsall Council,http://opendatacommunities.org/id/metropolitan-district-council/walsall ,WC154-312,30.09.2023,ADULT SOCIAL CARE,ADVANCE HEALTH CARE (UK) LTD,20/09/2023,"1,242.00",6541-Domiciliary Care,THIRD PARTY PAYMENTS,PRIVATE CONTRACTOR,REVENUE
Walsall Council,http://opendatacommunities.org/id/metropolitan-district-council/walsall ,WC154-313,30.09.2023,ADULT SOCIAL CARE,ADVANCE HEALTH CARE (UK) LTD,20/09/2023,"1,134.00",6541-Domiciliary Care,THIRD PARTY PAYMENTS,PRIVATE CONTRACTOR,REVENUE
Walsall Council,http://opendatacommunities.org/id/metropolitan-district-council/walsall ,WC154-314,30.09.2023,ADULT SOCIAL CARE,ADVANCE HEALTH CARE (UK) LTD,20/09/2023,840,6541-Domiciliary Care,THIRD PARTY PAYMENTS,PRIVATE CONTRACTOR,REVENUE
Walsall Council,http://opendatacommunities.org/id/metropolitan-district-council/walsall ,WC154-315,30.09.2023,ADULT SOCIAL CARE,ADVANCE HEALTH CARE (UK) LTD,20/09/2023,270,6541-Domiciliary Care,THIRD PARTY PAYMENTS,PRIVATE CONTRACTOR,REVENUE
Walsall Council,http://opendatacommunities.org/id/metropolitan-district-council/walsall ,WC154-316,30.09.2023,ADULT SOCIAL CARE,ADVANCE HEALTH CARE (UK) LTD,20/09/2023,"1,050.00",6541-Domiciliary Care,THIRD PARTY PAYMENTS,PRIVATE CONTRACTOR,REVENUE
Walsall Council,http://opendatacommunities.org/id/metropolitan-district-council/walsall ,WC154-317,30.09.2023,ADULT SOCIAL CARE,ADVANCE HEALTH CARE (UK) LTD,20/09/2023,"1,066.50",6541-Domiciliary Care,THIRD PARTY PAYMENTS,PRIVATE CONTRACTOR,REVENUE
Walsall Council,http://opendatacommunities.org/id/metropolitan-district-council/walsall ,WC154-318,30.09.2023,ADULT SOCIAL CARE,ADVANCE HEALTH CARE (UK) LTD,20/09/2023,888,6541-Domiciliary Care,THIRD PARTY PAYMENTS,PRIVATE CONTRACTOR,REVENUE
Walsall Council,http://opendatacommunities.org/id/metropolitan-district-council/walsall ,WC154-319,30.09.2023,ADULT SOCIAL CARE,ADVANCE HEALTH CARE (UK) LTD,20/09/2023,546,6541-Domiciliary Care,THIRD PARTY PAYMENTS,PRIVATE CONTRACTOR,REVENUE
Walsall Council,http://opendatacommunities.org/id/metropolitan-district-council/walsall ,WC154-320,30.09.2023,ADULT SOCIAL CARE,ADVANCE HEALTH CARE (UK) LTD,20/09/2023,691.5,6541-Domiciliary Care,THIRD PARTY PAYMENTS,PRIVATE CONTRACTOR,REVENUE
Walsall Council,http://opendatacommunities.org/id/metropolitan-district-council/walsall ,WC154-321,30.09.2023,ADULT SOCIAL CARE,ADVANCE HEALTH CARE (UK) LTD,12/09/2023,378,6541-Domiciliary Care,THIRD PARTY PAYMENTS,PRIVATE CONTRACTOR,REVENUE
Walsall Council,http://opendatacommunities.org/id/metropolitan-district-council/walsall ,WC154-322,30.09.2023,ADULT SOCIAL CARE,ADVANCE HEALTH CARE (UK) LTD,12/09/2023,283.5,6541-Domiciliary Care,THIRD PARTY PAYMENTS,PRIVATE CONTRACTOR,REVENUE
Walsall Council,http://opendatacommunities.org/id/metropolitan-district-council/walsall ,WC154-323,30.09.2023,ADULT SOCIAL CARE,ADVANCE HEALTH CARE (UK) LTD,12/09/2023,420,6541-Domiciliary Care,THIRD PARTY PAYMENTS,PRIVATE CONTRACTOR,REVENUE
Walsall Council,http://opendatacommunities.org/id/metropolitan-district-council/walsall ,WC154-324,30.09.2023,ADULT SOCIAL CARE,ADVANCE HEALTH CARE (UK) LTD,12/09/2023,567,6541-Domiciliary Care,THIRD PARTY PAYMENTS,PRIVATE CONTRACTOR,REVENUE
Walsall Council,http://opendatacommunities.org/id/metropolitan-district-council/walsall ,WC154-325,30.09.2023,ADULT SOCIAL CARE,ADVANCE HEALTH CARE (UK) LTD,12/09/2023,567,6541-Domiciliary Care,THIRD PARTY PAYMENTS,PRIVATE CONTRACTOR,REVENUE
Walsall Council,http://opendatacommunities.org/id/metropolitan-district-council/walsall ,WC154-326,30.09.2023,ADULT SOCIAL CARE,ADVANCE HEALTH CARE (UK) LTD,12/09/2023,630,6541-Domiciliary Care,THIRD PARTY PAYMENTS,PRIVATE CONTRACTOR,REVENUE
Walsall Council,http://opendatacommunities.org/id/metropolitan-district-council/walsall ,WC154-327,30.09.2023,ADULT SOCIAL CARE,ADVANCE HEALTH CARE (UK) LTD,12/09/2023,441,6541-Domiciliary Care,THIRD PARTY PAYMENTS,PRIVATE CONTRACTOR,REVENUE
Walsall Council,http://opendatacommunities.org/id/metropolitan-district-council/walsall ,WC154-328,30.09.2023,ADULT SOCIAL CARE,ADVANCE HEALTH CARE (UK) LTD,12/09/2023,252,6541-Domiciliary Care,THIRD PARTY PAYMENTS,PRIVATE CONTRACTOR,REVENUE
Walsall Council,http://opendatacommunities.org/id/metropolitan-district-council/walsall ,WC154-329,30.09.2023,ADULT SOCIAL CARE,ADVANCE HEALTH CARE (UK) LTD,12/09/2023,378,6541-Domiciliary Care,THIRD PARTY PAYMENTS,PRIVATE CONTRACTOR,REVENUE
Walsall Council,http://opendatacommunities.org/id/metropolitan-district-council/walsall ,WC154-330,30.09.2023,ADULT SOCIAL CARE,ADVANCE HEALTH CARE (UK) LTD,12/09/2023,504,6541-Domiciliary Care,THIRD PARTY PAYMENTS,PRIVATE CONTRACTOR,REVENUE
Walsall Council,http://opendatacommunities.org/id/metropolitan-district-council/walsall ,WC154-331,30.09.2023,ADULT SOCIAL CARE,ADVANCE HEALTH CARE (UK) LTD,12/09/2023,441,6541-Domiciliary Care,THIRD PARTY PAYMENTS,PRIVATE CONTRACTOR,REVENUE
Walsall Council,http://opendatacommunities.org/id/metropolitan-district-council/walsall ,WC154-332,30.09.2023,ADULT SOCIAL CARE,ADVANCE HEALTH CARE (UK) LTD,12/09/2023,567,6541-Domiciliary Care,THIRD PARTY PAYMENTS,PRIVATE CONTRACTOR,REVENUE
Walsall Council,http://opendatacommunities.org/id/metropolitan-district-council/walsall ,WC154-333,30.09.2023,ADULT SOCIAL CARE,ADVANCE HEALTH CARE (UK) LTD,12/09/2023,630,6541-Domiciliary Care,THIRD PARTY PAYMENTS,PRIVATE CONTRACTOR,REVENUE
Walsall Council,http://opendatacommunities.org/id/metropolitan-district-council/walsall ,WC154-334,30.09.2023,ADULT SOCIAL CARE,ADVANCE HEALTH CARE (UK) LTD,12/09/2023,441,6541-Domiciliary Care,THIRD PARTY PAYMENTS,PRIVATE CONTRACTOR,REVENUE
Walsall Council,http://opendatacommunities.org/id/metropolitan-district-council/walsall ,WC154-335,30.09.2023,ADULT SOCIAL CARE,ADVANCE HEALTH CARE (UK) LTD,12/09/2023,567,6541-Domiciliary Care,THIRD PARTY PAYMENTS,PRIVATE CONTRACTOR,REVENUE
Walsall Council,http://opendatacommunities.org/id/metropolitan-district-council/walsall ,WC154-336,30.09.2023,ADULT SOCIAL CARE,ADVANCE HEALTH CARE (UK) LTD,12/09/2023,666,6541-Domiciliary Care,THIRD PARTY PAYMENTS,PRIVATE CONTRACTOR,REVENUE
Walsall Council,http://opendatacommunities.org/id/metropolitan-district-council/walsall ,WC154-337,30.09.2023,ADULT SOCIAL CARE,ADVANCE HEALTH CARE (UK) LTD,12/09/2023,963,6541-Domiciliary Care,THIRD PARTY PAYMENTS,PRIVATE CONTRACTOR,REVENUE
Walsall Council,http://opendatacommunities.org/id/metropolitan-district-council/walsall ,WC154-338,30.09.2023,ADULT SOCIAL CARE,ADVANCE HEALTH CARE (UK) LTD,12/09/2023,441,6541-Domiciliary Care,THIRD PARTY PAYMENTS,PRIVATE CONTRACTOR,REVENUE
Walsall Council,http://opendatacommunities.org/id/metropolitan-district-council/walsall ,WC154-339,30.09.2023,ADULT SOCIAL CARE,ADVANCE HEALTH CARE (UK) LTD,12/09/2023,301.5,6541-Domiciliary Care,THIRD PARTY PAYMENTS,PRIVATE CONTRACTOR,REVENUE
Walsall Council,http://opendatacommunities.org/id/metropolitan-district-council/walsall ,WC154-340,30.09.2023,ADULT SOCIAL CARE,ADVANCE HEALTH CARE (UK) LTD,12/09/2023,756,6541-Domiciliary Care,THIRD PARTY PAYMENTS,PRIVATE CONTRACTOR,REVENUE
Walsall Council,http://opendatacommunities.org/id/metropolitan-district-council/walsall ,WC154-341,30.09.2023,ADULT SOCIAL CARE,ADVANCE HEALTH CARE (UK) LTD,12/09/2023,486,6541-Domiciliary Care,THIRD PARTY PAYMENTS,PRIVATE CONTRACTOR,REVENUE
Walsall Council,http://opendatacommunities.org/id/metropolitan-district-council/walsall ,WC154-342,30.09.2023,ADULT SOCIAL CARE,ADVANCE HEALTH CARE (UK) LTD,12/09/2023,283.5,6541-Domiciliary Care,THIRD PARTY PAYMENTS,PRIVATE CONTRACTOR,REVENUE
Walsall Council,http://opendatacommunities.org/id/metropolitan-district-council/walsall ,WC154-343,30.09.2023,ADULT SOCIAL CARE,ADVANCE HEALTH CARE (UK) LTD,12/09/2023,283.5,6541-Domiciliary Care,THIRD PARTY PAYMENTS,PRIVATE CONTRACTOR,REVENUE
Walsall Council,http://opendatacommunities.org/id/metropolitan-district-council/walsall ,WC154-344,30.09.2023,ADULT SOCIAL CARE,ADVANCE HEALTH CARE (UK) LTD,12/09/2023,441,6541-Domiciliary Care,THIRD PARTY PAYMENTS,PRIVATE CONTRACTOR,REVENUE
Walsall Council,http://opendatacommunities.org/id/metropolitan-district-council/walsall ,WC154-345,30.09.2023,ADULT SOCIAL CARE,ADVANCE HEALTH CARE (UK) LTD,12/09/2023,301.5,6541-Domiciliary Care,THIRD PARTY PAYMENTS,PRIVATE CONTRACTOR,REVENUE
Walsall Council,http://opendatacommunities.org/id/metropolitan-district-council/walsall ,WC154-346,30.09.2023,ADULT SOCIAL CARE,ADVANCE HEALTH CARE (UK) LTD,12/09/2023,540,6541-Domiciliary Care,THIRD PARTY PAYMENTS,PRIVATE CONTRACTOR,REVENUE
Walsall Council,http://opendatacommunities.org/id/metropolitan-district-council/walsall ,WC154-347,30.09.2023,ADULT SOCIAL CARE,ADVANCE HEALTH CARE (UK) LTD,12/09/2023,504,6541-Domiciliary Care,THIRD PARTY PAYMENTS,PRIVATE CONTRACTOR,REVENUE
Walsall Council,http://opendatacommunities.org/id/metropolitan-district-council/walsall ,WC154-348,30.09.2023,ADULT SOCIAL CARE,ADVANCE HEALTH CARE (UK) LTD,12/09/2023,283.5,6541-Domiciliary Care,THIRD PARTY PAYMENTS,PRIVATE CONTRACTOR,REVENUE
Walsall Council,http://opendatacommunities.org/id/metropolitan-district-council/walsall ,WC154-349,30.09.2023,ADULT SOCIAL CARE,ADVANCE HEALTH CARE (UK) LTD,12/09/2023,639,6541-Domiciliary Care,THIRD PARTY PAYMENTS,PRIVATE CONTRACTOR,REVENUE
Walsall Council,http://opendatacommunities.org/id/metropolitan-district-council/walsall ,WC154-350,30.09.2023,ADULT SOCIAL CARE,ADVANCE HEALTH CARE (UK) LTD,12/09/2023,567,6541-Domiciliary Care,THIRD PARTY PAYMENTS,PRIVATE CONTRACTOR,REVENUE
Walsall Council,http://opendatacommunities.org/id/metropolitan-district-council/walsall ,WC154-351,30.09.2023,ADULT SOCIAL CARE,ADVANCE HEALTH CARE (UK) LTD,12/09/2023,283.5,6541-Domiciliary Care,THIRD PARTY PAYMENTS,PRIVATE CONTRACTOR,REVENUE
Walsall Council,http://opendatacommunities.org/id/metropolitan-district-council/walsall ,WC154-352,30.09.2023,ADULT SOCIAL CARE,ADVANCE HEALTH CARE (UK) LTD,12/09/2023,420,6541-Domiciliary Care,THIRD PARTY PAYMENTS,PRIVATE CONTRACTOR,REVENUE
Walsall Council,http://opendatacommunities.org/id/metropolitan-district-council/walsall ,WC154-353,30.09.2023,ADULT SOCIAL CARE,ADVANCE HEALTH CARE (UK) LTD,12/09/2023,378,6541-Domiciliary Care,THIRD PARTY PAYMENTS,PRIVATE CONTRACTOR,REVENUE
Walsall Council,http://opendatacommunities.org/id/metropolitan-district-council/walsall ,WC154-354,30.09.2023,ADULT SOCIAL CARE,ADVANCE HEALTH CARE (UK) LTD,12/09/2023,301.5,6541-Domiciliary Care,THIRD PARTY PAYMENTS,PRIVATE CONTRACTOR,REVENUE
Walsall Council,http://opendatacommunities.org/id/metropolitan-district-council/walsall ,WC154-355,30.09.2023,ADULT SOCIAL CARE,ADVANCE HEALTH CARE (UK) LTD,12/09/2023,756,6541-Domiciliary Care,THIRD PARTY PAYMENTS,PRIVATE CONTRACTOR,REVENUE
Walsall Council,http://opendatacommunities.org/id/metropolitan-district-council/walsall ,WC154-356,30.09.2023,ADULT SOCIAL CARE,ADVANCE HEALTH CARE (UK) LTD,12/09/2023,378,6541-Domiciliary Care,THIRD PARTY PAYMENTS,PRIVATE CONTRACTOR,REVENUE
Walsall Council,http://opendatacommunities.org/id/metropolitan-district-council/walsall ,WC154-357,30.09.2023,ADULT SOCIAL CARE,ADVANCE HEALTH CARE (UK) LTD,12/09/2023,567,6541-Domiciliary Care,THIRD PARTY PAYMENTS,PRIVATE CONTRACTOR,REVENUE
Walsall Council,http://opendatacommunities.org/id/metropolitan-district-council/walsall ,WC154-358,30.09.2023,ADULT SOCIAL CARE,ADVANCE HEALTH CARE (UK) LTD,12/09/2023,630,6541-Domiciliary Care,THIRD PARTY PAYMENTS,PRIVATE CONTRACTOR,REVENUE
Walsall Council,http://opendatacommunities.org/id/metropolitan-district-council/walsall ,WC154-359,30.09.2023,ADULT SOCIAL CARE,ADVANCE HEALTH CARE (UK) LTD,12/09/2023,441,6541-Domiciliary Care,THIRD PARTY PAYMENTS,PRIVATE CONTRACTOR,REVENUE
Walsall Council,http://opendatacommunities.org/id/metropolitan-district-council/walsall ,WC154-360,30.09.2023,ADULT SOCIAL CARE,ADVANCE HEALTH CARE (UK) LTD,12/09/2023,252,6541-Domiciliary Care,THIRD PARTY PAYMENTS,PRIVATE CONTRACTOR,REVENUE
Walsall Council,http://opendatacommunities.org/id/metropolitan-district-council/walsall ,WC154-361,30.09.2023,ADULT SOCIAL CARE,ADVANCE HEALTH CARE (UK) LTD,12/09/2023,504,6541-Domiciliary Care,THIRD PARTY PAYMENTS,PRIVATE CONTRACTOR,REVENUE
Walsall Council,http://opendatacommunities.org/id/metropolitan-district-council/walsall ,WC154-362,30.09.2023,ADULT SOCIAL CARE,ADVANCE HEALTH CARE (UK) LTD,12/09/2023,441,6541-Domiciliary Care,THIRD PARTY PAYMENTS,PRIVATE CONTRACTOR,REVENUE
Walsall Council,http://opendatacommunities.org/id/metropolitan-district-council/walsall ,WC154-363,30.09.2023,ADULT SOCIAL CARE,ADVANCE HEALTH CARE (UK) LTD,12/09/2023,567,6541-Domiciliary Care,THIRD PARTY PAYMENTS,PRIVATE CONTRACTOR,REVENUE
Walsall Council,http://opendatacommunities.org/id/metropolitan-district-council/walsall ,WC154-364,30.09.2023,ADULT SOCIAL CARE,ADVANCE HEALTH CARE (UK) LTD,12/09/2023,630,6541-Domiciliary Care,THIRD PARTY PAYMENTS,PRIVATE CONTRACTOR,REVENUE
Walsall Council,http://opendatacommunities.org/id/metropolitan-district-council/walsall ,WC154-365,30.09.2023,ADULT SOCIAL CARE,ADVANCE HEALTH CARE (UK) LTD,12/09/2023,441,6541-Domiciliary Care,THIRD PARTY PAYMENTS,PRIVATE CONTRACTOR,REVENUE
Walsall Council,http://opendatacommunities.org/id/metropolitan-district-council/walsall ,WC154-366,30.09.2023,ADULT SOCIAL CARE,ADVANCE HEALTH CARE (UK) LTD,12/09/2023,567,6541-Domiciliary Care,THIRD PARTY PAYMENTS,PRIVATE CONTRACTOR,REVENUE
Walsall Council,http://opendatacommunities.org/id/metropolitan-district-council/walsall ,WC154-367,30.09.2023,ADULT SOCIAL CARE,ADVANCE HEALTH CARE (UK) LTD,12/09/2023,504,6541-Domiciliary Care,THIRD PARTY PAYMENTS,PRIVATE CONTRACTOR,REVENUE
Walsall Council,http://opendatacommunities.org/id/metropolitan-district-council/walsall ,WC154-368,30.09.2023,ADULT SOCIAL CARE,ADVANCE HEALTH CARE (UK) LTD,12/09/2023,283.5,6541-Domiciliary Care,THIRD PARTY PAYMENTS,PRIVATE CONTRACTOR,REVENUE
Walsall Council,http://opendatacommunities.org/id/metropolitan-district-council/walsall ,WC154-369,30.09.2023,ADULT SOCIAL CARE,ADVANCE HEALTH CARE (UK) LTD,12/09/2023,963,6541-Domiciliary Care,THIRD PARTY PAYMENTS,PRIVATE CONTRACTOR,REVENUE
Walsall Council,http://opendatacommunities.org/id/metropolitan-district-council/walsall ,WC154-370,30.09.2023,ADULT SOCIAL CARE,ADVANCE HEALTH CARE (UK) LTD,12/09/2023,441,6541-Domiciliary Care,THIRD PARTY PAYMENTS,PRIVATE CONTRACTOR,REVENUE
Walsall Council,http://opendatacommunities.org/id/metropolitan-district-council/walsall ,WC154-371,30.09.2023,ADULT SOCIAL CARE,ADVANCE HEALTH CARE (UK) LTD,12/09/2023,441,6541-Domiciliary Care,THIRD PARTY PAYMENTS,PRIVATE CONTRACTOR,REVENUE
Walsall Council,http://opendatacommunities.org/id/metropolitan-district-council/walsall ,WC154-372,30.09.2023,ADULT SOCIAL CARE,ADVANCE HEALTH CARE (UK) LTD,12/09/2023,301.5,6541-Domiciliary Care,THIRD PARTY PAYMENTS,PRIVATE CONTRACTOR,REVENUE
Walsall Council,http://opendatacommunities.org/id/metropolitan-district-council/walsall ,WC154-373,30.09.2023,ADULT SOCIAL CARE,ADVANCE HEALTH CARE (UK) LTD,12/09/2023,540,6541-Domiciliary Care,THIRD PARTY PAYMENTS,PRIVATE CONTRACTOR,REVENUE
Walsall Council,http://opendatacommunities.org/id/metropolitan-district-council/walsall ,WC154-374,30.09.2023,ADULT SOCIAL CARE,ADVANCE HEALTH CARE (UK) LTD,12/09/2023,504,6541-Domiciliary Care,THIRD PARTY PAYMENTS,PRIVATE CONTRACTOR,REVENUE
Walsall Council,http://opendatacommunities.org/id/metropolitan-district-council/walsall ,WC154-375,30.09.2023,ADULT SOCIAL CARE,ADVANCE HEALTH CARE (UK) LTD,12/09/2023,283.5,6541-Domiciliary Care,THIRD PARTY PAYMENTS,PRIVATE CONTRACTOR,REVENUE
Walsall Council,http://opendatacommunities.org/id/metropolitan-district-council/walsall ,WC154-376,30.09.2023,ADULT SOCIAL CARE,ADVANCE HEALTH CARE (UK) LTD,12/09/2023,639,6541-Domiciliary Care,THIRD PARTY PAYMENTS,PRIVATE CONTRACTOR,REVENUE
Walsall Council,http://opendatacommunities.org/id/metropolitan-district-council/walsall ,WC154-377,30.09.2023,ADULT SOCIAL CARE,ADVANCE HEALTH CARE (UK) LTD,12/09/2023,567,6541-Domiciliary Care,THIRD PARTY PAYMENTS,PRIVATE CONTRACTOR,REVENUE
Walsall Council,http://opendatacommunities.org/id/metropolitan-district-council/walsall ,WC154-378,30.09.2023,ADULT SOCIAL CARE,ADVANCE HEALTH CARE (UK) LTD,12/09/2023,567,6541-Domiciliary Care,THIRD PARTY PAYMENTS,PRIVATE CONTRACTOR,REVENUE
Walsall Council,http://opendatacommunities.org/id/metropolitan-district-council/walsall ,WC154-379,30.09.2023,ADULT SOCIAL CARE,ADVANCE HEALTH CARE (UK) LTD,12/09/2023,666,6541-Domiciliary Care,THIRD PARTY PAYMENTS,PRIVATE CONTRACTOR,REVENUE
Walsall Council,http://opendatacommunities.org/id/metropolitan-district-council/walsall ,WC154-380,30.09.2023,ADULT SOCIAL CARE,ADVANCE HEALTH CARE (UK) LTD,12/09/2023,283.5,6541-Domiciliary Care,THIRD PARTY PAYMENTS,PRIVATE CONTRACTOR,REVENUE
Walsall Council,http://opendatacommunities.org/id/metropolitan-district-council/walsall ,WC154-381,30.09.2023,ADULT SOCIAL CARE,ADVANCE HEALTH CARE (UK) LTD,20/09/2023,321,6554-Professional Services-Priv Contractor & Other Agencies,THIRD PARTY PAYMENTS,PRIVATE CONTRACTOR,REVENUE
Walsall Council,http://opendatacommunities.org/id/metropolitan-district-council/walsall ,WC154-382,30.09.2023,ADULT SOCIAL CARE,ADVANCE HEALTH CARE (UK) LTD,20/09/2023,270,6554-Professional Services-Priv Contractor & Other Agencies,THIRD PARTY PAYMENTS,PRIVATE CONTRACTOR,REVENUE
Walsall Council,http://opendatacommunities.org/id/metropolitan-district-council/walsall ,WC154-383,30.09.2023,ADULT SOCIAL CARE,ADVANCE HEALTH CARE (UK) LTD,20/09/2023,363,6554-Professional Services-Priv Contractor & Other Agencies,THIRD PARTY PAYMENTS,PRIVATE CONTRACTOR,REVENUE
Walsall Council,http://opendatacommunities.org/id/metropolitan-district-council/walsall ,WC154-384,30.09.2023,ADULT SOCIAL CARE,ADVANCE HEALTH CARE (UK) LTD,20/09/2023,"2,268.00",6554-Professional Services-Priv Contractor & Other Agencies,THIRD PARTY PAYMENTS,PRIVATE CONTRACTOR,REVENUE
Walsall Council,http://opendatacommunities.org/id/metropolitan-district-council/walsall ,WC154-385,30.09.2023,ADULT SOCIAL CARE,ADVANCE HEALTH CARE (UK) LTD,20/09/2023,567,6554-Professional Services-Priv Contractor & Other Agencies,THIRD PARTY PAYMENTS,PRIVATE CONTRACTOR,REVENUE
Walsall Council,http://opendatacommunities.org/id/metropolitan-district-council/walsall ,WC154-386,30.09.2023,ADULT SOCIAL CARE,ADVANCE HEALTH CARE (UK) LTD,20/09/2023,486,6554-Professional Services-Priv Contractor & Other Agencies,THIRD PARTY PAYMENTS,PRIVATE CONTRACTOR,REVENUE
Walsall Council,http://opendatacommunities.org/id/metropolitan-district-council/walsall ,WC154-387,30.09.2023,ADULT SOCIAL CARE,ADVANCE HEALTH CARE (UK) LTD,20/09/2023,382.5,6554-Professional Services-Priv Contractor & Other Agencies,THIRD PARTY PAYMENTS,PRIVATE CONTRACTOR,REVENUE
Walsall Council,http://opendatacommunities.org/id/metropolitan-district-council/walsall ,WC154-388,30.09.2023,ADULT SOCIAL CARE,ADVANCE HEALTH CARE (UK) LTD,26/09/2023,378,6541-Domiciliary Care,THIRD PARTY PAYMENTS,PRIVATE CONTRACTOR,REVENUE
Walsall Council,http://opendatacommunities.org/id/metropolitan-district-council/walsall ,WC154-389,30.09.2023,ADULT SOCIAL CARE,ADVANCE HEALTH CARE (UK) LTD,26/09/2023,567,6541-Domiciliary Care,THIRD PARTY PAYMENTS,PRIVATE CONTRACTOR,REVENUE
Walsall Council,http://opendatacommunities.org/id/metropolitan-district-council/walsall ,WC154-390,30.09.2023,ADULT SOCIAL CARE,ADVANCE HEALTH CARE (UK) LTD,26/09/2023,630,6541-Domiciliary Care,THIRD PARTY PAYMENTS,PRIVATE CONTRACTOR,REVENUE
Walsall Council,http://opendatacommunities.org/id/metropolitan-district-council/walsall ,WC154-391,30.09.2023,ADULT SOCIAL CARE,ADVANCE HEALTH CARE (UK) LTD,26/09/2023,441,6541-Domiciliary Care,THIRD PARTY PAYMENTS,PRIVATE CONTRACTOR,REVENUE
Walsall Council,http://opendatacommunities.org/id/metropolitan-district-council/walsall ,WC154-392,30.09.2023,ADULT SOCIAL CARE,ADVANCE HEALTH CARE (UK) LTD,26/09/2023,252,6541-Domiciliary Care,THIRD PARTY PAYMENTS,PRIVATE CONTRACTOR,REVENUE
Walsall Council,http://opendatacommunities.org/id/metropolitan-district-council/walsall ,WC154-393,30.09.2023,ADULT SOCIAL CARE,ADVANCE HEALTH CARE (UK) LTD,26/09/2023,441,6541-Domiciliary Care,THIRD PARTY PAYMENTS,PRIVATE CONTRACTOR,REVENUE
Walsall Council,http://opendatacommunities.org/id/metropolitan-district-council/walsall ,WC154-394,30.09.2023,ADULT SOCIAL CARE,ADVANCE HEALTH CARE (UK) LTD,26/09/2023,567,6541-Domiciliary Care,THIRD PARTY PAYMENTS,PRIVATE CONTRACTOR,REVENUE
Walsall Council,http://opendatacommunities.org/id/metropolitan-district-council/walsall ,WC154-395,30.09.2023,ADULT SOCIAL CARE,ADVANCE HEALTH CARE (UK) LTD,26/09/2023,630,6541-Domiciliary Care,THIRD PARTY PAYMENTS,PRIVATE CONTRACTOR,REVENUE
Walsall Council,http://opendatacommunities.org/id/metropolitan-district-council/walsall ,WC154-396,30.09.2023,ADULT SOCIAL CARE,ADVANCE HEALTH CARE (UK) LTD,26/09/2023,441,6541-Domiciliary Care,THIRD PARTY PAYMENTS,PRIVATE CONTRACTOR,REVENUE
Walsall Council,http://opendatacommunities.org/id/metropolitan-district-council/walsall ,WC154-397,30.09.2023,ADULT SOCIAL CARE,ADVANCE HEALTH CARE (UK) LTD,26/09/2023,567,6541-Domiciliary Care,THIRD PARTY PAYMENTS,PRIVATE CONTRACTOR,REVENUE
Walsall Council,http://opendatacommunities.org/id/metropolitan-district-council/walsall ,WC154-398,30.09.2023,ADULT SOCIAL CARE,ADVANCE HEALTH CARE (UK) LTD,26/09/2023,"2,916.00",6541-Domiciliary Care,THIRD PARTY PAYMENTS,PRIVATE CONTRACTOR,REVENUE
Walsall Council,http://opendatacommunities.org/id/metropolitan-district-council/walsall ,WC154-399,30.09.2023,ADULT SOCIAL CARE,ADVANCE HEALTH CARE (UK) LTD,26/09/2023,"1,512.00",6541-Domiciliary Care,THIRD PARTY PAYMENTS,PRIVATE CONTRACTOR,REVENUE
Walsall Council,http://opendatacommunities.org/id/metropolitan-district-council/walsall ,WC154-400,30.09.2023,ADULT SOCIAL CARE,ADVANCE HEALTH CARE (UK) LTD,26/09/2023,283.5,6541-Domiciliary Care,THIRD PARTY PAYMENTS,PRIVATE CONTRACTOR,REVENUE
Walsall Council,http://opendatacommunities.org/id/metropolitan-district-council/walsall ,WC154-401,30.09.2023,ADULT SOCIAL CARE,ADVANCE HEALTH CARE (UK) LTD,26/09/2023,567,6541-Domiciliary Care,THIRD PARTY PAYMENTS,PRIVATE CONTRACTOR,REVENUE
Walsall Council,http://opendatacommunities.org/id/metropolitan-district-council/walsall ,WC154-402,30.09.2023,ADULT SOCIAL CARE,ADVANCE HEALTH CARE (UK) LTD,26/09/2023,666,6541-Domiciliary Care,THIRD PARTY PAYMENTS,PRIVATE CONTRACTOR,REVENUE
Walsall Council,http://opendatacommunities.org/id/metropolitan-district-council/walsall ,WC154-403,30.09.2023,ADULT SOCIAL CARE,ADVANCE HEALTH CARE (UK) LTD,26/09/2023,283.5,6541-Domiciliary Care,THIRD PARTY PAYMENTS,PRIVATE CONTRACTOR,REVENUE
Walsall Council,http://opendatacommunities.org/id/metropolitan-district-council/walsall ,WC154-404,30.09.2023,ADULT SOCIAL CARE,ADVANCE HEALTH CARE (UK) LTD,26/09/2023,420,6541-Domiciliary Care,THIRD PARTY PAYMENTS,PRIVATE CONTRACTOR,REVENUE
Walsall Council,http://opendatacommunities.org/id/metropolitan-district-council/walsall ,WC154-405,30.09.2023,ADULT SOCIAL CARE,ADVANCE HEALTH CARE (UK) LTD,26/09/2023,378,6541-Domiciliary Care,THIRD PARTY PAYMENTS,PRIVATE CONTRACTOR,REVENUE
Walsall Council,http://opendatacommunities.org/id/metropolitan-district-council/walsall ,WC154-406,30.09.2023,ADULT SOCIAL CARE,ADVANCE HEALTH CARE (UK) LTD,26/09/2023,963,6541-Domiciliary Care,THIRD PARTY PAYMENTS,PRIVATE CONTRACTOR,REVENUE
Walsall Council,http://opendatacommunities.org/id/metropolitan-district-council/walsall ,WC154-407,30.09.2023,ADULT SOCIAL CARE,ADVANCE HEALTH CARE (UK) LTD,26/09/2023,441,6541-Domiciliary Care,THIRD PARTY PAYMENTS,PRIVATE CONTRACTOR,REVENUE
Walsall Council,http://opendatacommunities.org/id/metropolitan-district-council/walsall ,WC154-408,30.09.2023,ADULT SOCIAL CARE,ADVANCE HEALTH CARE (UK) LTD,26/09/2023,283.5,6541-Domiciliary Care,THIRD PARTY PAYMENTS,PRIVATE CONTRACTOR,REVENUE
Walsall Council,http://opendatacommunities.org/id/metropolitan-district-council/walsall ,WC154-409,30.09.2023,ADULT SOCIAL CARE,ADVANCE HEALTH CARE (UK) LTD,26/09/2023,301.5,6541-Domiciliary Care,THIRD PARTY PAYMENTS,PRIVATE CONTRACTOR,REVENUE
Walsall Council,http://opendatacommunities.org/id/metropolitan-district-council/walsall ,WC154-410,30.09.2023,ADULT SOCIAL CARE,ADVANCE HEALTH CARE (UK) LTD,26/09/2023,756,6541-Domiciliary Care,THIRD PARTY PAYMENTS,PRIVATE CONTRACTOR,REVENUE
Walsall Council,http://opendatacommunities.org/id/metropolitan-district-council/walsall ,WC154-411,30.09.2023,ADULT SOCIAL CARE,ADVANCE HEALTH CARE (UK) LTD,26/09/2023,441,6541-Domiciliary Care,THIRD PARTY PAYMENTS,PRIVATE CONTRACTOR,REVENUE
Walsall Council,http://opendatacommunities.org/id/metropolitan-district-council/walsall ,WC154-412,30.09.2023,ADULT SOCIAL CARE,ADVANCE HEALTH CARE (UK) LTD,26/09/2023,301.5,6541-Domiciliary Care,THIRD PARTY PAYMENTS,PRIVATE CONTRACTOR,REVENUE
Walsall Council,http://opendatacommunities.org/id/metropolitan-district-council/walsall ,WC154-413,30.09.2023,ADULT SOCIAL CARE,ADVANCE HEALTH CARE (UK) LTD,26/09/2023,252,6541-Domiciliary Care,THIRD PARTY PAYMENTS,PRIVATE CONTRACTOR,REVENUE
Walsall Council,http://opendatacommunities.org/id/metropolitan-district-council/walsall ,WC154-414,30.09.2023,ADULT SOCIAL CARE,ADVANCE HEALTH CARE (UK) LTD,26/09/2023,504,6541-Domiciliary Care,THIRD PARTY PAYMENTS,PRIVATE CONTRACTOR,REVENUE
Walsall Council,http://opendatacommunities.org/id/metropolitan-district-council/walsall ,WC154-415,30.09.2023,ADULT SOCIAL CARE,ADVANCE HEALTH CARE (UK) LTD,26/09/2023,283.5,6541-Domiciliary Care,THIRD PARTY PAYMENTS,PRIVATE CONTRACTOR,REVENUE
Walsall Council,http://opendatacommunities.org/id/metropolitan-district-council/walsall ,WC154-416,30.09.2023,ADULT SOCIAL CARE,ADVANCE HEALTH CARE (UK) LTD,26/09/2023,639,6541-Domiciliary Care,THIRD PARTY PAYMENTS,PRIVATE CONTRACTOR,REVENUE
Walsall Council,http://opendatacommunities.org/id/metropolitan-district-council/walsall ,WC154-417,30.09.2023,ADULT SOCIAL CARE,ADVANCE HEALTH CARE (UK) LTD,26/09/2023,567,6541-Domiciliary Care,THIRD PARTY PAYMENTS,PRIVATE CONTRACTOR,REVENUE
Walsall Council,http://opendatacommunities.org/id/metropolitan-district-council/walsall ,WC154-418,30.09.2023,ADULT SOCIAL CARE,ADVANCE HEALTH CARE (UK) LTD,26/09/2023,567,6541-Domiciliary Care,THIRD PARTY PAYMENTS,PRIVATE CONTRACTOR,REVENUE
Walsall Council,http://opendatacommunities.org/id/metropolitan-district-council/walsall ,WC154-419,30.09.2023,ADULT SOCIAL CARE,ADVANCE HEALTH CARE (UK) LTD,26/09/2023,378,6541-Domiciliary Care,THIRD PARTY PAYMENTS,PRIVATE CONTRACTOR,REVENUE
Walsall Council,http://opendatacommunities.org/id/metropolitan-district-council/walsall ,WC154-420,30.09.2023,ADULT SOCIAL CARE,ADVANCE HEALTH CARE (UK) LTD,26/09/2023,666,6541-Domiciliary Care,THIRD PARTY PAYMENTS,PRIVATE CONTRACTOR,REVENUE
Walsall Council,http://opendatacommunities.org/id/metropolitan-district-council/walsall ,WC154-421,30.09.2023,ADULT SOCIAL CARE,ADVANCE HEALTH CARE (UK) LTD,26/09/2023,567,6541-Domiciliary Care,THIRD PARTY PAYMENTS,PRIVATE CONTRACTOR,REVENUE
Walsall Council,http://opendatacommunities.org/id/metropolitan-district-council/walsall ,WC154-422,30.09.2023,ADULT SOCIAL CARE,ADVANCE HEALTH CARE (UK) LTD,26/09/2023,630,6541-Domiciliary Care,THIRD PARTY PAYMENTS,PRIVATE CONTRACTOR,REVENUE
Walsall Council,http://opendatacommunities.org/id/metropolitan-district-council/walsall ,WC154-423,30.09.2023,ADULT SOCIAL CARE,ADVANCE HEALTH CARE (UK) LTD,26/09/2023,441,6541-Domiciliary Care,THIRD PARTY PAYMENTS,PRIVATE CONTRACTOR,REVENUE
Walsall Council,http://opendatacommunities.org/id/metropolitan-district-council/walsall ,WC154-424,30.09.2023,ADULT SOCIAL CARE,ADVANCE HEALTH CARE (UK) LTD,26/09/2023,252,6541-Domiciliary Care,THIRD PARTY PAYMENTS,PRIVATE CONTRACTOR,REVENUE
Walsall Council,http://opendatacommunities.org/id/metropolitan-district-council/walsall ,WC154-425,30.09.2023,ADULT SOCIAL CARE,ADVANCE HEALTH CARE (UK) LTD,26/09/2023,283.5,6541-Domiciliary Care,THIRD PARTY PAYMENTS,PRIVATE CONTRACTOR,REVENUE
Walsall Council,http://opendatacommunities.org/id/metropolitan-district-council/walsall ,WC154-426,30.09.2023,ADULT SOCIAL CARE,ADVANCE HEALTH CARE (UK) LTD,26/09/2023,441,6541-Domiciliary Care,THIRD PARTY PAYMENTS,PRIVATE CONTRACTOR,REVENUE
Walsall Council,http://opendatacommunities.org/id/metropolitan-district-council/walsall ,WC154-427,30.09.2023,ADULT SOCIAL CARE,ADVANCE HEALTH CARE (UK) LTD,26/09/2023,567,6541-Domiciliary Care,THIRD PARTY PAYMENTS,PRIVATE CONTRACTOR,REVENUE
Walsall Council,http://opendatacommunities.org/id/metropolitan-district-council/walsall ,WC154-428,30.09.2023,ADULT SOCIAL CARE,ADVANCE HEALTH CARE (UK) LTD,26/09/2023,630,6541-Domiciliary Care,THIRD PARTY PAYMENTS,PRIVATE CONTRACTOR,REVENUE
Walsall Council,http://opendatacommunities.org/id/metropolitan-district-council/walsall ,WC154-429,30.09.2023,ADULT SOCIAL CARE,ADVANCE HEALTH CARE (UK) LTD,26/09/2023,441,6541-Domiciliary Care,THIRD PARTY PAYMENTS,PRIVATE CONTRACTOR,REVENUE
Walsall Council,http://opendatacommunities.org/id/metropolitan-district-council/walsall ,WC154-430,30.09.2023,ADULT SOCIAL CARE,ADVANCE HEALTH CARE (UK) LTD,26/09/2023,567,6541-Domiciliary Care,THIRD PARTY PAYMENTS,PRIVATE CONTRACTOR,REVENUE
Walsall Council,http://opendatacommunities.org/id/metropolitan-district-council/walsall ,WC154-431,30.09.2023,ADULT SOCIAL CARE,ADVANCE HEALTH CARE (UK) LTD,26/09/2023,963,6541-Domiciliary Care,THIRD PARTY PAYMENTS,PRIVATE CONTRACTOR,REVENUE
Walsall Council,http://opendatacommunities.org/id/metropolitan-district-council/walsall ,WC154-432,30.09.2023,ADULT SOCIAL CARE,ADVANCE HEALTH CARE (UK) LTD,26/09/2023,441,6541-Domiciliary Care,THIRD PARTY PAYMENTS,PRIVATE CONTRACTOR,REVENUE
Walsall Council,http://opendatacommunities.org/id/metropolitan-district-council/walsall ,WC154-433,30.09.2023,ADULT SOCIAL CARE,ADVANCE HEALTH CARE (UK) LTD,26/09/2023,283.5,6541-Domiciliary Care,THIRD PARTY PAYMENTS,PRIVATE CONTRACTOR,REVENUE
Walsall Council,http://opendatacommunities.org/id/metropolitan-district-council/walsall ,WC154-434,30.09.2023,ADULT SOCIAL CARE,ADVANCE HEALTH CARE (UK) LTD,26/09/2023,420,6541-Domiciliary Care,THIRD PARTY PAYMENTS,PRIVATE CONTRACTOR,REVENUE
Walsall Council,http://opendatacommunities.org/id/metropolitan-district-council/walsall ,WC154-435,30.09.2023,ADULT SOCIAL CARE,ADVANCE HEALTH CARE (UK) LTD,26/09/2023,378,6541-Domiciliary Care,THIRD PARTY PAYMENTS,PRIVATE CONTRACTOR,REVENUE
Walsall Council,http://opendatacommunities.org/id/metropolitan-district-council/walsall ,WC154-436,30.09.2023,ADULT SOCIAL CARE,ADVANCE HEALTH CARE (UK) LTD,26/09/2023,504,6541-Domiciliary Care,THIRD PARTY PAYMENTS,PRIVATE CONTRACTOR,REVENUE
Walsall Council,http://opendatacommunities.org/id/metropolitan-district-council/walsall ,WC154-437,30.09.2023,ADULT SOCIAL CARE,ADVANCE HEALTH CARE (UK) LTD,26/09/2023,441,6541-Domiciliary Care,THIRD PARTY PAYMENTS,PRIVATE CONTRACTOR,REVENUE
Walsall Council,http://opendatacommunities.org/id/metropolitan-district-council/walsall ,WC154-438,30.09.2023,ADULT SOCIAL CARE,ADVANCE HEALTH CARE (UK) LTD,26/09/2023,283.5,6541-Domiciliary Care,THIRD PARTY PAYMENTS,PRIVATE CONTRACTOR,REVENUE
Walsall Council,http://opendatacommunities.org/id/metropolitan-district-council/walsall ,WC154-439,30.09.2023,ADULT SOCIAL CARE,ADVANCE HEALTH CARE (UK) LTD,26/09/2023,441,6541-Domiciliary Care,THIRD PARTY PAYMENTS,PRIVATE CONTRACTOR,REVENUE
Walsall Council,http://opendatacommunities.org/id/metropolitan-district-council/walsall ,WC154-440,30.09.2023,ADULT SOCIAL CARE,ADVANCE HEALTH CARE (UK) LTD,26/09/2023,301.5,6541-Domiciliary Care,THIRD PARTY PAYMENTS,PRIVATE CONTRACTOR,REVENUE
Walsall Council,http://opendatacommunities.org/id/metropolitan-district-council/walsall ,WC154-441,30.09.2023,ADULT SOCIAL CARE,ADVANCE HEALTH CARE (UK) LTD,26/09/2023,504,6541-Domiciliary Care,THIRD PARTY PAYMENTS,PRIVATE CONTRACTOR,REVENUE
Walsall Council,http://opendatacommunities.org/id/metropolitan-district-council/walsall ,WC154-442,30.09.2023,ADULT SOCIAL CARE,ADVANCE HEALTH CARE (UK) LTD,26/09/2023,283.5,6541-Domiciliary Care,THIRD PARTY PAYMENTS,PRIVATE CONTRACTOR,REVENUE
Walsall Council,http://opendatacommunities.org/id/metropolitan-district-council/walsall ,WC154-443,30.09.2023,ADULT SOCIAL CARE,ADVANCE HEALTH CARE (UK) LTD,26/09/2023,639,6541-Domiciliary Care,THIRD PARTY PAYMENTS,PRIVATE CONTRACTOR,REVENUE
Walsall Council,http://opendatacommunities.org/id/metropolitan-district-council/walsall ,WC154-444,30.09.2023,ADULT SOCIAL CARE,ADVANCE HEALTH CARE (UK) LTD,26/09/2023,567,6541-Domiciliary Care,THIRD PARTY PAYMENTS,PRIVATE CONTRACTOR,REVENUE
Walsall Council,http://opendatacommunities.org/id/metropolitan-district-council/walsall ,WC154-445,30.09.2023,ADULT SOCIAL CARE,ADVANCE HEALTH CARE (UK) LTD,26/09/2023,301.5,6541-Domiciliary Care,THIRD PARTY PAYMENTS,PRIVATE CONTRACTOR,REVENUE
Walsall Council,http://opendatacommunities.org/id/metropolitan-district-council/walsall ,WC154-446,30.09.2023,ADULT SOCIAL CARE,ADVANCE HEALTH CARE (UK) LTD,26/09/2023,756,6541-Domiciliary Care,THIRD PARTY PAYMENTS,PRIVATE CONTRACTOR,REVENUE
Walsall Council,http://opendatacommunities.org/id/metropolitan-district-council/walsall ,WC154-447,30.09.2023,ADULT SOCIAL CARE,ADVANCE HEALTH CARE (UK) LTD,26/09/2023,342,6541-Domiciliary Care,THIRD PARTY PAYMENTS,PRIVATE CONTRACTOR,REVENUE
Walsall Council,http://opendatacommunities.org/id/metropolitan-district-council/walsall ,WC154-448,30.09.2023,CHILDRENS CAPITAL,ADVANCED CONTRACTS (MIDLANDS) LTD,06/09/2023,"1,245.00",7155-Site Works Contractors,CAPITAL,"NEW CONSTRUCTION,CONVERSION & RENOVATION",CAPITAL
Walsall Council,http://opendatacommunities.org/id/metropolitan-district-council/walsall ,WC154-449,30.09.2023,CHILDRENS CAPITAL,ADVANCED CONTRACTS (MIDLANDS) LTD,06/09/2023,"9,983.50",7155-Site Works Contractors,CAPITAL,"NEW CONSTRUCTION,CONVERSION & RENOVATION",CAPITAL
Walsall Council,http://opendatacommunities.org/id/metropolitan-district-council/walsall ,WC154-450,30.09.2023,CHILDRENS,ADVENTURELAND DAY NURSERY,29/09/2023,640,1184-Transfer Payments-Other Schoolchildren/Student Related Items,TRANSFER PAYMENTS,SCHOOLCHILDREN/STUDENTS,REVENUE
Walsall Council,http://opendatacommunities.org/id/metropolitan-district-council/walsall ,WC154-451,30.09.2023,CHILDRENS,ADVENTURELAND DAY NURSERY,11/09/2023,"7,810.43",1184-Other-Grants to Other Orgs,SUPPLIES & SERVICES,GRANTS (EXP) & SUBSCRIPTIONS,REVENUE
Walsall Council,http://opendatacommunities.org/id/metropolitan-district-council/walsall ,WC154-452,30.09.2023,CHILDRENS,ADVENTURELAND DAY NURSERY,11/09/2023,"26,881.58",1184-Other-Grants to Other Orgs,SUPPLIES & SERVICES,GRANTS (EXP) & SUBSCRIPTIONS,REVENUE
Walsall Council,http://opendatacommunities.org/id/metropolitan-district-council/walsall ,WC154-453,30.09.2023,CHILDRENS,ADVENTURELAND DAY NURSERY,29/09/2023,640,1184-Transfer Payments-Other Schoolchildren/Student Related Items,TRANSFER PAYMENTS,SCHOOLCHILDREN/STUDENTS,REVENUE
Walsall Council,http://opendatacommunities.org/id/metropolitan-district-council/walsall ,WC154-454,30.09.2023,ADULT SOCIAL CARE,ADVINIA CARE HOMES LTD - HAMMERWICH HALL CARE HOME,26/09/2023,"2,137.32",6541-Residential,THIRD PARTY PAYMENTS,PRIVATE CONTRACTOR,REVENUE
Walsall Council,http://opendatacommunities.org/id/metropolitan-district-council/walsall ,WC154-455,30.09.2023,ADULT SOCIAL CARE,ADVINIA CARE HOMES LTD - HAMMERWICH HALL CARE HOME,26/09/2023,"2,413.36",6541-Residential EMI,THIRD PARTY PAYMENTS,PRIVATE CONTRACTOR,REVENUE
Walsall Council,http://opendatacommunities.org/id/metropolitan-district-council/walsall ,WC154-456,30.09.2023,ADULT SOCIAL CARE,ADVINIA CARE HOMES LTD - HAMMERWICH HALL CARE HOME,26/09/2023,280,6541-Residential EMI,THIRD PARTY PAYMENTS,PRIVATE CONTRACTOR,REVENUE
Walsall Council,http://opendatacommunities.org/id/metropolitan-district-council/walsall ,WC154-457,30.09.2023,ADULT SOCIAL CARE,ADVINIA CARE HOMES LTD - HAMMERWICH HALL CARE HOME,26/09/2023,280,6541-Residential,THIRD PARTY PAYMENTS,PRIVATE CONTRACTOR,REVENUE
Walsall Council,http://opendatacommunities.org/id/metropolitan-district-council/walsall ,WC154-458,30.09.2023,ECONOMY & ENVIRONMENT CAPITAL,AECOM INFRASTRUCTURE & ENVIRONMENT UK LIMITED,15/09/2023,"1,073.65",7200-Consultants Fees,CAPITAL,"NEW CONSTRUCTION,CONVERSION & RENOVATION",CAPITAL
Walsall Council,http://opendatacommunities.org/id/metropolitan-district-council/walsall ,WC154-459,30.09.2023,ECONOMY & ENVIRONMENT CAPITAL,AECOM INFRASTRUCTURE & ENVIRONMENT UK LIMITED,21/09/2023,"-10,604.03",7200-Consultants Fees,CAPITAL,"NEW CONSTRUCTION,CONVERSION & RENOVATION",CAPITAL
Walsall Council,http://opendatacommunities.org/id/metropolitan-district-council/walsall ,WC154-460,30.09.2023,ECONOMY & ENVIRONMENT CAPITAL,AECOM INFRASTRUCTURE & ENVIRONMENT UK LIMITED,21/09/2023,"-10,604.02",7200-Consultants Fees,CAPITAL,"NEW CONSTRUCTION,CONVERSION & RENOVATION",CAPITAL
Walsall Council,http://opendatacommunities.org/id/metropolitan-district-council/walsall ,WC154-461,30.09.2023,ECONOMY & ENVIRONMENT CAPITAL,AECOM INFRASTRUCTURE & ENVIRONMENT UK LIMITED,21/09/2023,"10,604.02",7200-Consultants Fees,CAPITAL,"NEW CONSTRUCTION,CONVERSION & RENOVATION",CAPITAL
Walsall Council,http://opendatacommunities.org/id/metropolitan-district-council/walsall ,WC154-462,30.09.2023,ECONOMY & ENVIRONMENT CAPITAL,AECOM INFRASTRUCTURE & ENVIRONMENT UK LIMITED,21/09/2023,"10,604.03",7200-Consultants Fees,CAPITAL,"NEW CONSTRUCTION,CONVERSION & RENOVATION",CAPITAL
Walsall Council,http://opendatacommunities.org/id/metropolitan-district-council/walsall ,WC154-463,30.09.2023,ECONOMY & ENVIRONMENT CAPITAL,AECOM INFRASTRUCTURE & ENVIRONMENT UK LIMITED,28/09/2023,"39,245.55",7200-Consultants Fees,CAPITAL,"NEW CONSTRUCTION,CONVERSION & RENOVATION",CAPITAL
Walsall Council,http://opendatacommunities.org/id/metropolitan-district-council/walsall ,WC154-464,30.09.2023,ECONOMY & ENVIRONMENT CAPITAL,AECOM INFRASTRUCTURE & ENVIRONMENT UK LIMITED,28/09/2023,"14,164.37",7200-Consultants Fees,CAPITAL,"NEW CONSTRUCTION,CONVERSION & RENOVATION",CAPITAL
Walsall Council,http://opendatacommunities.org/id/metropolitan-district-council/walsall ,WC154-465,30.09.2023,CHILDRENS,REDACTED,06/09/2023,782.8,6223-Higher Education Entitlements,TRANSFER PAYMENTS,CHILDREN SOCIAL SERVICES CLIENT,REVENUE
Walsall Council,http://opendatacommunities.org/id/metropolitan-district-council/walsall ,WC154-466,30.09.2023,CHILDRENS,AFGHAN COMMUNITY & WELFARE CENTRE,21/09/2023,846.51,6211-Professional Fees & Services,SUPPLIES & SERVICES,SERVICES,REVENUE
Walsall Council,http://opendatacommunities.org/id/metropolitan-district-council/walsall ,WC154-467,30.09.2023,CHILDRENS,REDACTED,20/09/2023,350,6223-Purchase of Furniture & Equipment,SUPPLIES & SERVICES,EQUIPMENT FURNITURE & MATERIALS,REVENUE
Walsall Council,http://opendatacommunities.org/id/metropolitan-district-council/walsall ,WC154-468,30.09.2023,CHILDRENS,REDACTED,25/09/2023,425,6223-Foster Carers Maintenance Allowance,TRANSFER PAYMENTS,CHILDREN SOCIAL SERVICES CLIENT,REVENUE
Walsall Council,http://opendatacommunities.org/id/metropolitan-district-council/walsall ,WC154-469,30.09.2023,ADULT SOCIAL CARE,REDACTED,07/09/2023,746.4,6541-Direct Payment,THIRD PARTY PAYMENTS,PRIVATE CONTRACTOR,REVENUE
Walsall Council,http://opendatacommunities.org/id/metropolitan-district-council/walsall ,WC154-470,30.09.2023,ADULT SOCIAL CARE,REDACTED,07/09/2023,"1,207.50",6541-Direct Payment,THIRD PARTY PAYMENTS,PRIVATE CONTRACTOR,REVENUE
Walsall Council,http://opendatacommunities.org/id/metropolitan-district-council/walsall ,WC154-471,30.09.2023,RESOURCES AND TRANSFORMATION,AGILE APPLICATIONS LIMITED,25/09/2023,"14,715.00",6623-Computer Equipment,SUPPLIES & SERVICES,COMMUNICATIONS & COMPUTING,REVENUE
Walsall Council,http://opendatacommunities.org/id/metropolitan-district-council/walsall ,WC154-472,30.09.2023,RESOURCES AND TRANSFORMATION CAPITAL,AGILISYS LTD,28/09/2023,"2,530.62",7300-Consultants Fees,CAPITAL,"NEW CONSTRUCTION,CONVERSION & RENOVATION",CAPITAL
Walsall Council,http://opendatacommunities.org/id/metropolitan-district-council/walsall ,WC154-473,30.09.2023,CHILDRENS,REDACTED,20/09/2023,535.08,6223-Special Guardianship Orders,TRANSFER PAYMENTS,CHILDREN SOCIAL SERVICES CLIENT,REVENUE
Walsall Council,http://opendatacommunities.org/id/metropolitan-district-council/walsall ,WC154-474,30.09.2023,"ECONOMY, ENVIRONMENT & COMMUNITIES",AGROVISTA UK LTD,14/09/2023,474.6,6410-Materials,SUPPLIES & SERVICES,EQUIPMENT FURNITURE & MATERIALS,REVENUE
Walsall Council,http://opendatacommunities.org/id/metropolitan-district-council/walsall ,WC154-475,30.09.2023,ADULT SOCIAL CARE,REDACTED,07/09/2023,"3,545.40",6541-Direct Payment,THIRD PARTY PAYMENTS,PRIVATE CONTRACTOR,REVENUE
Walsall Council,http://opendatacommunities.org/id/metropolitan-district-council/walsall ,WC154-476,30.09.2023,CHILDRENS CAPITAL,AIRTECH CONTROLS LTD,20/09/2023,"21,000.00",7150-Site Works Contractors,CAPITAL,"NEW CONSTRUCTION,CONVERSION & RENOVATION",CAPITAL
Walsall Council,http://opendatacommunities.org/id/metropolitan-district-council/walsall ,WC154-477,30.09.2023,CHILDRENS CAPITAL,AIRTECH CONTROLS LTD,05/09/2023,"2,000.00",7150-Site Works Contractors,CAPITAL,"NEW CONSTRUCTION,CONVERSION & RENOVATION",CAPITAL
Walsall Council,http://opendatacommunities.org/id/metropolitan-district-council/walsall ,WC154-478,30.09.2023,ADULT SOCIAL CARE,REDACTED,07/09/2023,"1,406.80",6541-Direct Payment,THIRD PARTY PAYMENTS,PRIVATE CONTRACTOR,REVENUE
Walsall Council,http://opendatacommunities.org/id/metropolitan-district-council/walsall ,WC154-479,30.09.2023,ADULT SOCIAL CARE,REDACTED,07/09/2023,642.35,6541-Direct Payment,THIRD PARTY PAYMENTS,PRIVATE CONTRACTOR,REVENUE
Walsall Council,http://opendatacommunities.org/id/metropolitan-district-council/walsall ,WC154-480,30.09.2023,ADULT SOCIAL CARE,REDACTED,07/09/2023,330,6541-Direct Payment,THIRD PARTY PAYMENTS,PRIVATE CONTRACTOR,REVENUE
Walsall Council,http://opendatacommunities.org/id/metropolitan-district-council/walsall ,WC154-481,30.09.2023,ADULT SOCIAL CARE,REDACTED,07/09/2023,660,6541-Direct Payment,THIRD PARTY PAYMENTS,PRIVATE CONTRACTOR,REVENUE
Walsall Council,http://opendatacommunities.org/id/metropolitan-district-council/walsall ,WC154-482,30.09.2023,ADULT SOCIAL CARE,REDACTED,07/09/2023,"1,741.60",6541-Direct Payment,THIRD PARTY PAYMENTS,PRIVATE CONTRACTOR,REVENUE
Walsall Council,http://opendatacommunities.org/id/metropolitan-district-council/walsall ,WC154-483,30.09.2023,ADULT SOCIAL CARE,ALDBOURNE NURSING HOME LTD,26/09/2023,"4,066.72",6541-Nursing EMI,THIRD PARTY PAYMENTS,PRIVATE CONTRACTOR,REVENUE
Walsall Council,http://opendatacommunities.org/id/metropolitan-district-council/walsall ,WC154-484,30.09.2023,CHILDRENS,ALDRIDGE & BARONS LIMITED,12/09/2023,"2,890.00",6241-Hire of Vehicle with Driver,TRANSPORT,DIRECT TRANSPORT COSTS,REVENUE
Walsall Council,http://opendatacommunities.org/id/metropolitan-district-council/walsall ,WC154-485,30.09.2023,CHILDRENS,ALDRIDGE & BARONS LIMITED,12/09/2023,"2,545.00",6241-Hire of Vehicle with Driver,TRANSPORT,DIRECT TRANSPORT COSTS,REVENUE
Walsall Council,http://opendatacommunities.org/id/metropolitan-district-council/walsall ,WC154-486,30.09.2023,CHILDRENS,ALDRIDGE & BARONS LIMITED,12/09/2023,"1,655.00",6241-Hire of Vehicle with Driver,TRANSPORT,DIRECT TRANSPORT COSTS,REVENUE
Walsall Council,http://opendatacommunities.org/id/metropolitan-district-council/walsall ,WC154-487,30.09.2023,ADULT SOCIAL CARE,REDACTED,07/09/2023,"2,160.00",6541-Direct Payment,THIRD PARTY PAYMENTS,PRIVATE CONTRACTOR,REVENUE
Walsall Council,http://opendatacommunities.org/id/metropolitan-district-council/walsall ,WC154-488,30.09.2023,ADULT SOCIAL CARE,ALEXANDRA HOUSE CARE SERVICES LTD T/A STONEBRIDGE NURSING HOME,26/09/2023,"7,546.24",6541-Residential,THIRD PARTY PAYMENTS,PRIVATE CONTRACTOR,REVENUE
Walsall Council,http://opendatacommunities.org/id/metropolitan-district-council/walsall ,WC154-489,30.09.2023,ADULT SOCIAL CARE,ALEXANDRA HOUSE SUPPORT SERVICES LTD,26/09/2023,"5,936.00",6541-Residential,THIRD PARTY PAYMENTS,PRIVATE CONTRACTOR,REVENUE
Walsall Council,http://opendatacommunities.org/id/metropolitan-district-council/walsall ,WC154-490,30.09.2023,ADULT SOCIAL CARE,REDACTED,07/09/2023,"1,368.40",6541-Direct Payment,THIRD PARTY PAYMENTS,PRIVATE CONTRACTOR,REVENUE
Walsall Council,http://opendatacommunities.org/id/metropolitan-district-council/walsall ,WC154-491,30.09.2023,CHILDRENS,REDACTED,20/09/2023,355.56,6223-Special Guardianship Orders,TRANSFER PAYMENTS,CHILDREN SOCIAL SERVICES CLIENT,REVENUE
Walsall Council,http://opendatacommunities.org/id/metropolitan-district-council/walsall ,WC154-492,30.09.2023,ADULT SOCIAL CARE,REDACTED,07/09/2023,612.5,6541-Shared Lives,THIRD PARTY PAYMENTS,PRIVATE CONTRACTOR,REVENUE
Walsall Council,http://opendatacommunities.org/id/metropolitan-district-council/walsall ,WC154-493,30.09.2023,ADULT SOCIAL CARE,REDACTED,07/09/2023,612.5,6541-Shared Lives,THIRD PARTY PAYMENTS,PRIVATE CONTRACTOR,REVENUE
Walsall Council,http://opendatacommunities.org/id/metropolitan-district-council/walsall ,WC154-494,30.09.2023,ADULT SOCIAL CARE,REDACTED,07/09/2023,612.5,6541-Shared Lives,THIRD PARTY PAYMENTS,PRIVATE CONTRACTOR,REVENUE
Walsall Council,http://opendatacommunities.org/id/metropolitan-district-council/walsall ,WC154-495,30.09.2023,CHILDRENS,ALL SAINTS NATIONAL ACADEMY #1,28/09/2023,"3,949.38",1220-Top Up Funding -Grants to Schools,SUPPLIES & SERVICES,GRANTS (EXP) & SUBSCRIPTIONS,REVENUE
Walsall Council,http://opendatacommunities.org/id/metropolitan-district-council/walsall ,WC154-496,30.09.2023,CHILDRENS,ALL STARS WALSALL CIC,21/09/2023,"1,384.00",6211-Professional Fees & Services,SUPPLIES & SERVICES,SERVICES,REVENUE
Walsall Council,http://opendatacommunities.org/id/metropolitan-district-council/walsall ,WC154-497,30.09.2023,CHILDRENS,ALLIANCE CARE LTD,20/09/2023,"3,024.00",6220-Professional Fees & Services,SUPPLIES & SERVICES,SERVICES,REVENUE
Walsall Council,http://opendatacommunities.org/id/metropolitan-district-council/walsall ,WC154-498,30.09.2023,"ECONOMY, ENVIRONMENT & COMMUNITIES",ALLIANCE LEISURE SERVICES LTD,06/09/2023,"-35,612.00",6413-Materials,SUPPLIES & SERVICES,EQUIPMENT FURNITURE & MATERIALS,REVENUE
Walsall Council,http://opendatacommunities.org/id/metropolitan-district-council/walsall ,WC154-499,30.09.2023,"ECONOMY, ENVIRONMENT & COMMUNITIES",ALLIANCE LEISURE SERVICES LTD,06/09/2023,"-35,611.00",6413-Materials,SUPPLIES & SERVICES,EQUIPMENT FURNITURE & MATERIALS,REVENUE
Walsall Council,http://opendatacommunities.org/id/metropolitan-district-council/walsall ,WC154-500,30.09.2023,"ECONOMY, ENVIRONMENT & COMMUNITIES",ALLIANCE LEISURE SERVICES LTD,06/09/2023,"35,611.00",6413-Materials,SUPPLIES & SERVICES,EQUIPMENT FURNITURE & MATERIALS,REVENUE
Walsall Council,http://opendatacommunities.org/id/metropolitan-district-council/walsall ,WC154-501,30.09.2023,"ECONOMY, ENVIRONMENT & COMMUNITIES",ALLIANCE LEISURE SERVICES LTD,06/09/2023,"35,612.00",6413-Materials,SUPPLIES & SERVICES,EQUIPMENT FURNITURE & MATERIALS,REVENUE
Walsall Council,http://opendatacommunities.org/id/metropolitan-district-council/walsall ,WC154-502,30.09.2023,ECONOMY & ENVIRONMENT CAPITAL,ALLIANCE LEISURE SERVICES LTD,26/09/2023,"16,102.37",7200-Site Works Contractors,CAPITAL,"NEW CONSTRUCTION,CONVERSION & RENOVATION",CAPITAL
Walsall Council,http://opendatacommunities.org/id/metropolitan-district-council/walsall ,WC154-503,30.09.2023,RESOURCES AND TRANSFORMATION,ALLIED PUBLICITY SERVICES (MANCHESTER) LIMITED T/A APS GROUP,08/09/2023,"2,065.13",6312-External Printing Services,SUPPLIES & SERVICES,PRINTING STATIONERY & GENERAL OFFICE,REVENUE
Walsall Council,http://opendatacommunities.org/id/metropolitan-district-council/walsall ,WC154-504,30.09.2023,ADULT SOCIAL CARE,ALMA COURT,26/09/2023,"4,861.00",6541-Nursing EMI,THIRD PARTY PAYMENTS,PRIVATE CONTRACTOR,REVENUE
Walsall Council,http://opendatacommunities.org/id/metropolitan-district-council/walsall ,WC154-505,30.09.2023,ADULT SOCIAL CARE,ALMA COURT,26/09/2023,"4,263.00",6541-Residential,THIRD PARTY PAYMENTS,PRIVATE CONTRACTOR,REVENUE
Walsall Council,http://opendatacommunities.org/id/metropolitan-district-council/walsall ,WC154-506,30.09.2023,ADULT SOCIAL CARE,ALMA COURT,26/09/2023,"4,055.28",6541-Nursing EMI,THIRD PARTY PAYMENTS,PRIVATE CONTRACTOR,REVENUE
Walsall Council,http://opendatacommunities.org/id/metropolitan-district-council/walsall ,WC154-507,30.09.2023,ADULT SOCIAL CARE,ALMA COURT,26/09/2023,"6,718.40",6541-Residential,THIRD PARTY PAYMENTS,PRIVATE CONTRACTOR,REVENUE
Walsall Council,http://opendatacommunities.org/id/metropolitan-district-council/walsall ,WC154-508,30.09.2023,ADULT SOCIAL CARE,ALMA COURT,26/09/2023,"8,357.14",6541-Nursing EMI,THIRD PARTY PAYMENTS,PRIVATE CONTRACTOR,REVENUE
Walsall Council,http://opendatacommunities.org/id/metropolitan-district-council/walsall ,WC154-509,30.09.2023,CHILDRENS,ALMOZENE NURSERY & CHILDRENS CENTRE,11/09/2023,"1,735.65",1184-Other-Grants to Other Orgs,SUPPLIES & SERVICES,GRANTS (EXP) & SUBSCRIPTIONS,REVENUE
Walsall Council,http://opendatacommunities.org/id/metropolitan-district-council/walsall ,WC154-510,30.09.2023,CHILDRENS,ALMOZENE NURSERY & CHILDRENS CENTRE,11/09/2023,"4,592.70",1184-Other-Grants to Other Orgs,SUPPLIES & SERVICES,GRANTS (EXP) & SUBSCRIPTIONS,REVENUE
Walsall Council,http://opendatacommunities.org/id/metropolitan-district-council/walsall ,WC154-511,30.09.2023,CHILDRENS,ALMOZENE NURSERY & CHILDRENS CENTRE,21/09/2023,"1,462.18",6211-Professional Fees & Services,SUPPLIES & SERVICES,SERVICES,REVENUE
Walsall Council,http://opendatacommunities.org/id/metropolitan-district-council/walsall ,WC154-512,30.09.2023,ADULT SOCIAL CARE,ALPHA HEALTH CARE LTD,26/09/2023,"3,047.12",6541-Nursing,THIRD PARTY PAYMENTS,PRIVATE CONTRACTOR,REVENUE
Walsall Council,http://opendatacommunities.org/id/metropolitan-district-council/walsall ,WC154-513,30.09.2023,ADULT SOCIAL CARE,ALPHA HEALTH CARE LTD,26/09/2023,"7,105.00",6541-Residential,THIRD PARTY PAYMENTS,PRIVATE CONTRACTOR,REVENUE
Walsall Council,http://opendatacommunities.org/id/metropolitan-district-council/walsall ,WC154-514,30.09.2023,ADULT SOCIAL CARE,ALPHA HEALTH CARE LTD,26/09/2023,"3,422.28",6541-Residential EMI,THIRD PARTY PAYMENTS,PRIVATE CONTRACTOR,REVENUE
Walsall Council,http://opendatacommunities.org/id/metropolitan-district-council/walsall ,WC154-515,30.09.2023,ADULT SOCIAL CARE,ALPHA HEALTH CARE LTD,26/09/2023,"3,422.28",6541-Residential EMI,THIRD PARTY PAYMENTS,PRIVATE CONTRACTOR,REVENUE
Walsall Council,http://opendatacommunities.org/id/metropolitan-district-council/walsall ,WC154-516,30.09.2023,ADULT SOCIAL CARE,ALPHA HEALTH CARE LTD,26/09/2023,"3,723.08",6541-Nursing EMI,THIRD PARTY PAYMENTS,PRIVATE CONTRACTOR,REVENUE
Walsall Council,http://opendatacommunities.org/id/metropolitan-district-council/walsall ,WC154-517,30.09.2023,ADULT SOCIAL CARE,ALPHA HEALTH CARE LTD,26/09/2023,"3,958.52",6541-Residential,THIRD PARTY PAYMENTS,PRIVATE CONTRACTOR,REVENUE
Walsall Council,http://opendatacommunities.org/id/metropolitan-district-council/walsall ,WC154-518,30.09.2023,ADULT SOCIAL CARE,ALPHA HEALTH CARE LTD,26/09/2023,"7,600.00",6541-Residential,THIRD PARTY PAYMENTS,PRIVATE CONTRACTOR,REVENUE
Walsall Council,http://opendatacommunities.org/id/metropolitan-district-council/walsall ,WC154-519,30.09.2023,ADULT SOCIAL CARE,ALPHA HEALTH CARE LTD,26/09/2023,"7,600.00",6541-Residential,THIRD PARTY PAYMENTS,PRIVATE CONTRACTOR,REVENUE
Walsall Council,http://opendatacommunities.org/id/metropolitan-district-council/walsall ,WC154-520,30.09.2023,ADULT SOCIAL CARE,ALPHA HEALTH CARE LTD,26/09/2023,"4,175.28",6541-Nursing EMI,THIRD PARTY PAYMENTS,PRIVATE CONTRACTOR,REVENUE
Walsall Council,http://opendatacommunities.org/id/metropolitan-district-council/walsall ,WC154-521,30.09.2023,ADULT SOCIAL CARE,ALPHA HEALTH CARE LTD,26/09/2023,"1,289.56",6541-Nursing,THIRD PARTY PAYMENTS,PRIVATE CONTRACTOR,REVENUE
Walsall Council,http://opendatacommunities.org/id/metropolitan-district-council/walsall ,WC154-522,30.09.2023,ADULT SOCIAL CARE,ALPHA HEALTH CARE LTD,26/09/2023,"3,090.44",6541-Residential,THIRD PARTY PAYMENTS,PRIVATE CONTRACTOR,REVENUE
Walsall Council,http://opendatacommunities.org/id/metropolitan-district-council/walsall ,WC154-523,30.09.2023,ADULT SOCIAL CARE,ALPHA HEALTH CARE LTD,26/09/2023,"3,567.32",6541-Residential EMI,THIRD PARTY PAYMENTS,PRIVATE CONTRACTOR,REVENUE
Walsall Council,http://opendatacommunities.org/id/metropolitan-district-council/walsall ,WC154-524,30.09.2023,ADULT SOCIAL CARE,ALPHA HEALTH CARE LTD,26/09/2023,"4,855.28",6541-Nursing EMI,THIRD PARTY PAYMENTS,PRIVATE CONTRACTOR,REVENUE
Walsall Council,http://opendatacommunities.org/id/metropolitan-district-council/walsall ,WC154-525,30.09.2023,ADULT SOCIAL CARE,ALPHA HEALTH CARE LTD,26/09/2023,"2,819.08",6541-Nursing EMI,THIRD PARTY PAYMENTS,PRIVATE CONTRACTOR,REVENUE
Walsall Council,http://opendatacommunities.org/id/metropolitan-district-council/walsall ,WC154-526,30.09.2023,ADULT SOCIAL CARE,ALPHA HEALTH CARE LTD,26/09/2023,"7,123.08",6541-Nursing EMI,THIRD PARTY PAYMENTS,PRIVATE CONTRACTOR,REVENUE
Walsall Council,http://opendatacommunities.org/id/metropolitan-district-council/walsall ,WC154-527,30.09.2023,ADULT SOCIAL CARE,ALPHA HEALTH CARE LTD,26/09/2023,"2,936.84",6541-Residential EMI,THIRD PARTY PAYMENTS,PRIVATE CONTRACTOR,REVENUE
Walsall Council,http://opendatacommunities.org/id/metropolitan-district-council/walsall ,WC154-528,30.09.2023,ADULT SOCIAL CARE,ALPHA HEALTH CARE LTD,26/09/2023,"5,055.28",6541-Nursing EMI,THIRD PARTY PAYMENTS,PRIVATE CONTRACTOR,REVENUE
Walsall Council,http://opendatacommunities.org/id/metropolitan-district-council/walsall ,WC154-529,30.09.2023,ADULT SOCIAL CARE,ALPHA HEALTH CARE LTD,26/09/2023,"1,224.00",6554-Professional Services-Priv Contractor & Other Agencies,THIRD PARTY PAYMENTS,PRIVATE CONTRACTOR,REVENUE
Walsall Council,http://opendatacommunities.org/id/metropolitan-district-council/walsall ,WC154-530,30.09.2023,ADULT SOCIAL CARE,ALPHA HEALTH CARE LTD,26/09/2023,"5,298.00",6541-Nursing EMI,THIRD PARTY PAYMENTS,PRIVATE CONTRACTOR,REVENUE
Walsall Council,http://opendatacommunities.org/id/metropolitan-district-council/walsall ,WC154-531,30.09.2023,ADULT SOCIAL CARE,ALPHA HEALTH CARE LTD,26/09/2023,950,6541-Residential EMI,THIRD PARTY PAYMENTS,PRIVATE CONTRACTOR,REVENUE
Walsall Council,http://opendatacommunities.org/id/metropolitan-district-council/walsall ,WC154-532,30.09.2023,ADULT SOCIAL CARE,ALPHA HEALTH CARE LTD,26/09/2023,"4,667.15",6541-Nursing,THIRD PARTY PAYMENTS,PRIVATE CONTRACTOR,REVENUE
Walsall Council,http://opendatacommunities.org/id/metropolitan-district-council/walsall ,WC154-533,30.09.2023,ADULT SOCIAL CARE,ALPHA HEALTH CARE LTD,26/09/2023,"6,343.36",6541-Residential,THIRD PARTY PAYMENTS,PRIVATE CONTRACTOR,REVENUE
Walsall Council,http://opendatacommunities.org/id/metropolitan-district-council/walsall ,WC154-534,30.09.2023,ADULT SOCIAL CARE,ALPHA HEALTH CARE LTD,26/09/2023,"1,231.61",6541-Nursing,THIRD PARTY PAYMENTS,PRIVATE CONTRACTOR,REVENUE
Walsall Council,http://opendatacommunities.org/id/metropolitan-district-council/walsall ,WC154-535,30.09.2023,ADULT SOCIAL CARE,ALPHA HEALTH CARE LTD,26/09/2023,"2,905.36",6541-Nursing,THIRD PARTY PAYMENTS,PRIVATE CONTRACTOR,REVENUE
Walsall Council,http://opendatacommunities.org/id/metropolitan-district-council/walsall ,WC154-536,30.09.2023,ADULT SOCIAL CARE,ALPHA HEALTH CARE LTD,26/09/2023,"3,829.36",6541-Residential EMI,THIRD PARTY PAYMENTS,PRIVATE CONTRACTOR,REVENUE
Walsall Council,http://opendatacommunities.org/id/metropolitan-district-council/walsall ,WC154-537,30.09.2023,ADULT SOCIAL CARE,ALPHA HEALTH CARE LTD,26/09/2023,"7,600.00",6541-Residential,THIRD PARTY PAYMENTS,PRIVATE CONTRACTOR,REVENUE
Walsall Council,http://opendatacommunities.org/id/metropolitan-district-council/walsall ,WC154-538,30.09.2023,ADULT SOCIAL CARE,ALPHA HEALTH CARE LTD,26/09/2023,"3,721.16",6541-Nursing EMI,THIRD PARTY PAYMENTS,PRIVATE CONTRACTOR,REVENUE
Walsall Council,http://opendatacommunities.org/id/metropolitan-district-council/walsall ,WC154-539,30.09.2023,ADULT SOCIAL CARE,ALPHA HEALTH CARE LTD,26/09/2023,"2,280.00",6554-Professional Services-Priv Contractor & Other Agencies,THIRD PARTY PAYMENTS,PRIVATE CONTRACTOR,REVENUE
Walsall Council,http://opendatacommunities.org/id/metropolitan-district-council/walsall ,WC154-540,30.09.2023,ADULT SOCIAL CARE,ALPHA HEALTH CARE LTD,26/09/2023,"3,800.00",6541-Residential,THIRD PARTY PAYMENTS,PRIVATE CONTRACTOR,REVENUE
Walsall Council,http://opendatacommunities.org/id/metropolitan-district-council/walsall ,WC154-541,30.09.2023,ADULT SOCIAL CARE,ALPHA HEALTH CARE LTD,26/09/2023,"1,224.00",6541-Nursing,THIRD PARTY PAYMENTS,PRIVATE CONTRACTOR,REVENUE
Walsall Council,http://opendatacommunities.org/id/metropolitan-district-council/walsall ,WC154-542,30.09.2023,ADULT SOCIAL CARE,ALPHA HEALTH CARE LTD,26/09/2023,"31,635.00",6541-Residential,THIRD PARTY PAYMENTS,PRIVATE CONTRACTOR,REVENUE
Walsall Council,http://opendatacommunities.org/id/metropolitan-district-council/walsall ,WC154-543,30.09.2023,ADULT SOCIAL CARE,ALPHA HEALTH CARE LTD,26/09/2023,"3,445.36",6541-Residential EMI,THIRD PARTY PAYMENTS,PRIVATE CONTRACTOR,REVENUE
Walsall Council,http://opendatacommunities.org/id/metropolitan-district-council/walsall ,WC154-544,30.09.2023,ADULT SOCIAL CARE,ALPHA HEALTH CARE LTD,26/09/2023,"2,813.36",6541-Residential EMI,THIRD PARTY PAYMENTS,PRIVATE CONTRACTOR,REVENUE
Walsall Council,http://opendatacommunities.org/id/metropolitan-district-council/walsall ,WC154-545,30.09.2023,ADULT SOCIAL CARE,ALPHA HEALTH CARE LTD,26/09/2023,"4,027.32",6541-Residential EMI,THIRD PARTY PAYMENTS,PRIVATE CONTRACTOR,REVENUE
Walsall Council,http://opendatacommunities.org/id/metropolitan-district-council/walsall ,WC154-546,30.09.2023,ADULT SOCIAL CARE,ALPHA HEALTH CARE LTD,26/09/2023,"2,413.36",6541-Residential EMI,THIRD PARTY PAYMENTS,PRIVATE CONTRACTOR,REVENUE
Walsall Council,http://opendatacommunities.org/id/metropolitan-district-council/walsall ,WC154-547,30.09.2023,ADULT SOCIAL CARE,ALPHA HEALTH CARE LTD,26/09/2023,"7,754.00",6541-Nursing EMI,THIRD PARTY PAYMENTS,PRIVATE CONTRACTOR,REVENUE
Walsall Council,http://opendatacommunities.org/id/metropolitan-district-council/walsall ,WC154-548,30.09.2023,ADULT SOCIAL CARE,ALPHA HEALTH CARE LTD,26/09/2023,"5,000.00",6541-Residential,THIRD PARTY PAYMENTS,PRIVATE CONTRACTOR,REVENUE
Walsall Council,http://opendatacommunities.org/id/metropolitan-district-council/walsall ,WC154-549,30.09.2023,ADULT SOCIAL CARE,ALPHA HEALTH CARE LTD,26/09/2023,"5,415.00",6541-Nursing,THIRD PARTY PAYMENTS,PRIVATE CONTRACTOR,REVENUE
Walsall Council,http://opendatacommunities.org/id/metropolitan-district-council/walsall ,WC154-550,30.09.2023,ADULT SOCIAL CARE,ALPHA HEALTH CARE LTD,26/09/2023,"4,440.00",6541-Nursing EMI,THIRD PARTY PAYMENTS,PRIVATE CONTRACTOR,REVENUE
Walsall Council,http://opendatacommunities.org/id/metropolitan-district-council/walsall ,WC154-551,30.09.2023,ADULT SOCIAL CARE,ALPHA HEALTH CARE LTD,26/09/2023,"11,115.00",6541-Residential,THIRD PARTY PAYMENTS,PRIVATE CONTRACTOR,REVENUE
Walsall Council,http://opendatacommunities.org/id/metropolitan-district-council/walsall ,WC154-552,30.09.2023,CHILDRENS,ALPHA TRAINING ACADEMY UK LTD,27/09/2023,"2,924.00",1187-Materials,SUPPLIES & SERVICES,EQUIPMENT FURNITURE & MATERIALS,REVENUE
Walsall Council,http://opendatacommunities.org/id/metropolitan-district-council/walsall ,WC154-553,30.09.2023,CHILDRENS,ALPHABIOLABS,12/09/2023,"1,192.80",6222-Professional Fees & Services,SUPPLIES & SERVICES,SERVICES,REVENUE
Walsall Council,http://opendatacommunities.org/id/metropolitan-district-council/walsall ,WC154-554,30.09.2023,CHILDRENS,ALPHABIOLABS,12/09/2023,535,6222-Professional Fees & Services,SUPPLIES & SERVICES,SERVICES,REVENUE
Walsall Council,http://opendatacommunities.org/id/metropolitan-district-council/walsall ,WC154-555,30.09.2023,CHILDRENS,ALPHABIOLABS,15/09/2023,"1,030.00",6222-Professional Fees & Services,SUPPLIES & SERVICES,SERVICES,REVENUE
Walsall Council,http://opendatacommunities.org/id/metropolitan-district-council/walsall ,WC154-556,30.09.2023,ADULT SOCIAL CARE,REDACTED,07/09/2023,885.4,6541-Direct Payment,THIRD PARTY PAYMENTS,PRIVATE CONTRACTOR,REVENUE
Walsall Council,http://opendatacommunities.org/id/metropolitan-district-council/walsall ,WC154-557,30.09.2023,CHILDRENS,AMAH NURSERIES LIMITED T/A BANANA MOON WALSALL,11/09/2023,"8,678.25",1184-Other-Grants to Other Orgs,SUPPLIES & SERVICES,GRANTS (EXP) & SUBSCRIPTIONS,REVENUE
Walsall Council,http://opendatacommunities.org/id/metropolitan-district-council/walsall ,WC154-558,30.09.2023,CHILDRENS,AMAH NURSERIES LIMITED T/A BANANA MOON WALSALL,11/09/2023,"10,716.30",1184-Other-Grants to Other Orgs,SUPPLIES & SERVICES,GRANTS (EXP) & SUBSCRIPTIONS,REVENUE
Walsall Council,http://opendatacommunities.org/id/metropolitan-district-council/walsall ,WC154-559,30.09.2023,CHILDRENS,LITTLE BLOSSOMS CHILDMINDING,21/09/2023,"1,105.00",6223-Creche Facilities,SUPPLIES & SERVICES,SERVICES,REVENUE
Walsall Council,http://opendatacommunities.org/id/metropolitan-district-council/walsall ,WC154-560,30.09.2023,ADULT SOCIAL CARE,REDACTED,07/09/2023,"2,531.05",6541-Direct Payment,THIRD PARTY PAYMENTS,PRIVATE CONTRACTOR,REVENUE
Walsall Council,http://opendatacommunities.org/id/metropolitan-district-council/walsall ,WC154-561,30.09.2023,ECONOMY & ENVIRONMENT CAPITAL,AMEY LG LIMITED,28/09/2023,"12,584.86",7200-Site Works - Other Contractors,CAPITAL,"NEW CONSTRUCTION,CONVERSION & RENOVATION",CAPITAL
Walsall Council,http://opendatacommunities.org/id/metropolitan-district-council/walsall ,WC154-562,30.09.2023,ECONOMY & ENVIRONMENT CAPITAL,AMEY LG LIMITED,28/09/2023,"-1,950.11",7200-Site Works - Other Contractors,CAPITAL,"NEW CONSTRUCTION,CONVERSION & RENOVATION",CAPITAL
Walsall Council,http://opendatacommunities.org/id/metropolitan-district-council/walsall ,WC154-563,30.09.2023,ECONOMY & ENVIRONMENT CAPITAL,AMEY LG LIMITED,28/09/2023,"1,950.11",7200-Site Works - Other Contractors,CAPITAL,"NEW CONSTRUCTION,CONVERSION & RENOVATION",CAPITAL
Walsall Council,http://opendatacommunities.org/id/metropolitan-district-council/walsall ,WC154-564,30.09.2023,ECONOMY & ENVIRONMENT CAPITAL,AMEY OW LTD,22/09/2023,"2,438.39",7200-Project Fees,CAPITAL,"NEW CONSTRUCTION,CONVERSION & RENOVATION",CAPITAL
Walsall Council,http://opendatacommunities.org/id/metropolitan-district-council/walsall ,WC154-565,30.09.2023,ECONOMY & ENVIRONMENT CAPITAL,AMEY OW LTD,22/09/2023,"1,728.40",7200-Project Fees,CAPITAL,"NEW CONSTRUCTION,CONVERSION & RENOVATION",CAPITAL
Walsall Council,http://opendatacommunities.org/id/metropolitan-district-council/walsall ,WC154-566,30.09.2023,ECONOMY & ENVIRONMENT CAPITAL,AMEY OW LTD,22/09/2023,"1,514.57",7200-Site Works Contractors,CAPITAL,"NEW CONSTRUCTION,CONVERSION & RENOVATION",CAPITAL
Walsall Council,http://opendatacommunities.org/id/metropolitan-district-council/walsall ,WC154-567,30.09.2023,ECONOMY & ENVIRONMENT CAPITAL,AMEY OW LTD,27/09/2023,"1,087.72",7200-Project Fees,CAPITAL,"NEW CONSTRUCTION,CONVERSION & RENOVATION",CAPITAL
Walsall Council,http://opendatacommunities.org/id/metropolitan-district-council/walsall ,WC154-568,30.09.2023,CHILDRENS,AMG NURSING CARE SERVICES,19/09/2023,325.28,6220-Professional Fees & Services,SUPPLIES & SERVICES,SERVICES,REVENUE
Walsall Council,http://opendatacommunities.org/id/metropolitan-district-council/walsall ,WC154-569,30.09.2023,CHILDRENS,AMG NURSING CARE SERVICES,19/09/2023,406.6,6220-Professional Fees & Services,SUPPLIES & SERVICES,SERVICES,REVENUE
Walsall Council,http://opendatacommunities.org/id/metropolitan-district-council/walsall ,WC154-570,30.09.2023,CHILDRENS,AMG NURSING CARE SERVICES,20/09/2023,406.6,6220-Professional Fees & Services,SUPPLIES & SERVICES,SERVICES,REVENUE
Walsall Council,http://opendatacommunities.org/id/metropolitan-district-council/walsall ,WC154-571,30.09.2023,CHILDRENS,AMG NURSING CARE SERVICES,01/09/2023,535.3,6220-Professional Fees & Services,SUPPLIES & SERVICES,SERVICES,REVENUE
Walsall Council,http://opendatacommunities.org/id/metropolitan-district-council/walsall ,WC154-572,30.09.2023,CHILDRENS,AMG NURSING CARE SERVICES,01/09/2023,674.3,6220-Professional Fees & Services,SUPPLIES & SERVICES,SERVICES,REVENUE
Walsall Council,http://opendatacommunities.org/id/metropolitan-district-council/walsall ,WC154-573,30.09.2023,CHILDRENS,AMG NURSING CARE SERVICES,01/09/2023,759,6220-Professional Fees & Services,SUPPLIES & SERVICES,SERVICES,REVENUE
Walsall Council,http://opendatacommunities.org/id/metropolitan-district-council/walsall ,WC154-574,30.09.2023,CHILDRENS,AMG NURSING CARE SERVICES,01/09/2023,456,6220-Professional Fees & Services,SUPPLIES & SERVICES,SERVICES,REVENUE
Walsall Council,http://opendatacommunities.org/id/metropolitan-district-council/walsall ,WC154-575,30.09.2023,CHILDRENS,AMG NURSING CARE SERVICES,01/09/2023,469.2,6220-Professional Fees & Services,SUPPLIES & SERVICES,SERVICES,REVENUE
Walsall Council,http://opendatacommunities.org/id/metropolitan-district-council/walsall ,WC154-576,30.09.2023,CHILDRENS,AMG NURSING CARE SERVICES,13/09/2023,"1,119.51",6220-Professional Fees & Services,SUPPLIES & SERVICES,SERVICES,REVENUE
Walsall Council,http://opendatacommunities.org/id/metropolitan-district-council/walsall ,WC154-577,30.09.2023,CHILDRENS,AMG NURSING CARE SERVICES,14/09/2023,504.72,6220-Professional Fees & Services,SUPPLIES & SERVICES,SERVICES,REVENUE
Walsall Council,http://opendatacommunities.org/id/metropolitan-district-council/walsall ,WC154-578,30.09.2023,CHILDRENS,AMG NURSING CARE SERVICES,15/09/2023,535.3,6220-Professional Fees & Services,SUPPLIES & SERVICES,SERVICES,REVENUE
Walsall Council,http://opendatacommunities.org/id/metropolitan-district-council/walsall ,WC154-579,30.09.2023,CHILDRENS,AMG NURSING CARE SERVICES,14/09/2023,"1,337.81",6220-Professional Fees & Services,SUPPLIES & SERVICES,SERVICES,REVENUE
Walsall Council,http://opendatacommunities.org/id/metropolitan-district-council/walsall ,WC154-580,30.09.2023,CHILDRENS,AMG NURSING CARE SERVICES,14/09/2023,787.72,6220-Professional Fees & Services,SUPPLIES & SERVICES,SERVICES,REVENUE
Walsall Council,http://opendatacommunities.org/id/metropolitan-district-council/walsall ,WC154-581,30.09.2023,CHILDRENS,AMG NURSING CARE SERVICES,22/09/2023,"1,228.66",6220-Professional Fees & Services,SUPPLIES & SERVICES,SERVICES,REVENUE
Walsall Council,http://opendatacommunities.org/id/metropolitan-district-council/walsall ,WC154-582,30.09.2023,CHILDRENS,AMG NURSING CARE SERVICES,22/09/2023,622.4,6220-Professional Fees & Services,SUPPLIES & SERVICES,SERVICES,REVENUE
Walsall Council,http://opendatacommunities.org/id/metropolitan-district-council/walsall ,WC154-583,30.09.2023,CHILDRENS,AMG NURSING CARE SERVICES,29/09/2023,535.3,6220-Professional Fees & Services,SUPPLIES & SERVICES,SERVICES,REVENUE
Walsall Council,http://opendatacommunities.org/id/metropolitan-district-council/walsall ,WC154-584,30.09.2023,CHILDRENS,AMG NURSING CARE SERVICES,29/09/2023,"1,228.66",6220-Professional Fees & Services,SUPPLIES & SERVICES,SERVICES,REVENUE
Walsall Council,http://opendatacommunities.org/id/metropolitan-district-council/walsall ,WC154-585,30.09.2023,CHILDRENS,AMG NURSING CARE SERVICES,29/09/2023,483.56,6220-Professional Fees & Services,SUPPLIES & SERVICES,SERVICES,REVENUE
Walsall Council,http://opendatacommunities.org/id/metropolitan-district-council/walsall ,WC154-586,30.09.2023,CHILDRENS,REDACTED,20/09/2023,604,6223-Special Guardianship Orders,TRANSFER PAYMENTS,CHILDREN SOCIAL SERVICES CLIENT,REVENUE
Walsall Council,http://opendatacommunities.org/id/metropolitan-district-council/walsall ,WC154-587,30.09.2023,CHILDRENS,REDACTED,20/09/2023,374,6223-Special Guardianship Orders,TRANSFER PAYMENTS,CHILDREN SOCIAL SERVICES CLIENT,REVENUE
Walsall Council,http://opendatacommunities.org/id/metropolitan-district-council/walsall ,WC154-588,30.09.2023,ADULT SOCIAL CARE,ANCHOR HANOVER GROUP - BLOOMFIELD COURT,26/09/2023,"2,413.36",6541-Residential EMI,THIRD PARTY PAYMENTS,PRIVATE CONTRACTOR,REVENUE
Walsall Council,http://opendatacommunities.org/id/metropolitan-district-council/walsall ,WC154-589,30.09.2023,ADULT SOCIAL CARE,ANCHOR HANOVER GROUP - HARDEN HALL CARE HOME,26/09/2023,"2,413.36",6541-Residential EMI,THIRD PARTY PAYMENTS,PRIVATE CONTRACTOR,REVENUE
Walsall Council,http://opendatacommunities.org/id/metropolitan-district-council/walsall ,WC154-590,30.09.2023,ADULT SOCIAL CARE,ANCHOR HANOVER GROUP - HARDEN HALL CARE HOME,26/09/2023,"2,413.36",6541-Residential EMI,THIRD PARTY PAYMENTS,PRIVATE CONTRACTOR,REVENUE
Walsall Council,http://opendatacommunities.org/id/metropolitan-district-council/walsall ,WC154-591,30.09.2023,ADULT SOCIAL CARE,ANCHOR HANOVER GROUP - HARDEN HALL CARE HOME,26/09/2023,"2,413.36",6541-Residential EMI,THIRD PARTY PAYMENTS,PRIVATE CONTRACTOR,REVENUE
Walsall Council,http://opendatacommunities.org/id/metropolitan-district-council/walsall ,WC154-592,30.09.2023,ADULT SOCIAL CARE,ANCHOR HANOVER GROUP - HARDEN HALL CARE HOME,26/09/2023,"2,413.36",6541-Residential EMI,THIRD PARTY PAYMENTS,PRIVATE CONTRACTOR,REVENUE
Walsall Council,http://opendatacommunities.org/id/metropolitan-district-council/walsall ,WC154-593,30.09.2023,ADULT SOCIAL CARE,ANCHOR HANOVER GROUP - HARDEN HALL CARE HOME,26/09/2023,"2,413.36",6541-Residential EMI,THIRD PARTY PAYMENTS,PRIVATE CONTRACTOR,REVENUE
Walsall Council,http://opendatacommunities.org/id/metropolitan-district-council/walsall ,WC154-594,30.09.2023,ADULT SOCIAL CARE,ANCHOR HANOVER GROUP - HARDEN HALL CARE HOME,26/09/2023,"2,137.32",6541-Residential,THIRD PARTY PAYMENTS,PRIVATE CONTRACTOR,REVENUE
Walsall Council,http://opendatacommunities.org/id/metropolitan-district-council/walsall ,WC154-595,30.09.2023,ADULT SOCIAL CARE,ANCHOR HANOVER GROUP - HARDEN HALL CARE HOME,26/09/2023,"2,773.36",6541-Residential EMI,THIRD PARTY PAYMENTS,PRIVATE CONTRACTOR,REVENUE
Walsall Council,http://opendatacommunities.org/id/metropolitan-district-council/walsall ,WC154-596,30.09.2023,ADULT SOCIAL CARE,ANCHOR HANOVER GROUP - HARDEN HALL CARE HOME,26/09/2023,"2,693.36",6541-Residential EMI,THIRD PARTY PAYMENTS,PRIVATE CONTRACTOR,REVENUE
Walsall Council,http://opendatacommunities.org/id/metropolitan-district-council/walsall ,WC154-597,30.09.2023,ADULT SOCIAL CARE,ANCHOR HANOVER GROUP - HARDEN HALL CARE HOME,26/09/2023,"2,773.36",6541-Residential EMI,THIRD PARTY PAYMENTS,PRIVATE CONTRACTOR,REVENUE
Walsall Council,http://opendatacommunities.org/id/metropolitan-district-council/walsall ,WC154-598,30.09.2023,ADULT SOCIAL CARE,ANCHOR HANOVER GROUP - HARDEN HALL CARE HOME,26/09/2023,278.07,6541-Residential EMI,THIRD PARTY PAYMENTS,PRIVATE CONTRACTOR,REVENUE
Walsall Council,http://opendatacommunities.org/id/metropolitan-district-council/walsall ,WC154-599,30.09.2023,ADULT SOCIAL CARE,ANCHOR HANOVER GROUP - HARDEN HALL CARE HOME,26/09/2023,"2,413.36",6541-Residential EMI,THIRD PARTY PAYMENTS,PRIVATE CONTRACTOR,REVENUE
Walsall Council,http://opendatacommunities.org/id/metropolitan-district-council/walsall ,WC154-600,30.09.2023,ADULT SOCIAL CARE,ANCHOR HANOVER GROUP - HARDEN HALL CARE HOME,26/09/2023,"2,773.36",6541-Residential EMI,THIRD PARTY PAYMENTS,PRIVATE CONTRACTOR,REVENUE
Walsall Council,http://opendatacommunities.org/id/metropolitan-district-council/walsall ,WC154-601,30.09.2023,ADULT SOCIAL CARE,ANCHOR HANOVER GROUP - HARDEN HALL CARE HOME,26/09/2023,"2,413.36",6541-Residential EMI,THIRD PARTY PAYMENTS,PRIVATE CONTRACTOR,REVENUE
Walsall Council,http://opendatacommunities.org/id/metropolitan-district-council/walsall ,WC154-602,30.09.2023,ADULT SOCIAL CARE,ANCHOR HANOVER GROUP - HARDEN HALL CARE HOME,26/09/2023,"2,413.36",6541-Residential EMI,THIRD PARTY PAYMENTS,PRIVATE CONTRACTOR,REVENUE
Walsall Council,http://opendatacommunities.org/id/metropolitan-district-council/walsall ,WC154-603,30.09.2023,ADULT SOCIAL CARE,ANCHOR HANOVER GROUP - HARDEN HALL CARE HOME,26/09/2023,"2,413.36",6541-Residential EMI,THIRD PARTY PAYMENTS,PRIVATE CONTRACTOR,REVENUE
Walsall Council,http://opendatacommunities.org/id/metropolitan-district-council/walsall ,WC154-604,30.09.2023,ADULT SOCIAL CARE,ANCHOR HANOVER GROUP - HARDEN HALL CARE HOME,26/09/2023,"2,413.36",6541-Residential EMI,THIRD PARTY PAYMENTS,PRIVATE CONTRACTOR,REVENUE
Walsall Council,http://opendatacommunities.org/id/metropolitan-district-council/walsall ,WC154-605,30.09.2023,ADULT SOCIAL CARE,ANCHOR HANOVER GROUP - HARDEN HALL CARE HOME,26/09/2023,"8,617.22",6541-Residential EMI,THIRD PARTY PAYMENTS,PRIVATE CONTRACTOR,REVENUE
Walsall Council,http://opendatacommunities.org/id/metropolitan-district-council/walsall ,WC154-606,30.09.2023,ADULT SOCIAL CARE,ANCHOR HANOVER GROUP - HARDEN HALL CARE HOME,26/09/2023,"2,773.36",6541-Residential EMI,THIRD PARTY PAYMENTS,PRIVATE CONTRACTOR,REVENUE
Walsall Council,http://opendatacommunities.org/id/metropolitan-district-council/walsall ,WC154-607,30.09.2023,ADULT SOCIAL CARE,ANCHOR HANOVER GROUP - HARDEN HALL CARE HOME,26/09/2023,"2,137.32",6541-Residential,THIRD PARTY PAYMENTS,PRIVATE CONTRACTOR,REVENUE
Walsall Council,http://opendatacommunities.org/id/metropolitan-district-council/walsall ,WC154-608,30.09.2023,ADULT SOCIAL CARE,ANCHOR HANOVER GROUP - HARDEN HALL CARE HOME,26/09/2023,"2,773.36",6541-Residential EMI,THIRD PARTY PAYMENTS,PRIVATE CONTRACTOR,REVENUE
Walsall Council,http://opendatacommunities.org/id/metropolitan-district-council/walsall ,WC154-609,30.09.2023,ADULT SOCIAL CARE,ANCHOR HANOVER GROUP - HARDEN HALL CARE HOME,26/09/2023,"2,773.36",6541-Residential EMI,THIRD PARTY PAYMENTS,PRIVATE CONTRACTOR,REVENUE
Walsall Council,http://opendatacommunities.org/id/metropolitan-district-council/walsall ,WC154-610,30.09.2023,ADULT SOCIAL CARE,ANCHOR HANOVER GROUP - HARDEN HALL CARE HOME,26/09/2023,"2,773.36",6541-Residential EMI,THIRD PARTY PAYMENTS,PRIVATE CONTRACTOR,REVENUE
Walsall Council,http://opendatacommunities.org/id/metropolitan-district-council/walsall ,WC154-611,30.09.2023,ADULT SOCIAL CARE,ANCHOR HANOVER GROUP - HARDEN HALL CARE HOME,26/09/2023,"1,980.97",6541-Residential EMI,THIRD PARTY PAYMENTS,PRIVATE CONTRACTOR,REVENUE
Walsall Council,http://opendatacommunities.org/id/metropolitan-district-council/walsall ,WC154-612,30.09.2023,ADULT SOCIAL CARE,ANCHOR HANOVER GROUP - HARDEN HALL CARE HOME,26/09/2023,"2,613.36",6541-Residential EMI,THIRD PARTY PAYMENTS,PRIVATE CONTRACTOR,REVENUE
Walsall Council,http://opendatacommunities.org/id/metropolitan-district-council/walsall ,WC154-613,30.09.2023,ADULT SOCIAL CARE,ANCHOR HANOVER GROUP - HARDEN HALL CARE HOME,26/09/2023,"2,773.36",6541-Residential EMI,THIRD PARTY PAYMENTS,PRIVATE CONTRACTOR,REVENUE
Walsall Council,http://opendatacommunities.org/id/metropolitan-district-council/walsall ,WC154-614,30.09.2023,ADULT SOCIAL CARE,ANCHOR HANOVER GROUP - HARDEN HALL CARE HOME,26/09/2023,"2,137.32",6541-Residential,THIRD PARTY PAYMENTS,PRIVATE CONTRACTOR,REVENUE
Walsall Council,http://opendatacommunities.org/id/metropolitan-district-council/walsall ,WC154-615,30.09.2023,ADULT SOCIAL CARE,ANCHOR HANOVER GROUP - HARDEN HALL CARE HOME,26/09/2023,915.99,6541-Residential,THIRD PARTY PAYMENTS,PRIVATE CONTRACTOR,REVENUE
Walsall Council,http://opendatacommunities.org/id/metropolitan-district-council/walsall ,WC154-616,30.09.2023,CHILDRENS,REDACTED,20/09/2023,355.56,6223-Special Guardianship Orders,TRANSFER PAYMENTS,CHILDREN SOCIAL SERVICES CLIENT,REVENUE
Walsall Council,http://opendatacommunities.org/id/metropolitan-district-council/walsall ,WC154-617,30.09.2023,ADULT SOCIAL CARE,REDACTED,07/09/2023,954.75,6541-Direct Payment,THIRD PARTY PAYMENTS,PRIVATE CONTRACTOR,REVENUE
Walsall Council,http://opendatacommunities.org/id/metropolitan-district-council/walsall ,WC154-618,30.09.2023,ADULT SOCIAL CARE,REDACTED,07/09/2023,"3,915.00",6541-Direct Payment,THIRD PARTY PAYMENTS,PRIVATE CONTRACTOR,REVENUE
Walsall Council,http://opendatacommunities.org/id/metropolitan-district-council/walsall ,WC154-619,30.09.2023,CHILDRENS CAPITAL,ANDREWS ELECTRICAL LTD,21/09/2023,"1,480.00",7150-Site Works Contractors,CAPITAL,"NEW CONSTRUCTION,CONVERSION & RENOVATION",CAPITAL
Walsall Council,http://opendatacommunities.org/id/metropolitan-district-council/walsall ,WC154-620,30.09.2023,CHILDRENS,REDACTED,20/09/2023,401.32,6223-Special Guardianship Orders,TRANSFER PAYMENTS,CHILDREN SOCIAL SERVICES CLIENT,REVENUE
Walsall Council,http://opendatacommunities.org/id/metropolitan-district-council/walsall ,WC154-621,30.09.2023,CHILDRENS,REDACTED,20/09/2023,352,6223-Special Guardianship Orders,TRANSFER PAYMENTS,CHILDREN SOCIAL SERVICES CLIENT,REVENUE
Walsall Council,http://opendatacommunities.org/id/metropolitan-district-council/walsall ,WC154-622,30.09.2023,CHILDRENS,ANGELS AND BUTTERFLIES CHILDMINDING,12/09/2023,"5,358.15",1184-Other-Grants to Other Orgs,SUPPLIES & SERVICES,GRANTS (EXP) & SUBSCRIPTIONS,REVENUE
Walsall Council,http://opendatacommunities.org/id/metropolitan-district-council/walsall ,WC154-623,30.09.2023,ADULT SOCIAL CARE,REDACTED,07/09/2023,895.2,6541-Direct Payment,THIRD PARTY PAYMENTS,PRIVATE CONTRACTOR,REVENUE
Walsall Council,http://opendatacommunities.org/id/metropolitan-district-council/walsall ,WC154-624,30.09.2023,ADULT SOCIAL CARE,REDACTED,20/09/2023,"1,159.30",6541-Shared Lives,THIRD PARTY PAYMENTS,PRIVATE CONTRACTOR,REVENUE
Walsall Council,http://opendatacommunities.org/id/metropolitan-district-council/walsall ,WC154-625,30.09.2023,CHILDRENS,REDACTED,20/09/2023,534,6223-Internal Foster Carers-Carer Fees,TRANSFER PAYMENTS,CHILDREN SOCIAL SERVICES CLIENT,REVENUE
Walsall Council,http://opendatacommunities.org/id/metropolitan-district-council/walsall ,WC154-626,30.09.2023,CHILDRENS,REDACTED,20/09/2023,756,6223-Foster Carers Maintenance Allowance,TRANSFER PAYMENTS,CHILDREN SOCIAL SERVICES CLIENT,REVENUE
Walsall Council,http://opendatacommunities.org/id/metropolitan-district-council/walsall ,WC154-627,30.09.2023,ADULT SOCIAL CARE,REDACTED,07/09/2023,724.8,6541-Direct Payment,THIRD PARTY PAYMENTS,PRIVATE CONTRACTOR,REVENUE
Walsall Council,http://opendatacommunities.org/id/metropolitan-district-council/walsall ,WC154-628,30.09.2023,ADULT SOCIAL CARE,ANSON COURT RESIDENTIAL HOME,26/09/2023,"2,413.36",6541-Residential EMI,THIRD PARTY PAYMENTS,PRIVATE CONTRACTOR,REVENUE
Walsall Council,http://opendatacommunities.org/id/metropolitan-district-council/walsall ,WC154-629,30.09.2023,ADULT SOCIAL CARE,ANSON COURT RESIDENTIAL HOME,26/09/2023,"2,413.36",6541-Residential EMI,THIRD PARTY PAYMENTS,PRIVATE CONTRACTOR,REVENUE
Walsall Council,http://opendatacommunities.org/id/metropolitan-district-council/walsall ,WC154-630,30.09.2023,ADULT SOCIAL CARE,ANSON COURT RESIDENTIAL HOME,26/09/2023,"2,257.32",6541-Residential,THIRD PARTY PAYMENTS,PRIVATE CONTRACTOR,REVENUE
Walsall Council,http://opendatacommunities.org/id/metropolitan-district-council/walsall ,WC154-631,30.09.2023,ADULT SOCIAL CARE,ANSON COURT RESIDENTIAL HOME,26/09/2023,"2,413.36",6541-Residential EMI,THIRD PARTY PAYMENTS,PRIVATE CONTRACTOR,REVENUE
Walsall Council,http://opendatacommunities.org/id/metropolitan-district-council/walsall ,WC154-632,30.09.2023,ADULT SOCIAL CARE,ANSON COURT RESIDENTIAL HOME,26/09/2023,"2,413.36",6541-Residential EMI,THIRD PARTY PAYMENTS,PRIVATE CONTRACTOR,REVENUE
Walsall Council,http://opendatacommunities.org/id/metropolitan-district-council/walsall ,WC154-633,30.09.2023,ADULT SOCIAL CARE,ANSON COURT RESIDENTIAL HOME,26/09/2023,"2,413.36",6541-Residential EMI,THIRD PARTY PAYMENTS,PRIVATE CONTRACTOR,REVENUE
Walsall Council,http://opendatacommunities.org/id/metropolitan-district-council/walsall ,WC154-634,30.09.2023,ADULT SOCIAL CARE,ANSON COURT RESIDENTIAL HOME,26/09/2023,"2,137.32",6541-Residential,THIRD PARTY PAYMENTS,PRIVATE CONTRACTOR,REVENUE
Walsall Council,http://opendatacommunities.org/id/metropolitan-district-council/walsall ,WC154-635,30.09.2023,ADULT SOCIAL CARE,ANSON COURT RESIDENTIAL HOME,26/09/2023,"2,413.36",6541-Residential EMI,THIRD PARTY PAYMENTS,PRIVATE CONTRACTOR,REVENUE
Walsall Council,http://opendatacommunities.org/id/metropolitan-district-council/walsall ,WC154-636,30.09.2023,ADULT SOCIAL CARE,ANSON COURT RESIDENTIAL HOME,26/09/2023,"2,413.36",6541-Residential EMI,THIRD PARTY PAYMENTS,PRIVATE CONTRACTOR,REVENUE
Walsall Council,http://opendatacommunities.org/id/metropolitan-district-council/walsall ,WC154-637,30.09.2023,ADULT SOCIAL CARE,ANSON COURT RESIDENTIAL HOME,26/09/2023,"2,413.36",6541-Residential EMI,THIRD PARTY PAYMENTS,PRIVATE CONTRACTOR,REVENUE
Walsall Council,http://opendatacommunities.org/id/metropolitan-district-council/walsall ,WC154-638,30.09.2023,ADULT SOCIAL CARE,ANSON COURT RESIDENTIAL HOME,26/09/2023,"2,413.36",6541-Residential EMI,THIRD PARTY PAYMENTS,PRIVATE CONTRACTOR,REVENUE
Walsall Council,http://opendatacommunities.org/id/metropolitan-district-council/walsall ,WC154-639,30.09.2023,ADULT SOCIAL CARE,ANSON COURT RESIDENTIAL HOME,26/09/2023,"2,137.32",6541-Residential,THIRD PARTY PAYMENTS,PRIVATE CONTRACTOR,REVENUE
Walsall Council,http://opendatacommunities.org/id/metropolitan-district-council/walsall ,WC154-640,30.09.2023,ADULT SOCIAL CARE,ANSON COURT RESIDENTIAL HOME,26/09/2023,"2,137.32",6541-Residential,THIRD PARTY PAYMENTS,PRIVATE CONTRACTOR,REVENUE
Walsall Council,http://opendatacommunities.org/id/metropolitan-district-council/walsall ,WC154-641,30.09.2023,ADULT SOCIAL CARE,ANSON COURT RESIDENTIAL HOME,26/09/2023,"2,426.69",6554-Professional Services-Priv Contractor & Other Agencies,THIRD PARTY PAYMENTS,PRIVATE CONTRACTOR,REVENUE
Walsall Council,http://opendatacommunities.org/id/metropolitan-district-council/walsall ,WC154-642,30.09.2023,ADULT SOCIAL CARE,ANSON COURT RESIDENTIAL HOME,26/09/2023,"2,613.64",6541-Residential EMI,THIRD PARTY PAYMENTS,PRIVATE CONTRACTOR,REVENUE
Walsall Council,http://opendatacommunities.org/id/metropolitan-district-council/walsall ,WC154-643,30.09.2023,ADULT SOCIAL CARE,ANSON COURT RESIDENTIAL HOME,26/09/2023,"2,413.36",6541-Residential EMI,THIRD PARTY PAYMENTS,PRIVATE CONTRACTOR,REVENUE
Walsall Council,http://opendatacommunities.org/id/metropolitan-district-council/walsall ,WC154-644,30.09.2023,ADULT SOCIAL CARE,ANSON COURT RESIDENTIAL HOME,26/09/2023,"2,413.36",6541-Residential EMI,THIRD PARTY PAYMENTS,PRIVATE CONTRACTOR,REVENUE
Walsall Council,http://opendatacommunities.org/id/metropolitan-district-council/walsall ,WC154-645,30.09.2023,ADULT SOCIAL CARE,ANSON COURT RESIDENTIAL HOME,26/09/2023,"2,413.36",6541-Residential EMI,THIRD PARTY PAYMENTS,PRIVATE CONTRACTOR,REVENUE
Walsall Council,http://opendatacommunities.org/id/metropolitan-district-council/walsall ,WC154-646,30.09.2023,ADULT SOCIAL CARE,ANSON COURT RESIDENTIAL HOME,26/09/2023,653.34,6541-Residential EMI,THIRD PARTY PAYMENTS,PRIVATE CONTRACTOR,REVENUE
Walsall Council,http://opendatacommunities.org/id/metropolitan-district-council/walsall ,WC154-647,30.09.2023,ADULT SOCIAL CARE,ANSON COURT RESIDENTIAL HOME,26/09/2023,"2,337.32",6541-Residential,THIRD PARTY PAYMENTS,PRIVATE CONTRACTOR,REVENUE
Walsall Council,http://opendatacommunities.org/id/metropolitan-district-council/walsall ,WC154-648,30.09.2023,ADULT SOCIAL CARE,ANSON COURT RESIDENTIAL HOME,26/09/2023,"2,327.17",6541-Residential EMI,THIRD PARTY PAYMENTS,PRIVATE CONTRACTOR,REVENUE
Walsall Council,http://opendatacommunities.org/id/metropolitan-district-council/walsall ,WC154-649,30.09.2023,ADULT SOCIAL CARE,ANSON COURT RESIDENTIAL HOME,26/09/2023,"2,413.36",6541-Residential EMI,THIRD PARTY PAYMENTS,PRIVATE CONTRACTOR,REVENUE
Walsall Council,http://opendatacommunities.org/id/metropolitan-district-council/walsall ,WC154-650,30.09.2023,ADULT SOCIAL CARE,ANSON COURT RESIDENTIAL HOME,26/09/2023,"1,120.01",6541-Residential EMI,THIRD PARTY PAYMENTS,PRIVATE CONTRACTOR,REVENUE
Walsall Council,http://opendatacommunities.org/id/metropolitan-district-council/walsall ,WC154-651,30.09.2023,ADULT SOCIAL CARE,ANSON COURT RESIDENTIAL HOME,20/09/2023,775.72,6541-Residential EMI,THIRD PARTY PAYMENTS,PRIVATE CONTRACTOR,REVENUE
Walsall Council,http://opendatacommunities.org/id/metropolitan-district-council/walsall ,WC154-652,30.09.2023,ADULT SOCIAL CARE,REDACTED,07/09/2023,"1,417.50",6541-Direct Payment,THIRD PARTY PAYMENTS,PRIVATE CONTRACTOR,REVENUE
Walsall Council,http://opendatacommunities.org/id/metropolitan-district-council/walsall ,WC154-653,30.09.2023,CHILDRENS,REDACTED,20/09/2023,371.92,6223-Special Guardianship Orders,TRANSFER PAYMENTS,CHILDREN SOCIAL SERVICES CLIENT,REVENUE
Walsall Council,http://opendatacommunities.org/id/metropolitan-district-council/walsall ,WC154-654,30.09.2023,"ECONOMY, ENVIRONMENT & COMMUNITIES",APCOA PARKING SERVICES (UK) LTD,04/09/2023,"56,177.44",6411-Parking Enforcement Activity-Priv Contractor Fees,THIRD PARTY PAYMENTS,PRIVATE CONTRACTOR,REVENUE
Walsall Council,http://opendatacommunities.org/id/metropolitan-district-council/walsall ,WC154-655,30.09.2023,RESOURCES AND TRANSFORMATION,APCOA PARKING SERVICES (UK) LTD,04/09/2023,-758.4,6634-Oxygen Finance Rebates ,SUPPLIES & SERVICES,SERVICES,REVENUE
Walsall Council,http://opendatacommunities.org/id/metropolitan-district-council/walsall ,WC154-656,30.09.2023,"ECONOMY, ENVIRONMENT & COMMUNITIES",APEX RADIO SYSTEMS LTD,06/09/2023,"2,698.99",6430-Repair & Maintenance of Furniture & Equipment,SUPPLIES & SERVICES,EQUIPMENT FURNITURE & MATERIALS,REVENUE
Walsall Council,http://opendatacommunities.org/id/metropolitan-district-council/walsall ,WC154-657,30.09.2023,CHILDRENS,APP CARZ,20/09/2023,"1,537.40",6314-Other Travel Allowances,TRANSPORT,CAR ALLOWANCES,REVENUE
Walsall Council,http://opendatacommunities.org/id/metropolitan-district-council/walsall ,WC154-658,30.09.2023,CHILDRENS,APPOINT US SERVICES (MIDLANDS) CIC,14/09/2023,-554.8,6222-Professional Fees & Services,SUPPLIES & SERVICES,SERVICES,REVENUE
Walsall Council,http://opendatacommunities.org/id/metropolitan-district-council/walsall ,WC154-659,30.09.2023,CHILDRENS,APPOINT US SERVICES (MIDLANDS) CIC,14/09/2023,546.8,6222-Professional Fees & Services,SUPPLIES & SERVICES,SERVICES,REVENUE
Walsall Council,http://opendatacommunities.org/id/metropolitan-district-council/walsall ,WC154-660,30.09.2023,CHILDRENS,APPOINT US SERVICES (MIDLANDS) CIC,14/09/2023,554.8,6222-Professional Fees & Services,SUPPLIES & SERVICES,SERVICES,REVENUE
Walsall Council,http://opendatacommunities.org/id/metropolitan-district-council/walsall ,WC154-661,30.09.2023,CHILDRENS,APSE 001,12/09/2023,339,6413-External Training,INDIRECT EMPLOYEES,EXTERNAL TRAINING,REVENUE
Walsall Council,http://opendatacommunities.org/id/metropolitan-district-council/walsall ,WC154-662,30.09.2023,CHILDRENS,APSE 001,12/09/2023,339,6413-External Training,INDIRECT EMPLOYEES,EXTERNAL TRAINING,REVENUE
Walsall Council,http://opendatacommunities.org/id/metropolitan-district-council/walsall ,WC154-663,30.09.2023,CHILDRENS,APSE 001,01/09/2023,"-2,134.00",6413-External Training,INDIRECT EMPLOYEES,EXTERNAL TRAINING,REVENUE
Walsall Council,http://opendatacommunities.org/id/metropolitan-district-council/walsall ,WC154-664,30.09.2023,CHILDRENS,APSE 001,01/09/2023,"2,134.00",6413-External Training,INDIRECT EMPLOYEES,EXTERNAL TRAINING,REVENUE
Walsall Council,http://opendatacommunities.org/id/metropolitan-district-council/walsall ,WC154-665,30.09.2023,"ECONOMY, ENVIRONMENT & COMMUNITIES",APSE SOUTHERN,13/09/2023,"-3,338.35",6410-Professional Fees & Services,SUPPLIES & SERVICES,SERVICES,REVENUE
Walsall Council,http://opendatacommunities.org/id/metropolitan-district-council/walsall ,WC154-666,30.09.2023,"ECONOMY, ENVIRONMENT & COMMUNITIES",APSE SOUTHERN,13/09/2023,"-1,335.34",6411-Professional Fees & Services,SUPPLIES & SERVICES,SERVICES,REVENUE
Walsall Council,http://opendatacommunities.org/id/metropolitan-district-council/walsall ,WC154-667,30.09.2023,"ECONOMY, ENVIRONMENT & COMMUNITIES",APSE SOUTHERN,13/09/2023,"-1,335.34",6413-Professional Fees & Services,SUPPLIES & SERVICES,SERVICES,REVENUE
Walsall Council,http://opendatacommunities.org/id/metropolitan-district-council/walsall ,WC154-668,30.09.2023,"ECONOMY, ENVIRONMENT & COMMUNITIES",APSE SOUTHERN,13/09/2023,-667.96,6440-Professional Fees & Services,SUPPLIES & SERVICES,SERVICES,REVENUE
Walsall Council,http://opendatacommunities.org/id/metropolitan-district-council/walsall ,WC154-669,30.09.2023,RESOURCES AND TRANSFORMATION,APSE SOUTHERN,13/09/2023,-667.67,6310-Professional Fees & Services,SUPPLIES & SERVICES,SERVICES,REVENUE
Walsall Council,http://opendatacommunities.org/id/metropolitan-district-council/walsall ,WC154-670,30.09.2023,RESOURCES AND TRANSFORMATION,APSE SOUTHERN,13/09/2023,-667.67,6310-Professional Fees & Services,SUPPLIES & SERVICES,SERVICES,REVENUE
Walsall Council,http://opendatacommunities.org/id/metropolitan-district-council/walsall ,WC154-671,30.09.2023,RESOURCES AND TRANSFORMATION,APSE SOUTHERN,13/09/2023,-667.67,6413-Professional Fees & Services,SUPPLIES & SERVICES,SERVICES,REVENUE
Walsall Council,http://opendatacommunities.org/id/metropolitan-district-council/walsall ,WC154-672,30.09.2023,RESOURCES AND TRANSFORMATION,APSE SOUTHERN,13/09/2023,667.67,6310-Professional Fees & Services,SUPPLIES & SERVICES,SERVICES,REVENUE
Walsall Council,http://opendatacommunities.org/id/metropolitan-district-council/walsall ,WC154-673,30.09.2023,RESOURCES AND TRANSFORMATION,APSE SOUTHERN,13/09/2023,667.67,6310-Professional Fees & Services,SUPPLIES & SERVICES,SERVICES,REVENUE
Walsall Council,http://opendatacommunities.org/id/metropolitan-district-council/walsall ,WC154-674,30.09.2023,RESOURCES AND TRANSFORMATION,APSE SOUTHERN,13/09/2023,667.67,6413-Professional Fees & Services,SUPPLIES & SERVICES,SERVICES,REVENUE
Walsall Council,http://opendatacommunities.org/id/metropolitan-district-council/walsall ,WC154-675,30.09.2023,"ECONOMY, ENVIRONMENT & COMMUNITIES",APSE SOUTHERN,13/09/2023,667.96,6440-Professional Fees & Services,SUPPLIES & SERVICES,SERVICES,REVENUE
Walsall Council,http://opendatacommunities.org/id/metropolitan-district-council/walsall ,WC154-676,30.09.2023,"ECONOMY, ENVIRONMENT & COMMUNITIES",APSE SOUTHERN,13/09/2023,"1,335.34",6411-Professional Fees & Services,SUPPLIES & SERVICES,SERVICES,REVENUE
Walsall Council,http://opendatacommunities.org/id/metropolitan-district-council/walsall ,WC154-677,30.09.2023,"ECONOMY, ENVIRONMENT & COMMUNITIES",APSE SOUTHERN,13/09/2023,"1,335.34",6413-Professional Fees & Services,SUPPLIES & SERVICES,SERVICES,REVENUE
Walsall Council,http://opendatacommunities.org/id/metropolitan-district-council/walsall ,WC154-678,30.09.2023,"ECONOMY, ENVIRONMENT & COMMUNITIES",APSE SOUTHERN,13/09/2023,"3,338.35",6410-Professional Fees & Services,SUPPLIES & SERVICES,SERVICES,REVENUE
Walsall Council,http://opendatacommunities.org/id/metropolitan-district-council/walsall ,WC154-679,30.09.2023,CHILDRENS,APT FOR YOU CIC,21/09/2023,483.01,6211-Professional Fees & Services,SUPPLIES & SERVICES,SERVICES,REVENUE
Walsall Council,http://opendatacommunities.org/id/metropolitan-district-council/walsall ,WC154-680,30.09.2023,RESOURCES AND TRANSFORMATION CAPITAL,AR DEMOLITION LTD,19/09/2023,"1,323.65",7300-Consultants Fees,CAPITAL,"NEW CONSTRUCTION,CONVERSION & RENOVATION",CAPITAL
Walsall Council,http://opendatacommunities.org/id/metropolitan-district-council/walsall ,WC154-681,30.09.2023,CHILDRENS,ARBORETUM HOUSE LTD T/A SAFE HAVEN ARBORETUM HOUSE,05/09/2023,"24,760.00",6223-External Residential Care-Oth Agency Provision,THIRD PARTY PAYMENTS,PRIVATE CONTRACTOR,REVENUE
Walsall Council,http://opendatacommunities.org/id/metropolitan-district-council/walsall ,WC154-682,30.09.2023,ADULT SOCIAL CARE,ARBORETUM NURSING HOME.,26/09/2023,"2,505.36",6541-Nursing,THIRD PARTY PAYMENTS,PRIVATE CONTRACTOR,REVENUE
Walsall Council,http://opendatacommunities.org/id/metropolitan-district-council/walsall ,WC154-683,30.09.2023,ADULT SOCIAL CARE,ARBORETUM NURSING HOME.,26/09/2023,"2,505.36",6541-Nursing,THIRD PARTY PAYMENTS,PRIVATE CONTRACTOR,REVENUE
Walsall Council,http://opendatacommunities.org/id/metropolitan-district-council/walsall ,WC154-684,30.09.2023,ADULT SOCIAL CARE,ARBORETUM NURSING HOME.,26/09/2023,"2,685.36",6541-Nursing,THIRD PARTY PAYMENTS,PRIVATE CONTRACTOR,REVENUE
Walsall Council,http://opendatacommunities.org/id/metropolitan-district-council/walsall ,WC154-685,30.09.2023,ADULT SOCIAL CARE,ARBORETUM NURSING HOME.,26/09/2023,"2,685.36",6541-Nursing,THIRD PARTY PAYMENTS,PRIVATE CONTRACTOR,REVENUE
Walsall Council,http://opendatacommunities.org/id/metropolitan-district-council/walsall ,WC154-686,30.09.2023,ADULT SOCIAL CARE,ARBORETUM NURSING HOME.,26/09/2023,"2,685.36",6541-Nursing,THIRD PARTY PAYMENTS,PRIVATE CONTRACTOR,REVENUE
Walsall Council,http://opendatacommunities.org/id/metropolitan-district-council/walsall ,WC154-687,30.09.2023,ADULT SOCIAL CARE,ARBORETUM NURSING HOME.,26/09/2023,"2,549.12",6541-Nursing,THIRD PARTY PAYMENTS,PRIVATE CONTRACTOR,REVENUE
Walsall Council,http://opendatacommunities.org/id/metropolitan-district-council/walsall ,WC154-688,30.09.2023,ADULT SOCIAL CARE,ARBORETUM NURSING HOME.,26/09/2023,"2,473.64",6541-Nursing,THIRD PARTY PAYMENTS,PRIVATE CONTRACTOR,REVENUE
Walsall Council,http://opendatacommunities.org/id/metropolitan-district-council/walsall ,WC154-689,30.09.2023,ADULT SOCIAL CARE,ARBORETUM NURSING HOME.,26/09/2023,"2,705.36",6541-Nursing,THIRD PARTY PAYMENTS,PRIVATE CONTRACTOR,REVENUE
Walsall Council,http://opendatacommunities.org/id/metropolitan-district-council/walsall ,WC154-690,30.09.2023,ADULT SOCIAL CARE,ARBORETUM NURSING HOME.,26/09/2023,"3,649.12",6541-Nursing,THIRD PARTY PAYMENTS,PRIVATE CONTRACTOR,REVENUE
Walsall Council,http://opendatacommunities.org/id/metropolitan-district-council/walsall ,WC154-691,30.09.2023,ADULT SOCIAL CARE,ARBORETUM NURSING HOME.,26/09/2023,"2,705.36",6541-Nursing,THIRD PARTY PAYMENTS,PRIVATE CONTRACTOR,REVENUE
Walsall Council,http://opendatacommunities.org/id/metropolitan-district-council/walsall ,WC154-692,30.09.2023,ADULT SOCIAL CARE,ARBORETUM NURSING HOME.,26/09/2023,"1,120.00",6554-Professional Services-Priv Contractor & Other Agencies,THIRD PARTY PAYMENTS,PRIVATE CONTRACTOR,REVENUE
Walsall Council,http://opendatacommunities.org/id/metropolitan-district-council/walsall ,WC154-693,30.09.2023,ADULT SOCIAL CARE,ARBORETUM NURSING HOME.,26/09/2023,"2,505.36",6541-Nursing,THIRD PARTY PAYMENTS,PRIVATE CONTRACTOR,REVENUE
Walsall Council,http://opendatacommunities.org/id/metropolitan-district-council/walsall ,WC154-694,30.09.2023,ADULT SOCIAL CARE,ARBORETUM NURSING HOME.,26/09/2023,"2,505.36",6541-Nursing,THIRD PARTY PAYMENTS,PRIVATE CONTRACTOR,REVENUE
Walsall Council,http://opendatacommunities.org/id/metropolitan-district-council/walsall ,WC154-695,30.09.2023,ADULT SOCIAL CARE,ARBORETUM NURSING HOME.,26/09/2023,"2,505.36",6541-Nursing,THIRD PARTY PAYMENTS,PRIVATE CONTRACTOR,REVENUE
Walsall Council,http://opendatacommunities.org/id/metropolitan-district-council/walsall ,WC154-696,30.09.2023,ADULT SOCIAL CARE,ARBORETUM NURSING HOME.,26/09/2023,"3,804.00",6554-Professional Services-Priv Contractor & Other Agencies,THIRD PARTY PAYMENTS,PRIVATE CONTRACTOR,REVENUE
Walsall Council,http://opendatacommunities.org/id/metropolitan-district-council/walsall ,WC154-697,30.09.2023,ADULT SOCIAL CARE,ARBORETUM NURSING HOME.,26/09/2023,490.25,6541-Nursing,THIRD PARTY PAYMENTS,PRIVATE CONTRACTOR,REVENUE
Walsall Council,http://opendatacommunities.org/id/metropolitan-district-council/walsall ,WC154-698,30.09.2023,ADULT SOCIAL CARE,ARBORETUM NURSING HOME.,26/09/2023,"2,729.36",6541-Nursing,THIRD PARTY PAYMENTS,PRIVATE CONTRACTOR,REVENUE
Walsall Council,http://opendatacommunities.org/id/metropolitan-district-council/walsall ,WC154-699,30.09.2023,ADULT SOCIAL CARE,ARBORETUM NURSING HOME.,26/09/2023,"2,785.36",6541-Nursing,THIRD PARTY PAYMENTS,PRIVATE CONTRACTOR,REVENUE
Walsall Council,http://opendatacommunities.org/id/metropolitan-district-council/walsall ,WC154-700,30.09.2023,ADULT SOCIAL CARE,ARBORETUM NURSING HOME.,26/09/2023,"1,260.00",6554-Professional Services-Priv Contractor & Other Agencies,THIRD PARTY PAYMENTS,PRIVATE CONTRACTOR,REVENUE
Walsall Council,http://opendatacommunities.org/id/metropolitan-district-council/walsall ,WC154-701,30.09.2023,ADULT SOCIAL CARE,ARBORETUM NURSING HOME.,26/09/2023,"3,780.00",6554-Professional Services-Priv Contractor & Other Agencies,THIRD PARTY PAYMENTS,PRIVATE CONTRACTOR,REVENUE
Walsall Council,http://opendatacommunities.org/id/metropolitan-district-council/walsall ,WC154-702,30.09.2023,ADULT SOCIAL CARE,ARBORETUM NURSING HOME.,26/09/2023,"3,900.00",6541-Nursing,THIRD PARTY PAYMENTS,PRIVATE CONTRACTOR,REVENUE
Walsall Council,http://opendatacommunities.org/id/metropolitan-district-council/walsall ,WC154-703,30.09.2023,ADULT SOCIAL CARE,ARBORETUM NURSING HOME.,26/09/2023,980.48,6541-Nursing,THIRD PARTY PAYMENTS,PRIVATE CONTRACTOR,REVENUE
Walsall Council,http://opendatacommunities.org/id/metropolitan-district-council/walsall ,WC154-704,30.09.2023,ADULT SOCIAL CARE,ARBORETUM NURSING HOME.,26/09/2023,490.25,6541-Nursing,THIRD PARTY PAYMENTS,PRIVATE CONTRACTOR,REVENUE
Walsall Council,http://opendatacommunities.org/id/metropolitan-district-council/walsall ,WC154-705,30.09.2023,ADULT SOCIAL CARE,ARBORETUM NURSING HOME.,26/09/2023,"2,685.36",6541-Nursing,THIRD PARTY PAYMENTS,PRIVATE CONTRACTOR,REVENUE
Walsall Council,http://opendatacommunities.org/id/metropolitan-district-council/walsall ,WC154-706,30.09.2023,ADULT SOCIAL CARE,ARBORETUM NURSING HOME.,26/09/2023,"3,387.43",6554-Professional Services-Priv Contractor & Other Agencies,THIRD PARTY PAYMENTS,PRIVATE CONTRACTOR,REVENUE
Walsall Council,http://opendatacommunities.org/id/metropolitan-district-council/walsall ,WC154-707,30.09.2023,ADULT SOCIAL CARE,ARBORETUM NURSING HOME.,26/09/2023,"-2,964.00",6554-Professional Services-Priv Contractor & Other Agencies,THIRD PARTY PAYMENTS,PRIVATE CONTRACTOR,REVENUE
Walsall Council,http://opendatacommunities.org/id/metropolitan-district-council/walsall ,WC154-708,30.09.2023,ADULT SOCIAL CARE,ARBORETUM NURSING HOME.,26/09/2023,"3,220.00",6554-Professional Services-Priv Contractor & Other Agencies,THIRD PARTY PAYMENTS,PRIVATE CONTRACTOR,REVENUE
Walsall Council,http://opendatacommunities.org/id/metropolitan-district-council/walsall ,WC154-709,30.09.2023,ADULT SOCIAL CARE,ARBORETUM NURSING HOME.,26/09/2023,"3,920.00",6554-Professional Services-Priv Contractor & Other Agencies,THIRD PARTY PAYMENTS,PRIVATE CONTRACTOR,REVENUE
Walsall Council,http://opendatacommunities.org/id/metropolitan-district-council/walsall ,WC154-710,30.09.2023,ADULT SOCIAL CARE,ARBORETUM NURSING HOME.,26/09/2023,"1,540.00",6554-Professional Services-Priv Contractor & Other Agencies,THIRD PARTY PAYMENTS,PRIVATE CONTRACTOR,REVENUE
Walsall Council,http://opendatacommunities.org/id/metropolitan-district-council/walsall ,WC154-711,30.09.2023,ADULT SOCIAL CARE,ARBORETUM NURSING HOME.,26/09/2023,"2,380.00",6554-Professional Services-Priv Contractor & Other Agencies,THIRD PARTY PAYMENTS,PRIVATE CONTRACTOR,REVENUE
Walsall Council,http://opendatacommunities.org/id/metropolitan-district-council/walsall ,WC154-712,30.09.2023,ADULT SOCIAL CARE,ASH GRANGE CARE HOME,26/09/2023,"2,819.08",6541-Nursing EMI,THIRD PARTY PAYMENTS,PRIVATE CONTRACTOR,REVENUE
Walsall Council,http://opendatacommunities.org/id/metropolitan-district-council/walsall ,WC154-713,30.09.2023,ADULT SOCIAL CARE,ASH GRANGE CARE HOME,26/09/2023,"2,819.08",6541-Nursing EMI,THIRD PARTY PAYMENTS,PRIVATE CONTRACTOR,REVENUE
Walsall Council,http://opendatacommunities.org/id/metropolitan-district-council/walsall ,WC154-714,30.09.2023,ADULT SOCIAL CARE,ASH GRANGE CARE HOME,26/09/2023,"2,884.32",6541-Nursing,THIRD PARTY PAYMENTS,PRIVATE CONTRACTOR,REVENUE
Walsall Council,http://opendatacommunities.org/id/metropolitan-district-council/walsall ,WC154-715,30.09.2023,ADULT SOCIAL CARE,ASH GRANGE CARE HOME,26/09/2023,"2,612.36",6541-Nursing,THIRD PARTY PAYMENTS,PRIVATE CONTRACTOR,REVENUE
Walsall Council,http://opendatacommunities.org/id/metropolitan-district-council/walsall ,WC154-716,30.09.2023,ADULT SOCIAL CARE,ASH GRANGE CARE HOME,26/09/2023,"2,745.36",6541-Nursing,THIRD PARTY PAYMENTS,PRIVATE CONTRACTOR,REVENUE
Walsall Council,http://opendatacommunities.org/id/metropolitan-district-council/walsall ,WC154-717,30.09.2023,ADULT SOCIAL CARE,ASH GRANGE CARE HOME,26/09/2023,"2,905.36",6541-Nursing,THIRD PARTY PAYMENTS,PRIVATE CONTRACTOR,REVENUE
Walsall Council,http://opendatacommunities.org/id/metropolitan-district-council/walsall ,WC154-718,30.09.2023,ADULT SOCIAL CARE,ASH GRANGE CARE HOME,26/09/2023,"2,905.36",6541-Nursing,THIRD PARTY PAYMENTS,PRIVATE CONTRACTOR,REVENUE
Walsall Council,http://opendatacommunities.org/id/metropolitan-district-council/walsall ,WC154-719,30.09.2023,ADULT SOCIAL CARE,ASH GRANGE CARE HOME,26/09/2023,"1,831.99",6541-Residential,THIRD PARTY PAYMENTS,PRIVATE CONTRACTOR,REVENUE
Walsall Council,http://opendatacommunities.org/id/metropolitan-district-council/walsall ,WC154-720,30.09.2023,ADULT SOCIAL CARE,ASH GRANGE CARE HOME,26/09/2023,"2,137.32",6541-Residential,THIRD PARTY PAYMENTS,PRIVATE CONTRACTOR,REVENUE
Walsall Council,http://opendatacommunities.org/id/metropolitan-district-council/walsall ,WC154-721,30.09.2023,ADULT SOCIAL CARE,ASH GRANGE CARE HOME,26/09/2023,"2,646.08",6541-Residential,THIRD PARTY PAYMENTS,PRIVATE CONTRACTOR,REVENUE
Walsall Council,http://opendatacommunities.org/id/metropolitan-district-council/walsall ,WC154-722,30.09.2023,ADULT SOCIAL CARE,ASH GRANGE CARE HOME,26/09/2023,"2,537.32",6541-Residential,THIRD PARTY PAYMENTS,PRIVATE CONTRACTOR,REVENUE
Walsall Council,http://opendatacommunities.org/id/metropolitan-district-council/walsall ,WC154-723,30.09.2023,ADULT SOCIAL CARE,ASH GRANGE CARE HOME,26/09/2023,"1,085.71",6554-Professional Services-Priv Contractor & Other Agencies,THIRD PARTY PAYMENTS,PRIVATE CONTRACTOR,REVENUE
Walsall Council,http://opendatacommunities.org/id/metropolitan-district-council/walsall ,WC154-724,30.09.2023,ADULT SOCIAL CARE,ASH GRANGE CARE HOME,26/09/2023,"2,905.36",6541-Nursing,THIRD PARTY PAYMENTS,PRIVATE CONTRACTOR,REVENUE
Walsall Council,http://opendatacommunities.org/id/metropolitan-district-council/walsall ,WC154-725,30.09.2023,ADULT SOCIAL CARE,ASH GRANGE CARE HOME,26/09/2023,726.34,6541-Nursing,THIRD PARTY PAYMENTS,PRIVATE CONTRACTOR,REVENUE
Walsall Council,http://opendatacommunities.org/id/metropolitan-district-council/walsall ,WC154-726,30.09.2023,ADULT SOCIAL CARE,ASH GRANGE CARE HOME,26/09/2023,"2,307.14",6554-Professional Services-Priv Contractor & Other Agencies,THIRD PARTY PAYMENTS,PRIVATE CONTRACTOR,REVENUE
Walsall Council,http://opendatacommunities.org/id/metropolitan-district-council/walsall ,WC154-727,30.09.2023,ADULT SOCIAL CARE,ASH GRANGE CARE HOME,26/09/2023,"2,505.36",6541-Nursing,THIRD PARTY PAYMENTS,PRIVATE CONTRACTOR,REVENUE
Walsall Council,http://opendatacommunities.org/id/metropolitan-district-council/walsall ,WC154-728,30.09.2023,ADULT SOCIAL CARE,ASH GRANGE CARE HOME,26/09/2023,"2,805.36",6541-Nursing,THIRD PARTY PAYMENTS,PRIVATE CONTRACTOR,REVENUE
Walsall Council,http://opendatacommunities.org/id/metropolitan-district-council/walsall ,WC154-729,30.09.2023,ADULT SOCIAL CARE,ASH GRANGE CARE HOME,26/09/2023,"2,505.36",6541-Nursing,THIRD PARTY PAYMENTS,PRIVATE CONTRACTOR,REVENUE
Walsall Council,http://opendatacommunities.org/id/metropolitan-district-council/walsall ,WC154-730,30.09.2023,ADULT SOCIAL CARE,ASH GRANGE CARE HOME,26/09/2023,"2,137.32",6541-Residential,THIRD PARTY PAYMENTS,PRIVATE CONTRACTOR,REVENUE
Walsall Council,http://opendatacommunities.org/id/metropolitan-district-council/walsall ,WC154-731,30.09.2023,ADULT SOCIAL CARE,ASH GRANGE CARE HOME,26/09/2023,"2,505.36",6541-Nursing,THIRD PARTY PAYMENTS,PRIVATE CONTRACTOR,REVENUE
Walsall Council,http://opendatacommunities.org/id/metropolitan-district-council/walsall ,WC154-732,30.09.2023,ADULT SOCIAL CARE,ASH GRANGE CARE HOME,26/09/2023,271.43,6554-Professional Services-Priv Contractor & Other Agencies,THIRD PARTY PAYMENTS,PRIVATE CONTRACTOR,REVENUE
Walsall Council,http://opendatacommunities.org/id/metropolitan-district-council/walsall ,WC154-733,30.09.2023,ADULT SOCIAL CARE,ASH GRANGE CARE HOME,26/09/2023,"2,697.84",6541-Nursing,THIRD PARTY PAYMENTS,PRIVATE CONTRACTOR,REVENUE
Walsall Council,http://opendatacommunities.org/id/metropolitan-district-council/walsall ,WC154-734,30.09.2023,ADULT SOCIAL CARE,ASH GRANGE CARE HOME,26/09/2023,"2,472.88",6541-Residential,THIRD PARTY PAYMENTS,PRIVATE CONTRACTOR,REVENUE
Walsall Council,http://opendatacommunities.org/id/metropolitan-district-council/walsall ,WC154-735,30.09.2023,ADULT SOCIAL CARE,ASH GRANGE CARE HOME,26/09/2023,"2,272.88",6541-Residential,THIRD PARTY PAYMENTS,PRIVATE CONTRACTOR,REVENUE
Walsall Council,http://opendatacommunities.org/id/metropolitan-district-council/walsall ,WC154-736,30.09.2023,ADULT SOCIAL CARE,ASH GRANGE CARE HOME,26/09/2023,"2,705.36",6541-Nursing,THIRD PARTY PAYMENTS,PRIVATE CONTRACTOR,REVENUE
Walsall Council,http://opendatacommunities.org/id/metropolitan-district-council/walsall ,WC154-737,30.09.2023,ADULT SOCIAL CARE,ASH GRANGE CARE HOME,26/09/2023,"4,750.00",6554-Professional Services-Priv Contractor & Other Agencies,THIRD PARTY PAYMENTS,PRIVATE CONTRACTOR,REVENUE
Walsall Council,http://opendatacommunities.org/id/metropolitan-district-council/walsall ,WC154-738,30.09.2023,ADULT SOCIAL CARE,REDACTED,07/09/2023,"1,831.15",6541-Direct Payment,THIRD PARTY PAYMENTS,PRIVATE CONTRACTOR,REVENUE
Walsall Council,http://opendatacommunities.org/id/metropolitan-district-council/walsall ,WC154-739,30.09.2023,ADULT SOCIAL CARE,REDACTED,07/09/2023,901.9,6541-Direct Payment,THIRD PARTY PAYMENTS,PRIVATE CONTRACTOR,REVENUE
Walsall Council,http://opendatacommunities.org/id/metropolitan-district-council/walsall ,WC154-740,30.09.2023,ADULT SOCIAL CARE,REDACTED,07/09/2023,"1,632.75",6541-Direct Payment,THIRD PARTY PAYMENTS,PRIVATE CONTRACTOR,REVENUE
Walsall Council,http://opendatacommunities.org/id/metropolitan-district-council/walsall ,WC154-741,30.09.2023,CHILDRENS,ASPIRE ACTIVE CAMPS LTD,21/09/2023,"1,822.76",6211-Professional Fees & Services,SUPPLIES & SERVICES,SERVICES,REVENUE
Walsall Council,http://opendatacommunities.org/id/metropolitan-district-council/walsall ,WC154-742,30.09.2023,RESOURCES AND TRANSFORMATION,ASSOCIATION OF APPRENTICES,08/09/2023,"1,000.00",6625-Consultant Fees,SUPPLIES & SERVICES,SERVICES,REVENUE
Walsall Council,http://opendatacommunities.org/id/metropolitan-district-council/walsall ,WC154-743,30.09.2023,ADULT SOCIAL CARE,ASSOCIATION OF DIRECTORS OF PUBLIC HEALTH,26/09/2023,750,6420-Subscriptions,SUPPLIES & SERVICES,GRANTS (EXP) & SUBSCRIPTIONS,REVENUE
Walsall Council,http://opendatacommunities.org/id/metropolitan-district-council/walsall ,WC154-744,30.09.2023,ADULT SOCIAL CARE,ASSOCIATION OF DIRECTORS OF PUBLIC HEALTH,26/09/2023,"4,400.00",6420-Subscriptions,SUPPLIES & SERVICES,GRANTS (EXP) & SUBSCRIPTIONS,REVENUE
Walsall Council,http://opendatacommunities.org/id/metropolitan-district-council/walsall ,WC154-745,30.09.2023,RESOURCES AND TRANSFORMATION,ASSOCIATION OF ELECTORAL ADMINISTRATORS,19/09/2023,"1,704.30",6610-External Training,INDIRECT EMPLOYEES,EXTERNAL TRAINING,REVENUE
Walsall Council,http://opendatacommunities.org/id/metropolitan-district-council/walsall ,WC154-746,30.09.2023,RESOURCES AND TRANSFORMATION,ASSOCIATION OF ELECTORAL ADMINISTRATORS,19/09/2023,495,6610-External Training,INDIRECT EMPLOYEES,EXTERNAL TRAINING,REVENUE
Walsall Council,http://opendatacommunities.org/id/metropolitan-district-council/walsall ,WC154-747,30.09.2023,CHILDRENS,REDACTED,20/09/2023,462.52,6223-Residents Orders,TRANSFER PAYMENTS,CHILDREN SOCIAL SERVICES CLIENT,REVENUE
Walsall Council,http://opendatacommunities.org/id/metropolitan-district-council/walsall ,WC154-748,30.09.2023,CHILDRENS,REDACTED,20/09/2023,398.52,6223-Residents Orders,TRANSFER PAYMENTS,CHILDREN SOCIAL SERVICES CLIENT,REVENUE
Walsall Council,http://opendatacommunities.org/id/metropolitan-district-council/walsall ,WC154-749,30.09.2023,RESOURCES AND TRANSFORMATION CAPITAL,ATKINS LIMITED,12/09/2023,"70,000.00",7300-Architects Instruction,CAPITAL,"NEW CONSTRUCTION,CONVERSION & RENOVATION",CAPITAL
Walsall Council,http://opendatacommunities.org/id/metropolitan-district-council/walsall ,WC154-750,30.09.2023,RESOURCES AND TRANSFORMATION CAPITAL,ATKINS LIMITED,25/09/2023,"43,000.00",7300-Site Works Contractors,CAPITAL,"NEW CONSTRUCTION,CONVERSION & RENOVATION",CAPITAL
Walsall Council,http://opendatacommunities.org/id/metropolitan-district-council/walsall ,WC154-751,30.09.2023,ECONOMY & ENVIRONMENT CAPITAL,ATKINS LIMITED,20/09/2023,"1,920.00",7200-Consultants Fees,CAPITAL,"NEW CONSTRUCTION,CONVERSION & RENOVATION",CAPITAL
Walsall Council,http://opendatacommunities.org/id/metropolitan-district-council/walsall ,WC154-752,30.09.2023,CHILDRENS,ATTACHED CARE LTD,05/09/2023,"39,538.00",6223-External Residential Care-Oth Agency Provision,THIRD PARTY PAYMENTS,PRIVATE CONTRACTOR,REVENUE
Walsall Council,http://opendatacommunities.org/id/metropolitan-district-council/walsall ,WC154-753,30.09.2023,ADULT SOCIAL CARE,REDACTED,07/09/2023,"1,665.45",6541-Direct Payment,THIRD PARTY PAYMENTS,PRIVATE CONTRACTOR,REVENUE
Walsall Council,http://opendatacommunities.org/id/metropolitan-district-council/walsall ,WC154-754,30.09.2023,ADULT SOCIAL CARE,AURORA GRAPHICS & DISPLAYS LTD,15/09/2023,502.6,6623-Outwork Print & Design,SUPPLIES & SERVICES,PRINTING STATIONERY & GENERAL OFFICE,REVENUE
Walsall Council,http://opendatacommunities.org/id/metropolitan-district-council/walsall ,WC154-755,30.09.2023,ADULT SOCIAL CARE,AURORA GRAPHICS & DISPLAYS LTD,22/09/2023,678.65,6623-Outwork Print & Design,SUPPLIES & SERVICES,PRINTING STATIONERY & GENERAL OFFICE,REVENUE
Walsall Council,http://opendatacommunities.org/id/metropolitan-district-council/walsall ,WC154-756,30.09.2023,ADULT SOCIAL CARE,AUTISM WEST MIDLANDS,26/09/2023,"5,818.64",6541-Residential,THIRD PARTY PAYMENTS,PRIVATE CONTRACTOR,REVENUE
Walsall Council,http://opendatacommunities.org/id/metropolitan-district-council/walsall ,WC154-757,30.09.2023,ADULT SOCIAL CARE,AUTISM WEST MIDLANDS,26/09/2023,"7,529.32",6541-Residential,THIRD PARTY PAYMENTS,PRIVATE CONTRACTOR,REVENUE
Walsall Council,http://opendatacommunities.org/id/metropolitan-district-council/walsall ,WC154-758,30.09.2023,"ECONOMY, ENVIRONMENT & COMMUNITIES",AUTOBITS,12/09/2023,325,6410-Disposal of Landfill Waste-Priv Contractor Fees,THIRD PARTY PAYMENTS,PRIVATE CONTRACTOR,REVENUE
Walsall Council,http://opendatacommunities.org/id/metropolitan-district-council/walsall ,WC154-759,30.09.2023,ADULT SOCIAL CARE,AVERY HOMES NELSON LIMITED,26/09/2023,"3,472.88",6541-Residential,THIRD PARTY PAYMENTS,PRIVATE CONTRACTOR,REVENUE
Walsall Council,http://opendatacommunities.org/id/metropolitan-district-council/walsall ,WC154-760,30.09.2023,ADULT SOCIAL CARE,AVERY HOMES NELSON LIMITED,26/09/2023,"3,841.92",6541-Residential,THIRD PARTY PAYMENTS,PRIVATE CONTRACTOR,REVENUE
Walsall Council,http://opendatacommunities.org/id/metropolitan-district-council/walsall ,WC154-761,30.09.2023,ADULT SOCIAL CARE,AVERY HOMES NELSON LIMITED,26/09/2023,"3,847.32",6541-Residential EMI,THIRD PARTY PAYMENTS,PRIVATE CONTRACTOR,REVENUE
Walsall Council,http://opendatacommunities.org/id/metropolitan-district-council/walsall ,WC154-762,30.09.2023,ADULT SOCIAL CARE,AVERY HOMES NELSON LIMITED,26/09/2023,"3,600.00",6541-Residential EMI,THIRD PARTY PAYMENTS,PRIVATE CONTRACTOR,REVENUE
Walsall Council,http://opendatacommunities.org/id/metropolitan-district-council/walsall ,WC154-763,30.09.2023,ADULT SOCIAL CARE,AVERY HOMES NELSON LIMITED,26/09/2023,411.43,6541-Residential,THIRD PARTY PAYMENTS,PRIVATE CONTRACTOR,REVENUE
Walsall Council,http://opendatacommunities.org/id/metropolitan-district-council/walsall ,WC154-764,30.09.2023,ADULT SOCIAL CARE,AVERY HOMES NELSON LIMITED,26/09/2023,"4,107.68",6541-Residential,THIRD PARTY PAYMENTS,PRIVATE CONTRACTOR,REVENUE
Walsall Council,http://opendatacommunities.org/id/metropolitan-district-council/walsall ,WC154-765,30.09.2023,ADULT SOCIAL CARE,REDACTED,07/09/2023,"4,851.60",6541-Direct Payment,THIRD PARTY PAYMENTS,PRIVATE CONTRACTOR,REVENUE
Walsall Council,http://opendatacommunities.org/id/metropolitan-district-council/walsall ,WC154-766,30.09.2023,"ECONOMY, ENVIRONMENT & COMMUNITIES",B & S CHAINS LTD,06/09/2023,"1,017.50",6410-Purchase of Furniture & Equipment,SUPPLIES & SERVICES,EQUIPMENT FURNITURE & MATERIALS,REVENUE
Walsall Council,http://opendatacommunities.org/id/metropolitan-district-council/walsall ,WC154-767,30.09.2023,CHILDRENS CAPITAL,BAILY GARNER LLP,05/09/2023,"5,062.50",7150-Site Works Contractors,CAPITAL,"NEW CONSTRUCTION,CONVERSION & RENOVATION",CAPITAL
Walsall Council,http://opendatacommunities.org/id/metropolitan-district-council/walsall ,WC154-768,30.09.2023,CHILDRENS CAPITAL,BAILY GARNER LLP,05/09/2023,"1,950.00",7150-Site Works Contractors,CAPITAL,"NEW CONSTRUCTION,CONVERSION & RENOVATION",CAPITAL
Walsall Council,http://opendatacommunities.org/id/metropolitan-district-council/walsall ,WC154-769,30.09.2023,"ECONOMY, ENVIRONMENT & COMMUNITIES",BAKER HALL PARTNERSHIP,18/09/2023,"1,738.00",6413-Professional Fees & Services,SUPPLIES & SERVICES,SERVICES,REVENUE
Walsall Council,http://opendatacommunities.org/id/metropolitan-district-council/walsall ,WC154-770,30.09.2023,"ECONOMY, ENVIRONMENT & COMMUNITIES",BAKER HALL PARTNERSHIP,19/09/2023,635.5,6413-Professional Fees & Services,SUPPLIES & SERVICES,SERVICES,REVENUE
Walsall Council,http://opendatacommunities.org/id/metropolitan-district-council/walsall ,WC154-771,30.09.2023,ADULT SOCIAL CARE,REDACTED,07/09/2023,"5,281.70",6541-Direct Payment,THIRD PARTY PAYMENTS,PRIVATE CONTRACTOR,REVENUE
Walsall Council,http://opendatacommunities.org/id/metropolitan-district-council/walsall ,WC154-772,30.09.2023,ADULT SOCIAL CARE,REDACTED,07/09/2023,989.8,6541-Direct Payment,THIRD PARTY PAYMENTS,PRIVATE CONTRACTOR,REVENUE
Walsall Council,http://opendatacommunities.org/id/metropolitan-district-council/walsall ,WC154-773,30.09.2023,CHILDRENS,REDACTED,20/09/2023,340,6223-Other Expenses,SUPPLIES & SERVICES,EXPENSES,REVENUE
Walsall Council,http://opendatacommunities.org/id/metropolitan-district-council/walsall ,WC154-774,30.09.2023,ADULT SOCIAL CARE,REDACTED,07/09/2023,"3,015.00",6541-Direct Payment,THIRD PARTY PAYMENTS,PRIVATE CONTRACTOR,REVENUE
Walsall Council,http://opendatacommunities.org/id/metropolitan-district-council/walsall ,WC154-775,30.09.2023,ECONOMY & ENVIRONMENT CAPITAL,BARCHAM TREES PLC,26/09/2023,"1,332.00",7200-Purchase of Furniture & Equipment,CAPITAL,"VEHICLES,PLANT,EQUIPMENT & MACHINERY",CAPITAL
Walsall Council,http://opendatacommunities.org/id/metropolitan-district-council/walsall ,WC154-776,30.09.2023,CENTRALLY HELD,BARNSLEY M B C,19/09/2023,"3,750.00",6635-Subscriptions,SUPPLIES & SERVICES,GRANTS (EXP) & SUBSCRIPTIONS,REVENUE
Walsall Council,http://opendatacommunities.org/id/metropolitan-district-council/walsall ,WC154-777,30.09.2023,CHILDRENS,BARONS COURT HOTEL,13/09/2023,"44,366.67",6314-Professional Services-Priv Contractor & Other Agencies,THIRD PARTY PAYMENTS,PRIVATE CONTRACTOR,REVENUE
Walsall Council,http://opendatacommunities.org/id/metropolitan-district-council/walsall ,WC154-778,30.09.2023,CHILDRENS,BARONS COURT HOTEL,13/09/2023,"3,004.17",6314-Professional Services-Priv Contractor & Other Agencies,THIRD PARTY PAYMENTS,PRIVATE CONTRACTOR,REVENUE
Walsall Council,http://opendatacommunities.org/id/metropolitan-district-council/walsall ,WC154-779,30.09.2023,CHILDRENS,BARR BEACON SCHOOL TRUST,28/09/2023,"1,447.27",1220-Top Up Funding -Grants to Schools,SUPPLIES & SERVICES,GRANTS (EXP) & SUBSCRIPTIONS,REVENUE
Walsall Council,http://opendatacommunities.org/id/metropolitan-district-council/walsall ,WC154-780,30.09.2023,CHILDRENS CAPITAL,BAT FABRICATIONS LTD,26/09/2023,"-1,350.00",7150-Site Works Contractors,CAPITAL,"NEW CONSTRUCTION,CONVERSION & RENOVATION",CAPITAL
Walsall Council,http://opendatacommunities.org/id/metropolitan-district-council/walsall ,WC154-781,30.09.2023,CHILDRENS CAPITAL,BAT FABRICATIONS LTD,26/09/2023,"1,350.00",7150-Site Works Contractors,CAPITAL,"NEW CONSTRUCTION,CONVERSION & RENOVATION",CAPITAL
Walsall Council,http://opendatacommunities.org/id/metropolitan-district-council/walsall ,WC154-782,30.09.2023,CHILDRENS CAPITAL,BAT FABRICATIONS LTD,05/09/2023,"1,100.00",7155-Site Works Contractors,CAPITAL,"NEW CONSTRUCTION,CONVERSION & RENOVATION",CAPITAL
Walsall Council,http://opendatacommunities.org/id/metropolitan-district-council/walsall ,WC154-783,30.09.2023,RESOURCES AND TRANSFORMATION,BAT FABRICATIONS LTD,21/09/2023,"3,000.00",6310-Planned Maintenance,PREMISES,REPAIRS & MAINTENANCE,REVENUE
Walsall Council,http://opendatacommunities.org/id/metropolitan-district-council/walsall ,WC154-784,30.09.2023,RESOURCES AND TRANSFORMATION,BAT FABRICATIONS LTD,21/09/2023,"8,300.00",6310-Planned Maintenance,PREMISES,REPAIRS & MAINTENANCE,REVENUE
Walsall Council,http://opendatacommunities.org/id/metropolitan-district-council/walsall ,WC154-785,30.09.2023,CHILDRENS CAPITAL,BAT FABRICATIONS LTD,27/09/2023,"3,000.00",7150-Site Works Contractors,CAPITAL,"NEW CONSTRUCTION,CONVERSION & RENOVATION",CAPITAL
Walsall Council,http://opendatacommunities.org/id/metropolitan-district-council/walsall ,WC154-786,30.09.2023,CHILDRENS CAPITAL,BAT FABRICATIONS LTD,27/09/2023,"9,840.00",7150-Site Works Contractors,CAPITAL,"NEW CONSTRUCTION,CONVERSION & RENOVATION",CAPITAL
Walsall Council,http://opendatacommunities.org/id/metropolitan-district-council/walsall ,WC154-787,30.09.2023,CHILDRENS CAPITAL,BAT FABRICATIONS LTD,28/09/2023,"2,500.00",7150-Site Works Contractors,CAPITAL,"NEW CONSTRUCTION,CONVERSION & RENOVATION",CAPITAL
Walsall Council,http://opendatacommunities.org/id/metropolitan-district-council/walsall ,WC154-788,30.09.2023,CHILDRENS CAPITAL,BAT FABRICATIONS LTD,28/09/2023,"7,120.75",7150-Site Works Contractors,CAPITAL,"NEW CONSTRUCTION,CONVERSION & RENOVATION",CAPITAL
Walsall Council,http://opendatacommunities.org/id/metropolitan-district-council/walsall ,WC154-789,30.09.2023,"ECONOMY, ENVIRONMENT & COMMUNITIES",BAT FABRICATIONS LTD,29/09/2023,600,6411-Repair & Maintenance of Furniture & Equipment,SUPPLIES & SERVICES,EQUIPMENT FURNITURE & MATERIALS,REVENUE
Walsall Council,http://opendatacommunities.org/id/metropolitan-district-council/walsall ,WC154-790,30.09.2023,"ECONOMY, ENVIRONMENT & COMMUNITIES",BAT FABRICATIONS LTD,29/09/2023,775,6411-Repair & Maintenance of Furniture & Equipment,SUPPLIES & SERVICES,EQUIPMENT FURNITURE & MATERIALS,REVENUE
Walsall Council,http://opendatacommunities.org/id/metropolitan-district-council/walsall ,WC154-791,30.09.2023,"ECONOMY, ENVIRONMENT & COMMUNITIES",BATLEYS,12/09/2023,"-1,928.25",6414-Food & Drink Supplies,SUPPLIES & SERVICES,CATERING,REVENUE
Walsall Council,http://opendatacommunities.org/id/metropolitan-district-council/walsall ,WC154-792,30.09.2023,"ECONOMY, ENVIRONMENT & COMMUNITIES",BATLEYS,12/09/2023,"1,726.75",6414-Food & Drink Supplies,SUPPLIES & SERVICES,CATERING,REVENUE
Walsall Council,http://opendatacommunities.org/id/metropolitan-district-council/walsall ,WC154-793,30.09.2023,"ECONOMY, ENVIRONMENT & COMMUNITIES",BATLEYS,12/09/2023,"1,928.25",6414-Food & Drink Supplies,SUPPLIES & SERVICES,CATERING,REVENUE
Walsall Council,http://opendatacommunities.org/id/metropolitan-district-council/walsall ,WC154-794,30.09.2023,"ECONOMY, ENVIRONMENT & COMMUNITIES",BATLEYS,21/09/2023,"2,153.45",6414-Food & Drink Supplies,SUPPLIES & SERVICES,CATERING,REVENUE
Walsall Council,http://opendatacommunities.org/id/metropolitan-district-council/walsall ,WC154-795,30.09.2023,"ECONOMY, ENVIRONMENT & COMMUNITIES",BAUWATCH UK LTD,05/09/2023,497.93,6413-Materials,SUPPLIES & SERVICES,EQUIPMENT FURNITURE & MATERIALS,REVENUE
Walsall Council,http://opendatacommunities.org/id/metropolitan-district-council/walsall ,WC154-796,30.09.2023,"ECONOMY, ENVIRONMENT & COMMUNITIES",BAUWATCH UK LTD,18/09/2023,"1,357.30",6413-Materials,SUPPLIES & SERVICES,EQUIPMENT FURNITURE & MATERIALS,REVENUE
Walsall Council,http://opendatacommunities.org/id/metropolitan-district-council/walsall ,WC154-797,30.09.2023,"ECONOMY, ENVIRONMENT & COMMUNITIES",BAUWATCH UK LTD,21/09/2023,-449.31,6413-Materials,SUPPLIES & SERVICES,EQUIPMENT FURNITURE & MATERIALS,REVENUE
Walsall Council,http://opendatacommunities.org/id/metropolitan-district-council/walsall ,WC154-798,30.09.2023,CHILDRENS,BAY MEDIA LTD,07/09/2023,"6,188.75",6223-Professional Fees & Services,SUPPLIES & SERVICES,SERVICES,REVENUE
Walsall Council,http://opendatacommunities.org/id/metropolitan-district-council/walsall ,WC154-799,30.09.2023,CHILDRENS,BAY TEN STUDIOS,20/09/2023,"3,800.00",6212-Other Expenses,SUPPLIES & SERVICES,EXPENSES,REVENUE
Walsall Council,http://opendatacommunities.org/id/metropolitan-district-council/walsall ,WC154-800,30.09.2023,ECONOMY & ENVIRONMENT CAPITAL,BDO LLP,28/09/2023,"9,339.68",7200-Consultants Fees,CAPITAL,"NEW CONSTRUCTION,CONVERSION & RENOVATION",CAPITAL
Walsall Council,http://opendatacommunities.org/id/metropolitan-district-council/walsall ,WC154-801,30.09.2023,RESOURCES AND TRANSFORMATION,BEADEN POWERLEC LIMITED,20/09/2023,"1,029.00",6310-Operational Maintenance,PREMISES,REPAIRS & MAINTENANCE,REVENUE
Walsall Council,http://opendatacommunities.org/id/metropolitan-district-council/walsall ,WC154-802,30.09.2023,CHILDRENS,BECKYS CHILDMINDING SERVICE,12/09/2023,"6,123.60",1184-Other-Grants to Other Orgs,SUPPLIES & SERVICES,GRANTS (EXP) & SUBSCRIPTIONS,REVENUE
Walsall Council,http://opendatacommunities.org/id/metropolitan-district-council/walsall ,WC154-803,30.09.2023,ADULT SOCIAL CARE,BELVIDERE COURT,26/09/2023,"2,505.36",6541-Nursing,THIRD PARTY PAYMENTS,PRIVATE CONTRACTOR,REVENUE
Walsall Council,http://opendatacommunities.org/id/metropolitan-district-council/walsall ,WC154-804,30.09.2023,ADULT SOCIAL CARE,BELVIDERE COURT,26/09/2023,"2,939.32",6541-Residential,THIRD PARTY PAYMENTS,PRIVATE CONTRACTOR,REVENUE
Walsall Council,http://opendatacommunities.org/id/metropolitan-district-council/walsall ,WC154-805,30.09.2023,ADULT SOCIAL CARE,BELVIDERE COURT,26/09/2023,"3,900.00",6554-Professional Services-Priv Contractor & Other Agencies,THIRD PARTY PAYMENTS,PRIVATE CONTRACTOR,REVENUE
Walsall Council,http://opendatacommunities.org/id/metropolitan-district-council/walsall ,WC154-806,30.09.2023,ADULT SOCIAL CARE,BENEDON HEALTHCARE LTD,20/09/2023,"4,488.00",6541-Community Supported Living/Supported Accommodation,THIRD PARTY PAYMENTS,PRIVATE CONTRACTOR,REVENUE
